Workbook

Sheet コースを作ろう
B3: 3 | C3: 組 | D3: 2 | E3: 班 | F3: =12-COUNTIF(C4:F6,"") -> 3
B4: 班長 | C4: 加藤 俊二 | U4: 画面割合 | W4: Mapサイズ
B5: 班員 | C5: 浜田 良介 | E5: 宇都宮 丈史 | G5: Codeをダブルクリックすると見学場所を検索できます | T5: 0.948 | U5: 0.983 | W5: 330 | X5: 440 | AM5: Code | AN5: =IF($AM6="","",VLOOKUP($AM6,KotoTripPlaceData[],4,FALSE)) -> https://kyoto-shisendo.net/ | AO5: =IF($AM$6="","",VLOOKUP($AM$6,KotoTripPlaceData[],22,FALSE)) -> 京都市左京区一乗寺門口町27
G6: 昼食代 1人 | I6: 1000 | T6: y | U6: x | W6: Goal中心 | Y6: 補正 | AI6: 1005 | AM6: 1068 | AN6: =IF($AM$6="","",VLOOKUP($AM$6,KotoTripPlaceData[],3,FALSE)) -> 詩仙堂 | AQ6: Tel. | AR6: =IF($AM$6="","",IF(VLOOKUP($AM$6,KotoTripPlaceData[],15,FALSE)=0,"",VLOOKUP($AM$6,KotoTripPlaceData[],15,FALSE))) -> 075 - 781 - 2954
C7: Code | D7: 名称 | G7: 到着時刻 | H7: 出発時刻 | I7: 見学時間 | J7: 班員分 拝観料 | K7: 昼食等 調整時間 | L7: 駐車場代 | M7: Map補正 | N7: 次への 移動手段 | O7: スピード | Q7: 緯度 | R7: 経度 | S7: 距離(m) | T7: 移動時間 | U7: 受付まで | V7: 駐車場まで | W7: dy | X7: dx | AA7: かな | AM7: =IF($AM$6="","",VLOOKUP($AM$6,KotoTripPlaceData[],9,FALSE)) -> 9:00 | AN7: ～ | AO7: =IF($AM$6="","",VLOOKUP($AM$6,KotoTripPlaceData[],10,FALSE)) -> 17:00 | AQ7: Fax. | AR7: =IF($AM$6="","",IF(VLOOKUP($AM$6,KotoTripPlaceData[],16,FALSE)=0,"",VLOOKUP($AM$6,KotoTripPlaceData[],16,FALSE))) -> (075) 721 - 9450
B8: Start | C8: 6017 | D8: =IF(C8=0,"",VLOOKUP(C8,KotoTripPlaceData[],3,FALSE)) -> 京都駅八条口 | H8: 09:00:00 | M8: 上 | N8: 車 | O8: =IF($C8=0,"",HLOOKUP(N8,$C$24:$E$25,2,FALSE)) -> 350 | Q8: =IF($C8="","",VLOOKUP($C8,KotoTripPlaceData[],13,FALSE)) -> 34.98402057 | R8: =IF($C8="","",VLOOKUP($C8,KotoTripPlaceData[],14,FALSE)) -> 135.7610197 | W8: =IF(Q8<>"",Q8-$Q$21,"") -> -0.02987189 | X8: =IF($R8<>"",$R8-$R$21,"") -> 0.0243654 | Y8: =IF(Q8<>"",Q8-Q$21,"") -> -0.02987189 | Z8: =IF($R8<>"",$R8-$R$21,"") -> 0.0243654 | AA8: 見学時間 | AD8: 09:00:00 | AI8: 上 | AJ8: 車 | AK8: =IF($C8=0,"",HLOOKUP(AJ8,$C$24:$E$25,2,FALSE)) -> 350 | AM8: 見どころ・歴史 | AO8: =IF(AN5=0,"URLなし",HYPERLINK(AN5," 関連ページへ ")) -> 関連ページへ
B9: 1 | C9: 1159 | D9: =IF($C9="","",VLOOKUP($C9,KotoTripPlaceData[],3,FALSE)) -> 西本願寺 | G9: =IF(T9="","",H8+TIME(0,T9,0)) -> 09:05:00 | H9: =IF(G9="","",G9+TIME(0,U9+I9+V9+K9,0)) -> 09:40:00 | I9: =IF($C9="","",VLOOKUP($C9,KotoTripPlaceData[],18,FALSE)) -> 20 | J9: =IF($C9="","",IF(VLOOKUP($C9,KotoTripPlaceData[],7,FALSE)="-","非公開",VLOOKUP($C9,KotoTripPlaceData[],7,FALSE)*$F$3)) -> 0 | L9: =IF($C9="","",IF(ISERROR(VALUE(VLOOKUP($C9,KotoTripPlaceData[],8,FALSE))),VLOOKUP($C9,KotoTripPlaceData[],8,FALSE),VALUE(VLOOKUP($C9,KotoTripPlaceData[],8,FALSE)))) -> 無料 | M9: 右 | N9: 車 | O9: =IF($C9=0,"",HLOOKUP(N9,$C$24:$E$25,2,FALSE)) -> 350 | Q9: =IF($C9="","",VLOOKUP($C9,KotoTripPlaceData[],13,FALSE)) -> 34.991763 | R9: =IF($C9="","",VLOOKUP($C9,KotoTripPlaceData[],14,FALSE)) -> 135.7522158 | S9: =IF(ISERROR(dist($Q8,$R8,$Q9,$R9)),"",dist($Q8,$R8,$Q9,$R9)) -> 1662.758204 | T9: =IF(S9="","",ROUNDUP(S9/O8,0)+5*(N8<>"車")) -> 5 | U9: =IF($C9="","",IF(N8="車",VLOOKUP($C9,KotoTripPlaceData[],17,FALSE),VLOOKUP($C9,KotoTripPlaceData[],17,FALSE)/2)) -> 8 | V9: =IF($C9="","",IF(N8="車",VLOOKUP($C9,KotoTripPlaceData[],19,FALSE),VLOOKUP($C9,KotoTripPlaceData[],19,FALSE)/2)) -> 7 | W9: =IF(Q9<>"",Q9-$Q$21,"") -> -0.02212946 | X9: =IF($R9<>"",$R9-$R$21,"") -> 0.0155615 | Y9: =IF(Q9<>"",Q9-Q$21,"") -> -0.02212946 | Z9: =IF($R9<>"",$R9-$R$21,"") -> 0.0155615 | AA9: =IF($C9="","",VLOOKUP($C9,KotoTripPlaceData[],5,FALSE)) -> にしほんがんじ | AC9: =IF(AP9="","",AD8+TIME(0,AP9,0)) ->  | AD9: =IF(AC9="","",AC9+TIME(0,AQ9+AE9+AR9+AG9,0)) ->  | AE9: =IF($C9="","",VLOOKUP($C9,KotoTripPlaceData[],18,FALSE)) -> 20 | AF9: =IF($C9="","",IF(VLOOKUP($C9,KotoTripPlaceData[],7,FALSE)="-","非公開",VLOOKUP($C9,KotoTripPlaceData[],7,FALSE)*$F$3)) -> 0 | AH9: =IF($C9="","",IF(ISERROR(VALUE(VLOOKUP($C9,KotoTripPlaceData[],8,FALSE))),VLOOKUP($C9,KotoTripPlaceData[],8,FALSE),VALUE(VLOOKUP($C9,KotoTripPlaceData[],8,FALSE)))) -> 無料 | AI9: 右 | AJ9: 車 | AK9: =IF($C9=0,"",HLOOKUP(AJ9,$C$24:$E$25,2,FALSE)) -> 350 | AM9: =IF($AM$6="",""," "&VLOOKUP($AM$6,KotoTripPlaceData[],20,FALSE)) -> 石川丈山が造営した山荘跡。詩仙の間に狩野探幽筆の中国三十六歌仙像が掲げてある。
B10: 2 | C10: 1121 | D10: =IF($C10="","",VLOOKUP($C10,KotoTripPlaceData[],3,FALSE)) -> 大徳寺・高桐院 | G10: 09:59:00 | H10: 10:34:00 | I10: =IF($C10="","",VLOOKUP($C10,KotoTripPlaceData[],18,FALSE)) -> 20 | J10: =IF($C10="","",IF(VLOOKUP($C10,KotoTripPlaceData[],7,FALSE)="-","非公開",VLOOKUP($C10,KotoTripPlaceData[],7,FALSE)*$F$3)) -> 1200 | L10: =IF($C10="","",IF(ISERROR(VALUE(VLOOKUP($C10,KotoTripPlaceData[],8,FALSE))),VLOOKUP($C10,KotoTripPlaceData[],8,FALSE),VALUE(VLOOKUP($C10,KotoTripPlaceData[],8,FALSE)))) -> 500 | M10: 右 | N10: 車 | O10: 350 | Q10: =IF($C10="","",VLOOKUP($C10,KotoTripPlaceData[],13,FALSE)) -> 35.04304546 | R10: =IF($C10="","",VLOOKUP($C10,KotoTripPlaceData[],14,FALSE)) -> 135.7432366 | S10: =IF(ISERROR(dist($Q9,$R9,$Q10,$R10)),"",dist($Q9,$R9,$Q10,$R10)) -> 6508.843054 | T10: =IF(S10="","",ROUNDUP(S10/O9,0)+5*(N9<>"車")) -> 19 | U10: =IF($C10="","",IF(N9="車",VLOOKUP($C10,KotoTripPlaceData[],17,FALSE),VLOOKUP($C10,KotoTripPlaceData[],17,FALSE)/2)) -> 8 | V10: =IF($C10="","",IF(N9="車",VLOOKUP($C10,KotoTripPlaceData[],19,FALSE),VLOOKUP($C10,KotoTripPlaceData[],19,FALSE)/2)) -> 7 | W10: =IF(Q10<>"",Q10-$Q$21,"") -> 0.029153 | X10: =IF($R10<>"",$R10-$R$21,"") -> 0.0065823 | Y10: =IF(Q10<>"",Q10-Q$21,"") -> 0.029153 | Z10: =IF($R10<>"",$R10-$R$21,"") -> 0.0065823 | AA10: =IF($C10="","",VLOOKUP($C10,KotoTripPlaceData[],5,FALSE)) -> だいとくじ（こうとういん） | AE10: =IF($C10="","",VLOOKUP($C10,KotoTripPlaceData[],18,FALSE)) -> 20 | AF10: =IF($C10="","",IF(VLOOKUP($C10,KotoTripPlaceData[],7,FALSE)="-","非公開",VLOOKUP($C10,KotoTripPlaceData[],7,FALSE)*$F$3)) -> 1200 | AH10: =IF($C10="","",IF(ISERROR(VALUE(VLOOKUP($C10,KotoTripPlaceData[],8,FALSE))),VLOOKUP($C10,KotoTripPlaceData[],8,FALSE),VALUE(VLOOKUP($C10,KotoTripPlaceData[],8,FALSE)))) -> 500 | AI10: 右 | AJ10: 車 | AK10: 350
B11: 3 | C11: 1066 | D11: =IF($C11="","",VLOOKUP($C11,KotoTripPlaceData[],3,FALSE)) -> 直指庵 | G11: 10:55:00 | H11: =IF(G11="","",G11+TIME(0,U11+I11+V11+K11,0)) -> 11:25:00 | I11: =IF($C11="","",VLOOKUP($C11,KotoTripPlaceData[],18,FALSE)) -> 15 | J11: =IF($C11="","",IF(VLOOKUP($C11,KotoTripPlaceData[],7,FALSE)="-","非公開",VLOOKUP($C11,KotoTripPlaceData[],7,FALSE)*$F$3)) -> 1200 | L11: =IF($C11="","",IF(ISERROR(VALUE(VLOOKUP($C11,KotoTripPlaceData[],8,FALSE))),VLOOKUP($C11,KotoTripPlaceData[],8,FALSE),VALUE(VLOOKUP($C11,KotoTripPlaceData[],8,FALSE)))) -> - | M11: 右 | N11: 車 | O11: 350 | Q11: =IF($C11="","",VLOOKUP($C11,KotoTripPlaceData[],13,FALSE)) -> 35.0335046 | R11: =IF($C11="","",VLOOKUP($C11,KotoTripPlaceData[],14,FALSE)) -> 135.6771884 | S11: =IF(ISERROR(dist($Q10,$R10,$Q11,$R11)),"",dist($Q10,$R10,$Q11,$R11)) -> 7085.085514 | T11: 21 | U11: =IF($C11="","",IF(N10="車",VLOOKUP($C11,KotoTripPlaceData[],17,FALSE),VLOOKUP($C11,KotoTripPlaceData[],17,FALSE)/2)) -> 8 | V11: =IF($C11="","",IF(N10="車",VLOOKUP($C11,KotoTripPlaceData[],19,FALSE),VLOOKUP($C11,KotoTripPlaceData[],19,FALSE)/2)) -> 7 | W11: 0.01961214 | X11: -0.0594659 | Y11: 0.01961214 | Z11: -0.0594659 | AA11: =IF($C11="","",VLOOKUP($C11,KotoTripPlaceData[],5,FALSE)) -> じきしあん | AD11: =IF(AC11="","",AC11+TIME(0,AQ11+AE11+AR11+AG11,0)) ->  | AE11: =IF($C11="","",VLOOKUP($C11,KotoTripPlaceData[],18,FALSE)) -> 15 | AF11: =IF($C11="","",IF(VLOOKUP($C11,KotoTripPlaceData[],7,FALSE)="-","非公開",VLOOKUP($C11,KotoTripPlaceData[],7,FALSE)*$F$3)) -> 1200 | AH11: =IF($C11="","",IF(ISERROR(VALUE(VLOOKUP($C11,KotoTripPlaceData[],8,FALSE))),VLOOKUP($C11,KotoTripPlaceData[],8,FALSE),VALUE(VLOOKUP($C11,KotoTripPlaceData[],8,FALSE)))) -> - | AI11: 右 | AJ11: 車 | AK11: 350
B12: 4 | C12: 1068 | D12: =IF($C12="","",VLOOKUP($C12,KotoTripPlaceData[],3,FALSE)) -> 詩仙堂 | G12: 12:00:00 | H12: =IF(G12="","",G12+TIME(0,U12+I12+V12+K12,0)) -> 13:15:00 | I12: =IF($C12="","",VLOOKUP($C12,KotoTripPlaceData[],18,FALSE)) -> 20 | J12: =IF($C12="","",IF(VLOOKUP($C12,KotoTripPlaceData[],7,FALSE)="-","非公開",VLOOKUP($C12,KotoTripPlaceData[],7,FALSE)*$F$3)) -> 600 | K12: 40 | L12: =IF($C12="","",IF(ISERROR(VALUE(VLOOKUP($C12,KotoTripPlaceData[],8,FALSE))),VLOOKUP($C12,KotoTripPlaceData[],8,FALSE),VALUE(VLOOKUP($C12,KotoTripPlaceData[],8,FALSE)))) -> 500 | M12: 右 | N12: 車 | O12: 350 | Q12: =IF($C12="","",VLOOKUP($C12,KotoTripPlaceData[],13,FALSE)) -> 35.04376435 | R12: =IF($C12="","",VLOOKUP($C12,KotoTripPlaceData[],14,FALSE)) -> 135.7961202 | S12: =IF(ISERROR(dist($Q11,$R11,$Q12,$R12)),"",dist($Q11,$R11,$Q12,$R12)) -> 11990.1906 | T12: 35 | U12: =IF($C12="","",IF(N11="車",VLOOKUP($C12,KotoTripPlaceData[],17,FALSE),VLOOKUP($C12,KotoTripPlaceData[],17,FALSE)/2)) -> 8 | V12: =IF($C12="","",IF(N11="車",VLOOKUP($C12,KotoTripPlaceData[],19,FALSE),VLOOKUP($C12,KotoTripPlaceData[],19,FALSE)/2)) -> 7 | W12: 0.02987189 | X12: 0.0594659 | Y12: 0.02987189 | Z12: 0.0594659 | AA12: =IF($C12="","",VLOOKUP($C12,KotoTripPlaceData[],5,FALSE)) -> しせんどう | AD12: =IF(AC12="","",AC12+TIME(0,AQ12+AE12+AR12+AG12,0)) ->  | AE12: =IF($C12="","",VLOOKUP($C12,KotoTripPlaceData[],18,FALSE)) -> 20 | AF12: =IF($C12="","",IF(VLOOKUP($C12,KotoTripPlaceData[],7,FALSE)="-","非公開",VLOOKUP($C12,KotoTripPlaceData[],7,FALSE)*$F$3)) -> 600 | AH12: =IF($C12="","",IF(ISERROR(VALUE(VLOOKUP($C12,KotoTripPlaceData[],8,FALSE))),VLOOKUP($C12,KotoTripPlaceData[],8,FALSE),VALUE(VLOOKUP($C12,KotoTripPlaceData[],8,FALSE)))) -> 500 | AI12: 右 | AJ12: 車 | AK12: 350
B13: 5 | D13: =IF($C13="","",VLOOKUP($C13,KotoTripPlaceData[],3,FALSE)) ->  | J13: =IF($C13="","",IF(VLOOKUP($C13,KotoTripPlaceData[],7,FALSE)="-","非公開",VLOOKUP($C13,KotoTripPlaceData[],7,FALSE)*$F$3)) ->  | L13: =IF($C13="","",IF(ISERROR(VALUE(VLOOKUP($C13,KotoTripPlaceData[],8,FALSE))),VLOOKUP($C13,KotoTripPlaceData[],8,FALSE),VALUE(VLOOKUP($C13,KotoTripPlaceData[],8,FALSE)))) ->  | M13: 右 | N13: 車 | Q13: =IF($C13="","",VLOOKUP($C13,KotoTripPlaceData[],13,FALSE)) ->  | R13: =IF($C13="","",VLOOKUP($C13,KotoTripPlaceData[],14,FALSE)) ->  | S13: =IF(ISERROR(dist($Q12,$R12,$Q13,$R13)),"",dist($Q12,$R12,$Q13,$R13)) ->  | U13: =IF($C13="","",IF(N12="車",VLOOKUP($C13,KotoTripPlaceData[],17,FALSE),VLOOKUP($C13,KotoTripPlaceData[],17,FALSE)/2)) ->  | V13: =IF($C13="","",IF(N12="車",VLOOKUP($C13,KotoTripPlaceData[],19,FALSE),VLOOKUP($C13,KotoTripPlaceData[],19,FALSE)/2)) ->  | AA13: =IF($C13="","",VLOOKUP($C13,KotoTripPlaceData[],5,FALSE)) ->  | AE13: =IF($C13="","",VLOOKUP($C13,KotoTripPlaceData[],18,FALSE)) ->  | AF13: =IF($C13="","",IF(VLOOKUP($C13,KotoTripPlaceData[],7,FALSE)="-","非公開",VLOOKUP($C13,KotoTripPlaceData[],7,FALSE)*$F$3)) ->  | AH13: =IF($C13="","",IF(ISERROR(VALUE(VLOOKUP($C13,KotoTripPlaceData[],8,FALSE))),VLOOKUP($C13,KotoTripPlaceData[],8,FALSE),VALUE(VLOOKUP($C13,KotoTripPlaceData[],8,FALSE)))) ->  | AI13: 右 | AJ13: 車
B14: 6 | D14: =IF($C14="","",VLOOKUP($C14,KotoTripPlaceData[],3,FALSE)) ->  | I14: =IF($C14="","",VLOOKUP($C14,KotoTripPlaceData[],18,FALSE)) ->  | J14: =IF($C14="","",IF(VLOOKUP($C14,KotoTripPlaceData[],7,FALSE)="-","非公開",VLOOKUP($C14,KotoTripPlaceData[],7,FALSE)*$F$3)) ->  | L14: =IF($C14="","",IF(ISERROR(VALUE(VLOOKUP($C14,KotoTripPlaceData[],8,FALSE))),VLOOKUP($C14,KotoTripPlaceData[],8,FALSE),VALUE(VLOOKUP($C14,KotoTripPlaceData[],8,FALSE)))) ->  | M14: 右 | N14: 車 | Q14: =IF($C14="","",VLOOKUP($C14,KotoTripPlaceData[],13,FALSE)) ->  | R14: =IF($C14="","",VLOOKUP($C14,KotoTripPlaceData[],14,FALSE)) ->  | S14: =IF(ISERROR(dist($Q13,$R13,$Q14,$R14)),"",dist($Q13,$R13,$Q14,$R14)) ->  | U14: =IF($C14="","",IF(N13="車",VLOOKUP($C14,KotoTripPlaceData[],17,FALSE),VLOOKUP($C14,KotoTripPlaceData[],17,FALSE)/2)) ->  | V14: =IF($C14="","",IF(N13="車",VLOOKUP($C14,KotoTripPlaceData[],19,FALSE),VLOOKUP($C14,KotoTripPlaceData[],19,FALSE)/2)) ->  | AA14: =IF($C14="","",VLOOKUP($C14,KotoTripPlaceData[],5,FALSE)) ->  | AE14: =IF($C14="","",VLOOKUP($C14,KotoTripPlaceData[],18,FALSE)) ->  | AF14: =IF($C14="","",IF(VLOOKUP($C14,KotoTripPlaceData[],7,FALSE)="-","非公開",VLOOKUP($C14,KotoTripPlaceData[],7,FALSE)*$F$3)) ->  | AH14: =IF($C14="","",IF(ISERROR(VALUE(VLOOKUP($C14,KotoTripPlaceData[],8,FALSE))),VLOOKUP($C14,KotoTripPlaceData[],8,FALSE),VALUE(VLOOKUP($C14,KotoTripPlaceData[],8,FALSE)))) ->  | AI14: 右 | AJ14: 車
B15: 7 | D15: =IF($C15="","",VLOOKUP($C15,KotoTripPlaceData[],3,FALSE)) ->  | G15: =IF(Q15="","",H14+TIME(0,Q15,0)) ->  | I15: =IF($C15="","",VLOOKUP($C15,KotoTripPlaceData[],18,FALSE)) ->  | J15: =IF($C15="","",IF(VLOOKUP($C15,KotoTripPlaceData[],7,FALSE)="-","非公開",VLOOKUP($C15,KotoTripPlaceData[],7,FALSE)*$F$3)) ->  | L15: =IF($C15="","",IF(ISERROR(VALUE(VLOOKUP($C15,KotoTripPlaceData[],8,FALSE))),VLOOKUP($C15,KotoTripPlaceData[],8,FALSE),VALUE(VLOOKUP($C15,KotoTripPlaceData[],8,FALSE)))) ->  | M15: 右 | N15: 車 | Q15: =IF($C15="","",VLOOKUP($C15,KotoTripPlaceData[],13,FALSE)) ->  | R15: =IF($C15="","",VLOOKUP($C15,KotoTripPlaceData[],14,FALSE)) ->  | S15: =IF(ISERROR(dist($Q14,$R14,$Q15,$R15)),"",dist($Q14,$R14,$Q15,$R15)) ->  | U15: =IF($C15="","",VLOOKUP($C15,KotoTripPlaceData[],17,FALSE)) ->  | V15: =IF($C15="","",IF(N14="車",VLOOKUP($C15,KotoTripPlaceData[],19,FALSE),VLOOKUP($C15,KotoTripPlaceData[],19,FALSE)/2)) ->  | AA15: =IF($C15="","",VLOOKUP($C15,KotoTripPlaceData[],5,FALSE)) ->  | AC15: =IF(AM15="","",AD14+TIME(0,AM15,0)) ->  | AE15: =IF($C15="","",VLOOKUP($C15,KotoTripPlaceData[],18,FALSE)) ->  | AF15: =IF($C15="","",IF(VLOOKUP($C15,KotoTripPlaceData[],7,FALSE)="-","非公開",VLOOKUP($C15,KotoTripPlaceData[],7,FALSE)*$F$3)) ->  | AH15: =IF($C15="","",IF(ISERROR(VALUE(VLOOKUP($C15,KotoTripPlaceData[],8,FALSE))),VLOOKUP($C15,KotoTripPlaceData[],8,FALSE),VALUE(VLOOKUP($C15,KotoTripPlaceData[],8,FALSE)))) ->  | AI15: 右 | AJ15: 車 | AM15: 緯度 | AN15: =IF($AM$6="","",VLOOKUP($AM$6,KotoTripPlaceData[],13,FALSE)) -> 35.04376435 | AO15: 経度 | AP15: =IF($AM$6="","",VLOOKUP($AM$6,KotoTripPlaceData[],14,FALSE)) -> 135.7961202
B16: 8 | D16: =IF($C16="","",VLOOKUP($C16,KotoTripPlaceData[],3,FALSE)) ->  | G16: =IF(Q16="","",H15+TIME(0,Q16,0)) ->  | I16: =IF($C16="","",VLOOKUP($C16,KotoTripPlaceData[],18,FALSE)) ->  | J16: =IF($C16="","",IF(VLOOKUP($C16,KotoTripPlaceData[],7,FALSE)="-","非公開",VLOOKUP($C16,KotoTripPlaceData[],7,FALSE)*$F$3)) ->  | L16: =IF($C16="","",IF(ISERROR(VALUE(VLOOKUP($C16,KotoTripPlaceData[],8,FALSE))),VLOOKUP($C16,KotoTripPlaceData[],8,FALSE),VALUE(VLOOKUP($C16,KotoTripPlaceData[],8,FALSE)))) ->  | M16: 右 | N16: 車 | Q16: =IF($C16="","",VLOOKUP($C16,KotoTripPlaceData[],13,FALSE)) ->  | R16: =IF($C16="","",VLOOKUP($C16,KotoTripPlaceData[],14,FALSE)) ->  | S16: =IF(ISERROR(dist($Q15,$R15,$Q16,$R16)),"",dist($Q15,$R15,$Q16,$R16)) ->  | T16: =IF(S16="","",ROUNDUP(S16/O15,0)+5*(N15<>"車")) ->  | U16: =IF($C16="","",VLOOKUP($C16,KotoTripPlaceData[],17,FALSE)) ->  | V16: =IF($C16="","",IF(N15="車",VLOOKUP($C16,KotoTripPlaceData[],19,FALSE),VLOOKUP($C16,KotoTripPlaceData[],19,FALSE)/2)) ->  | W16: =IF(Q16<>"",Q16-$Q$21,"") ->  | Y16: =IF(Q16<>"",Q16-Q$21,"") ->  | AA16: =IF($C16="","",VLOOKUP($C16,KotoTripPlaceData[],5,FALSE)) ->  | AC16: =IF(AM16="","",AD15+TIME(0,AM16,0)) ->  | AD16: =IF(AC16="","",AC16+TIME(0,AQ16+AE16+AR16+AG16,0)) ->  | AE16: =IF($C16="","",VLOOKUP($C16,KotoTripPlaceData[],18,FALSE)) ->  | AF16: =IF($C16="","",IF(VLOOKUP($C16,KotoTripPlaceData[],7,FALSE)="-","非公開",VLOOKUP($C16,KotoTripPlaceData[],7,FALSE)*$F$3)) ->  | AH16: =IF($C16="","",IF(ISERROR(VALUE(VLOOKUP($C16,KotoTripPlaceData[],8,FALSE))),VLOOKUP($C16,KotoTripPlaceData[],8,FALSE),VALUE(VLOOKUP($C16,KotoTripPlaceData[],8,FALSE)))) ->  | AI16: 右 | AJ16: 車 | AN16: 1920 × 1080 125%
B17: 9 | D17: =IF($C17="","",VLOOKUP($C17,KotoTripPlaceData[],3,FALSE)) ->  | G17: =IF(Q17="","",H16+TIME(0,Q17,0)) ->  | I17: =IF($C17="","",VLOOKUP($C17,KotoTripPlaceData[],18,FALSE)) ->  | J17: =IF($C17="","",IF(VLOOKUP($C17,KotoTripPlaceData[],7,FALSE)="-","非公開",VLOOKUP($C17,KotoTripPlaceData[],7,FALSE)*$F$3)) ->  | L17: =IF($C17="","",IF(ISERROR(VALUE(VLOOKUP($C17,KotoTripPlaceData[],8,FALSE))),VLOOKUP($C17,KotoTripPlaceData[],8,FALSE),VALUE(VLOOKUP($C17,KotoTripPlaceData[],8,FALSE)))) ->  | M17: 右 | N17: 車 | Q17: =IF($C17="","",VLOOKUP($C17,KotoTripPlaceData[],13,FALSE)) ->  | R17: =IF($C17="","",VLOOKUP($C17,KotoTripPlaceData[],14,FALSE)) ->  | S17: =IF(ISERROR(dist($Q16,$R16,$Q17,$R17)),"",dist($Q16,$R16,$Q17,$R17)) ->  | U17: =IF($C17="","",VLOOKUP($C17,KotoTripPlaceData[],17,FALSE)) ->  | V17: =IF($C17="","",IF(N16="車",VLOOKUP($C17,KotoTripPlaceData[],19,FALSE),VLOOKUP($C17,KotoTripPlaceData[],19,FALSE)/2)) ->  | AA17: =IF($C17="","",VLOOKUP($C17,KotoTripPlaceData[],5,FALSE)) ->  | AC17: =IF(AM17="","",AD16+TIME(0,AM17,0)) ->  | AE17: =IF($C17="","",VLOOKUP($C17,KotoTripPlaceData[],18,FALSE)) ->  | AF17: =IF($C17="","",IF(VLOOKUP($C17,KotoTripPlaceData[],7,FALSE)="-","非公開",VLOOKUP($C17,KotoTripPlaceData[],7,FALSE)*$F$3)) ->  | AH17: =IF($C17="","",IF(ISERROR(VALUE(VLOOKUP($C17,KotoTripPlaceData[],8,FALSE))),VLOOKUP($C17,KotoTripPlaceData[],8,FALSE),VALUE(VLOOKUP($C17,KotoTripPlaceData[],8,FALSE)))) ->  | AI17: 右 | AJ17: 車
B18: Goal | C18: 6016 | D18: =IF($C18=0,"",VLOOKUP($C18,KotoTripPlaceData[],3,FALSE)) -> 京都駅烏丸口 タクシーおりば | G18: =IF(T18="","",OFFSET(H8,Q20,0)+TIME(0,T18,0)) -> 13:43:00 | M18: 下 | Q18: =IF($C18="","",VLOOKUP($C18,KotoTripPlaceData[],13,FALSE)) -> 34.98691476 | R18: =IF($C18="","",VLOOKUP($C18,KotoTripPlaceData[],14,FALSE)) -> 135.7606608 | S18: =IF(ISERROR(dist($Q19,$R19,$Q18,$R18)),"",dist($Q19,$R19,$Q18,$R18)) -> 9543.361659 | T18: =IF(S18="","",ROUNDUP(S18/OFFSET(O8,$Q$20,0),0)) -> 28 | W18: -0.0269777 | X18: 0.0240065 | Y18: -0.0269777 | Z18: 0.0240065 | AC18: =IF(AP18="","",OFFSET(AD8,AM20,0)+TIME(0,AP18,0)) ->  | AI18: 下 | AM18: =IF($AM$6="","",IF(VLOOKUP($AM$6,KotoTripPlaceData[],23,FALSE)=0,"",VLOOKUP($AM$6,KotoTripPlaceData[],23,FALSE))) -> 5/23は休み 2021拝観休止中
G19: 予定時刻 | H19: 15:30:00 | J19: =SUM(J9:J15) -> 3000 | L19: =SUM(L9:L15) -> 1000 | M19: ="＋"&COUNTIF($L$9:$L$15,"-")*600&"円くらい" -> ＋600円くらい | O19: 7 | P19: 最終見学地 | Q19: =OFFSET(Q8,$Q$20,0) -> 35.04376435 | R19: =OFFSET(R8,$Q$20,0) -> 135.7961202 | V19: Max-Min | W19: =MAX(W8:W18)-MIN(W8:W18) -> 0.05974378 | X19: =MAX(X8:X18)-MIN(X8:X18) -> 0.1189318 | Y19: =MAX(Y8:Y18) -> 0.02987189 | Z19: =MAX(Z8:Z18) -> 0.0594659
G20: 余裕時間 | H20: =(H19-G18)*24*60 -> 107 | J20: ="見学費合計("&F3&"名分)" -> 見学費合計(3名分) | L20: =J19+L19 -> 4000 | M20: ="＋"&COUNTIF($L$9:$L$15,"-")*600&"円くらい" -> ＋600円くらい | O20: 9 | P20: B列Max | Q20: =COUNT(C9:C17) -> 4 | R20: =COUNTIF($L$9:$L$15,"-")*600 -> 600 | T20: 0 | V20: 距離 | W20: =W19*Q22 -> 6628.009605 | X20: =X19*R22 -> 10857.02118 | Y20: =W5*T5/Y19 -> 10472.72201 | Z20: =X5*T5/Z19 -> 7014.440209 | AM20: =IF($AM$6="","",IF(VLOOKUP($AM$6,KotoTripPlaceData[],24,FALSE)=0,"",VLOOKUP($AM$6,KotoTripPlaceData[],24,FALSE))) -> 
H21: ↑この余裕時間を昼食時間・補正時間に配分 | P21: 地図中心 | Q21: =(MAX(Q8:Q18)+MIN(Q8:Q18))/2 -> 35.01389246 | R21: =(MAX(R8:R18)+MIN(R8:R18))/2 -> 135.7366543 | S21: =LOG(U21,2) -> 13 | T21: =Z値 | U21: =2^(W26+T22) -> 8192 | W21: RR | X21: =U21 -> 8192 | Z21: =MIN(Y20:Z20) -> 7014.440209
P22: ="比率("&ROUND(Q21,0)&"度)" -> 比率(35度) | Q22: =VLOOKUP(ROUND(Q21,0),$V$30:$X$51,2,FALSE) -> 110940.58 | R22: =VLOOKUP(ROUND(Q21,0),$V$30:$X$51,3,FALSE) -> 91287.79 | S22: 補正 | T22: 0 | V22: 1dotあたり | W22: =W20/W5 -> 20.08487759 | X22: =X20/X5 -> 24.67504814 | AD22: 解像度 | AE22: 1920 × 1080 125% | AG22: 125
B23: 基本移動速度 | G23: 最大項目数(7か9) | X23: =MAX(W22:X22) -> 24.67504814 | AD23: 緯度用 | AI23: 経度
C24: 車 | D24: 徒歩 | E24: 自転車 | G24: 9 | Q24: GoogleMap用のZ値を出すのに、各場所の緯度経度から、緯度と経度の範囲を算出。それを距離で表したものがW18とX18。それぞれを右の表から算出したZoom値の小さい方W24。そして2のW24乗がU19。そしてU19のLog2底がS19。 また、RR値はU19としている。P:AE | W24: =W5/W19*T5 -> 5236.361007 | X24: =X5/X19*U5 -> 3636.706079 | AD24: なぜか1/4 Zooｍ14だと幅8000になっている | AI24: 11.83
B25: m/分 | C25: 350 | D25: 80 | E25: 180 | W25: =VLOOKUP(W20,$AD$26:$AE$45,2) -> 13 | X25: =IF(ISERROR(VLOOKUP(X20,$AI$26:$AJ$45,2)),19,VLOOKUP(X20,$AI$26:$AJ$45,2)) -> 13 | AB25: 縮尺 | AD25: 最大幅 | AE25: Zoom値 | AF25: 実測縦 | AG25: 実測横 | AI25: 最大幅 | AJ25: Zoom値
B26: km/時 | C26: =C25*60/1000 -> 21 | D26: =D25*60/1000 -> 4.8 | E26: 10.8 | W26: =MIN(W25:X25) -> 13 | AA26: 20 | AB26: 1128.497220 | AD26: =AD27/2 -> 45 | AE26: 20 | AF26: 72 | AG26: 100 | AH26: =AG26/2 -> 50 | AI26: =AI27/2 -> 62.5 | AJ26: 20
AA27: 19 | AB27: 2256.994440 | AD27: =AF26*AG22/100 -> 90 | AE27: 19 | AF27: 144 | AG27: 200 | AI27: =AG26*AG22/100 -> 125 | AJ27: 19
AA28: 18 | AB28: 4513.988880 | AD28: =AD27*2 -> 180 | AE28: 18 | AF28: 288 | AG28: 400 | AI28: =AI27*2 -> 250 | AJ28: 18
V29: 北緯 | W29: 緯度 | X29: 経度 | AA29: 17 | AB29: 9027.977761 | AD29: =AD28*2 -> 360 | AE29: 17 | AF29: 576 | AG29: 800 | AI29: =AI28*2 -> 500 | AJ29: 17
V30: 45 | W30: 111131.78 | X30: 78846.3 | AA30: 16 | AB30: 18055.955520 | AD30: 720 | AE30: 16 | AF30: 1152 | AG30: 1600 | AI30: 1000 | AJ30: 16
Q31: 7 | V31: 44 | W31: 111112.24 | X31: 80205.7 | AA31: 15 | AB31: 36111.911040 | AD31: 1440 | AE31: 15 | AF31: 2304 | AG31: 3200 | AI31: 2000 | AJ31: 15
V32: 43 | W32: 111092.74 | X32: 81540.5 | AA32: 14 | AB32: 72223.822090 | AD32: 2880 | AE32: 14 | AF32: 4608 | AG32: 6400 | AI32: 4000 | AJ32: 14
V33: 42 | W33: 111073.29 | X33: 82850.3 | AA33: 13 | AB33: 144447.644200 | AD33: 5760 | AE33: 13 | AF33: 9216 | AG33: 12800 | AI33: 8000 | AJ33: 13
V34: 41 | W34: 111053.91 | X34: 84134.7 | AA34: 12 | AB34: 288895.288400 | AD34: 11520 | AE34: 12 | AF34: 18432 | AG34: 25600 | AI34: 16000 | AJ34: 12
V35: 40 | W35: 111034.63 | X35: 85393.4 | AA35: 11 | AB35: 577790.576700 | AD35: 23040 | AE35: 11 | AF35: 36864 | AG35: 51200 | AI35: 32000 | AJ35: 11
V36: 39 | W36: 111015.49 | X36: 86625.97 | AA36: 10 | AB36: 1155581.153000 | AD36: 46080 | AE36: 10 | AF36: 73728 | AG36: 102400 | AI36: 64000 | AJ36: 10
V37: 38 | W37: 110996.48 | X37: 87832 | AA37: 9 | AB37: 2311162.307000 | AD37: 92160 | AE37: 9 | AF37: 147456 | AG37: 204800 | AI37: 128000 | AJ37: 9
V38: 37 | W38: 110977.65 | X38: 89011.26 | AA38: 8 | AB38: 4622324.614000 | AD38: 184320 | AE38: 8 | AF38: =AF37*2 -> 294912 | AG38: 409600 | AI38: 256000 | AJ38: 8
V39: 36 | W39: 110959.01 | X39: 90163.29 | AA39: 7 | AB39: 9244649.227000 | AD39: 368640 | AE39: 7 | AF39: 589824 | AG39: 819200 | AI39: 512000 | AJ39: 7
V40: 35 | W40: 110940.58 | X40: 91287.79 | AA40: 6 | AB40: 18489298.450000 | AD40: 737280 | AE40: 6 | AF40: 1179648 | AG40: 1638400 | AI40: 1024000 | AJ40: 6
V41: 34 | W41: 110922.4 | X41: 92384.42 | AA41: 5 | AB41: 36978596.910000 | AD41: 1474560 | AE41: 5 | AF41: 2359296 | AG41: 3276800 | AI41: 2048000 | AJ41: 5
V42: 33 | W42: 110904.47 | X42: 93452.86 | AA42: 4 | AB42: 73957193.820000 | AD42: 2949120 | AE42: 4 | AF42: 4718592 | AG42: 6553600 | AI42: 4096000 | AJ42: 4
V43: 32 | W43: 110886.82 | X43: 94492.8 | AA43: 3 | AB43: 147914387.600000 | AD43: 5898240 | AE43: 3 | AF43: 9437184 | AG43: 13107200 | AI43: 8192000 | AJ43: 3
V44: 31 | W44: 110869.48 | X44: 95503.94 | AA44: 2 | AB44: 295828775.300000 | AD44: 11786240 | AE44: 2 | AF44: 18874368 | AG44: 26214400 | AI44: 16619520 | AJ44: 2
V45: 30 | W45: 110852.46 | X45: 96485.97 | AA45: 1 | AB45: 591657550.5 | AD45: 23572480 | AE45: 1 | AF45: 37748736 | AG45: 52428800 | AI45: 33239040 | AJ45: 1
V46: 29 | W46: 110835.78 | X46: 97438.62
V47: 28 | W47: 110819.46 | X47: 98361.59
V48: 27 | W48: 110803.54 | X48: 99254.63
V49: 26 | W49: 110788.01 | X49: 100117.47
V50: 25 | W50: 110772.9 | X50: 100949.86
V51: 24 | W51: 110758.24 | X51: 101751.56

Sheet 設定 (hidden)
A1: 分類 | B1: 所在地 | C1: Map補正 | D1: 移動手段
A2: 01寺 | B2: 01_右京区 | C2: 右 | D2: 車 | G2: 20_奈良県
A3: 02神社 | B3: 02_左京区 | C3: 左 | D3: 徒歩 | G3: 21_大阪府
A4: 03体験施設 | B4: 03_中京区 | C4: 上 | D4: 自転車
A5: 04名所・旧跡 | B5: 04_東山区 | C5: 下
A6: 05その他 | B6: 05_北区
A7: 06場所 | B7: 06_南区
A8: 07ホテル | B8: 07_上京区
A9: 08レンタカー | B9: 08_下京区
A10: 09GS | B10: 09_西京区
A11: 10食事場所駅名 | B11: 10_山科区
B12: 11_伏見区
B13: 12_宇治市
B14: 13_京田辺市
B15: 14_相楽郡
B16: 15_大津市
B17: 16_長岡京市
B18: 17_木津川市
B19: 18_八幡市
B20: 19_亀岡市

Sheet KotoTripPlaceData
A1: Code | B1: 分類 | C1: 施設名 | D1: URL | E1: ふりがな | F1: 拝観料 | G1: 拝観料中学生 | H1: 駐車料 | I1: 拝観開始 | J1: 拝観終了 | K1: 所 在 地 | L1: Mapから | M1: 緯度 | N1: 経度 | O1: Tel | P1: F A X | Q1: 受付まで | R1: 見学時間 | S1: 駐車場へ | T1: ワンポイントガイド | U1: 検索用名 | V1: 住所 | W1: 備考 | X1: 備考2 | Y1: 列1 | Z1: 160
A2: 1001 | B2: 01寺 | C2: 化野念仏寺 | D2: http://www.nenbutsuji.jp/ | E2: あだしのねんぶつじ | F2: 500 | G2: 400 | H2: - | I2: 9:00 | J2: 16:30 | K2: 01_右京区 | L2: 35.026940411485725, 135.66489104350237 | M2: 35.02694041 | N2: 135.664891 | O2: 075 - 861 - 2221 | P2: (075) 881 - 9800 | Q2: 8 | R2: 30 | S2: 7 | T2: 空海が寺を建て、法然が念仏道場にした。無常仏の石塔・石仏。千灯供養が有名。 | U2: 化野念仏寺：あだしのねんぶつじ | V2: 京都市右京区嵯峨鳥居本化野町17 | W2: 12～2月15:30終了 | Y2: 1 | Z2: 1
A3: 1002 | B3: 01寺 | C3: 阿弥陀寺 | D3: https://ja.wikipedia.org/wiki/%E9%98%BF%E5%BC%A5%E9%99%80%E5%AF%BA_(%E4%BA%AC%E9%83%BD%E5%B8%82%E4%B8%8A%E4%BA%AC%E5%8C%BA) | E3: あみだじ | F3: 1000 | G3: 1000 | H3: 無料 | I3: 0:00 | J3: 0:00 | K3: 07_上京区 | L3: 35.03394801730505, 135.76602167187542 | M3: 35.03394802 | N3: 135.7660217 | O3: 075 - 744 - 2048 | P3: 0 | Q3: 8 | R3: 20 | S3: 7 | T3: 阿弥陀如来像(重文)、ミイラ仏安置の石廟。天然記念物指定のカエデ(800余年）。紅葉。 | U3: 阿弥陀寺：あみだじ | V3: 京都市上京区寺町今出川上ル鶴山町14 | W3: 織田信長 | Y3: 1 | Z3: 2
A4: 1003 | B4: 01寺 | C4: 安養寺 | D4: https://kyototravels.com/guideanyoji/#toc2 | E4: あんようじ | F4: 0 | G4: 0 | H4: - | I4: 8:00 | J4: 16:00 | K4: 04_東山区 | L4: 35.003790220967254, 135.78431335756065 | M4: 35.00379022 | N4: 135.7843134 | Q4: 8 | R4: 15 | S4: 7 | T4: 平安時代末期、青蓮院の八世 慈円が仏教界から弾圧を受けた法然、親鸞を庇護し、この地に湧いていた吉水井という名水に由来する吉水草庵を建立。法然、親鸞が浄土念仏の教えを始めた地として著名。慈円による再建時に安養寺という寺名に改称された。 | U4: 安養寺：あんようじ | V4: 京都市東山区八坂鳥居前東入円山町474 | Y4: 1 | Z4: 3
A5: 1004 | B5: 01寺 | C5: 安楽寺 | D5: http://anrakuji-kyoto.com/ | E5: あんらくじ | F5: 500 | G5: 500 | H5: - | I5: 9:30 | J5: 16:30 | K5: 02_左京区 | L5: 35.02159708360718, 135.79664748739341 | M5: 35.02159708 | N5: 135.7966475 | Q5: 8 | R5: 20 | S5: 7 | T5: 安楽寺は、近くにある法然院と同様、鎌倉時代初期に法然の弟子 住蓮と安楽が開いた鹿ヶ谷草庵という念仏道場にはじまる。 | U5: 安楽寺：あんらくじ | V5: 京都市左京区鹿ヶ谷御所ノ段町21 | Y5: 1 | Z5: 4
A6: 1005 | B6: 01寺 | C6: 安楽寿院 | D6: http://www.anraku.or.jp/ | E6: あんらくじゅいん | F6: 0 | G6: 0 | H6: 無料 | I6: 0:00 | J6: 0:00 | K6: 11_伏見区 | L6: 34.952500886128654, 135.75483419865824 | M6: 34.95250089 | N6: 135.7548342 | Q6: 8 | R6: 15 | S6: 7 | T6: 安楽寿院の大師堂は1596年（慶長元年）の大地震によって新御塔が倒壊し、仏像を安置する為に一時しのぎに集められた材料で建立された。なお大師堂は新御塔が復興された以後も勤行堂として現在の場所に移された。 | U6: 安楽寿院：あんらくじゅいん | V6: 京都市伏見区竹田中内畑町74 | Y6: 1 | Z6: 5
A7: 1006 | B7: 01寺 | C7: 石山寺 | D7: https://www.ishiyamadera.or.jp/ | E7: いしやまでら | F7: 600 | G7: 600 | H7: 600 | I7: 8:00 | J7: 16:30 | K7: 15_大津市 | L7: 34.960563322407566, 135.9056685454206 | M7: 34.96056332 | N7: 135.9056685 | O7: 077 - 537 - 0013 | P7: (077) 533 - 0133 | Q7: 8 | R7: 30 | S7: 7 | T7: 西国大13番札所。天平時代創建の古刹。多数の文化財を収め、紫式部ゆかりの寺。 | U7: 石山寺：いしやまでら | V7: 滋賀県大津市石山寺1-1-1 | Y7: 1 | Z7: 6
A8: 1007 | B8: 01寺 | C8: 一休寺（酬恩庵） | D8: http://www.ikkyuji.org/ | E8: いっきゅうじ(しゅうおんあん) | F8: 500 | G8: 500 | H8: 300 | I8: 9:00 | J8: 17:00 | K8: 13_京田辺市 | L8: 34.820954607864145, 135.7575338541507 | M8: 34.82095461 | N8: 135.7575339 | O8: 07746 - 2 - 0193 | P8: (0774) 62 - 5975 | Q8: 8 | R8: 20 | S8: 7 | T8: 室町時代、一休禅師が後半の生涯を送った。枯山水の虎丘庭園と方丈庭園。一休寺納豆。 | U8: 一休寺（酬恩庵）：いっきゅうじ(しゅうおんあん) | V8: 京田辺市薪里ノ内102 | Y8: 1 | Z8: 7
A9: 1008 | B9: 01寺 | C9: 今熊野観音寺 | D9: http://www.kannon.jp/ | E9: いまくまのかんのんじ | F9: 0 | G9: 0 | H9: 無料 | I9: 8:00 | J9: 17:00 | K9: 04_東山区 | L9: 34.97975836709715, 135.78117421587837 | M9: 34.97975837 | N9: 135.7811742 | Q9: 8 | R9: 30 | S9: 7 | T9: 今熊野観音寺の創建年代に関しては諸説ある。一説には弘法大師 空海が平安時代初期にこの地に草庵を建立したのにはじまるという。本尊は空海が熊野権現から授かった観音像を胎内物として自ら彫刻した十一面観世音菩薩である。 | U9: 今熊野観音寺：いまくまのかんのんじ | V9: 京都市東山区泉涌寺山内町32 | Y9: 1 | Z9: 8
A10: 1009 | B10: 01寺 | C10: 引接寺 | D10: http://yenmado.blogspot.com/ | E10: いんじょうじ | F10: 0 | G10: 0 | H10: - | I10: 9:00 | J10: 17:00 | K10: 07_上京区 | L10: 35.035166932972054, 135.74034941215473 | M10: 35.03516693 | N10: 135.7403494 | Q10: 8 | R10: 15 | S10: 7 | T10: 千本閻魔堂は、小野篁が閻魔法王の命を受けて、先祖の霊を現世に迎え供養するために風葬の地である蓮台野に閻魔法王像を祀るお堂を建立。寛仁元年（1017）に延暦寺の定覚が藤原道長の支援を得て引接寺と命名。 | U10: 引接寺：いんじょうじ | V10: 京都市上京区千本通廬山寺上ル閻魔前町34 | Y10: 1 | Z10: 9
A11: 1010 | B11: 01寺 | C11: 雲龍院 | D11: http://www.unryuin.jp/ | E11: うんりゅういん | F11: 400 | G11: 400 | H11: 無料 | I11: 9:00 | J11: 17:00 | K11: 04_東山区 | L11: 34.97721197054526, 135.78019770015396 | M11: 34.97721197 | N11: 135.7801977 | O11: 075 - 541 - 3916 | P11: (075) 551 - 5776 | Q11: 8 | R11: 20 | S11: 7 | T11: 皇室の尊牌を奉安する霊明殿。本堂(重文)は御所の建物で、薬師如来が祀られている。 | U11: 雲龍院：うんりゅういん | V11: 京都市東山区泉涌寺山内町36 | Y11: 1 | Z11: 10
A12: 1011 | B12: 01寺 | C12: 永観堂（禅林寺） | D12: http://www.eikando.or.jp/ | E12: えいかんどう(ぜんりんじ) | F12: 600 | G12: 400 | H12: 無料 | I12: 10:00 | J12: 17:00 | K12: 02_左京区 | L12: 35.01462339646202, 135.79437014782684 | M12: 35.0146234 | N12: 135.7943701 | O12: 075 - 761 - 0007 | P12: (075) 771 - 4243 | Q12: 8 | R12: 20 | S12: 7 | T12: 千百余年の歴史を持つ京都有数の古刹。紅葉の名所。見返り阿弥陀仏(重文）。 | U12: 永観堂（禅林寺）：えいかんどう(ぜんりんじ) | V12: 京都市左京区永観堂町48 | Y12: 1 | Z12: 11
A13: 1012 | B13: 01寺 | C13: 永福寺 | D13: http://www7a.biglobe.ne.jp/~takoyakusido/ | E13: えいふくじ | F13: 0 | G13: 0 | H13: - | I13: 8:00 | J13: 16:30 | K13: 03_中京区 | L13: 35.006214647737295, 135.76730024255315 | M13: 35.00621465 | N13: 135.7673002 | Q13: 8 | R13: 15 | S13: 7 | T13: 僧侶善光は生のタコを買い箱に隠して帰ろうとしたが、善光が本尊の薬師如来に助けを願ったところタコは八軸の経巻へと変化し事なきを得る。病床の母の前で八軸の経巻は再びタコに戻り、この時に放たれた瑠璃光を浴びた母の病も完治したという。 | U13: 永福寺：えいふくじ | V13: 京都市中京区新京極通蛸薬師下ル東側町503 | Y13: 1 | Z13: 12
A14: 1013 | B14: 01寺 | C14: 圓光寺 | D14: https://www.enkouji.jp/ | E14: えんこうじ | F14: 500 | G14: 400 | H14: 無料 | I14: 9:00 | J14: 17:00 | K14: 02_左京区 | L14: 35.04512150484932, 135.79711159364504 | M14: 35.0451215 | N14: 135.7971116 | Q14: 8 | R14: 15 | S14: 7 | T14: 庭園「十牛の庭」は杉苔竹林が美しく、紅葉の季節には赤と緑の見事なコントラストを楽しむことができる。水琴窟の澄んだ音に迎えられ、山から水が注ぎ込む栖龍池の池面に映し出される景色が見事。 | U14: 圓光寺：えんこうじ | V14: 京都市左京区一乗寺小谷町13 | Y14: 1 | Z14: 13
A15: 1014 | B15: 01寺 | C15: 円通寺 | D15: https://ja.wikipedia.org/wiki/%E5%86%86%E9%80%9A%E5%AF%BA_(%E4%BA%AC%E9%83%BD%E5%B8%82%E5%B7%A6%E4%BA%AC%E5%8C%BA) | E15: えんつうじ | F15: 500 | G15: 300 | H15: 無料 | I15: 10:00 | J15: 16:30 | K15: 02_左京区 | L15: 35.064445816113164, 135.76865967704262 | M15: 35.06444582 | N15: 135.7686597 | O15: 075 - 781 - 1875 | P15: 0 | Q15: 8 | R15: 20 | S15: 7 | T15: 比叡山を借景にした枯山水庭園は洛北第一。もとは後水尾天皇の幡枝御殿だった。 | U15: 円通寺：えんつうじ | V15: 京都市左京区岩倉幡技町389 | W15: 12～2月16:00終了 | Y15: 1 | Z15: 14
A16: 1015 | B16: 01寺 | C16: 圓徳院 | D16: https://www.kodaiji.com/entoku-in/index.html | E16: えんとくいん | F16: 500 | G16: 200 | H16: 無料 | I16: 10:00 | J16: 17:00 | K16: 04_東山区 | L16: 35.00080491621715, 135.77969458398536 | M16: 35.00080492 | N16: 135.7796946 | Q16: 8 | R16: 15 | S16: 7 | T16: 圓徳院の北庭は伏見城の化粧御殿の前庭を移築したもの。作庭は賢庭、後に小堀遠州が手を加えているという。巨大な岩をふんだんに配置した迫力のある枯山水庭園として名高い。宝塔の石像を利用した「檜垣の手水鉢」も有名である。 | U16: 圓徳院：えんとくいん | V16: 京都市東山区八坂鳥居前下ル下河原町530 | W16: 駐車場 高台寺駐車場を利用。共通拝観券は2時間駐車無料、圓徳院のみ拝観の場合は1時間駐車無料。 （徒歩１分） | Y16: 1 | Z16: 15
A17: 1016 | B17: 01寺 | C17: 厭離庵 | D17: https://kyototravels.com/guideenrian/#toc10 | E17: えんりあん | F17: 500 | G17: 500 | H17: - | I17: 9:00 | J17: 16:00 | K17: 01_右京区 | L17: 35.022919918446746, 135.67089512938645 | M17: 35.02291992 | N17: 135.6708951 | Q17: 8 | R17: 30 | S17: 7 | T17: 厭離庵は藤原定家の小倉山荘跡と言われ、境内には藤原定家塚や定家が筆洗いに使った「柳の水（柳の井）」がある。なお厭離庵は山岡鉄舟（やまおかてっしゅう）の娘・素心尼が住職になってから尼寺になった。 | U17: 厭離庵：えんりあん | V17: 京都市右京区嵯峨二尊院門前善光寺山町2 | Y17: 1 | Z17: 16
A18: 1017 | B18: 01寺 | C18: 延暦寺（根本中堂） | D18: https://www.hieizan.or.jp/ | E18: えんりゃくじ(こんぽんちゅうどう) | F18: 1000 | G18: 600 | H18: 無料 | I18: 9:00 | J18: 16:00 | K18: 15_大津市 | L18: 35.07046813540282, 135.84111204852502 | M18: 35.07046814 | N18: 135.841112 | O18: 0775 - 78 - 0001 | P18: 0 | Q18: 8 | R18: 30 | S18: 7 | T18: 最澄天台宗本山。総本堂根元中堂の宝前に1200年輝き続ける「不滅の法灯」がある。 | U18: 延暦寺（根本中堂）：えんりゃくじ(こんぽんちゅうどう) | V18: 滋賀県大津市坂本本町4220 | Y18: 1 | Z18: 17
A19: 1018 | B19: 01寺 | C19: 愛宕念仏寺 | D19: https://www.otagiji.com/ | E19: おたぎねんぶつじ | F19: 300 | G19: 0 | H19: 無料 | I19: 8:00 | J19: 16:30 | K19: 01_右京区 | L19: 35.031085676080814, 135.66157605867176 | M19: 35.03108568 | N19: 135.6615761 | Q19: 8 | R19: 20 | S19: 7 | T19: 8 世紀に創建された仏教寺院で、境内には 1,200 体を超える石仏が安置される。 | U19: 愛宕念仏寺：おたぎねんぶつじ | V19: 京都市右京区嵯峨鳥居本深谷町2-5 | Y19: 1 | Z19: 18
A20: 1019 | B20: 01寺 | C20: 乙訓寺 | D20: https://otokunidera.jimdosite.com/ | E20: おとくにでら | F20: 500 | G20: 0 | H20: - | I20: 8:00 | J20: 17:00 | K20: 16_長岡京市 | L20: 34.93635052832602, 135.6890987301207 | M20: 34.93635053 | N20: 135.6890987 | Q20: 8 | R20: 20 | S20: 7 | T20: 継体天皇が弟国宮（おとくにのみや）を築かれたともいわれるこの景勝の地に、推古天皇の勅願を受けた聖徳太子が十一面観世音菩薩を本尊とする伽藍を建立させた。この寺が乙訓寺である。 | U20: 乙訓寺：おとくにでら | V20: 長岡京市今里3丁目14-7 | Y20: 1 | Z20: 19
A21: 1020 | B21: 01寺 | C21: 戒光寺 | D21: https://kyototravels.com/guidekaikoji/ | E21: かいこうじ | F21: 0 | G21: 0 | H21: - | I21: 9:00 | J21: 17:00 | K21: 04_東山区 | L21: 34.98096662617513, 135.77807725569227 | M21: 34.98096663 | N21: 135.7780773 | Q21: 8 | R21: 20 | S21: 7 | T21: 戒光寺は、安貞二年（1228）宋の修行から帰国した浄業が猪熊八条に創建した戒光律寺にはじまる。その後、仏師 運慶・湛慶親子の合作である本尊 釈迦如来像が安置され後堀河天皇の勅願所として皇室、庶民から崇敬を集めた。 | U21: 戒光寺：かいこうじ | V21: 京都市東山区泉涌寺山内町29 | Y21: 1 | Z21: 20
A22: 1021 | B22: 01寺 | C22: 海住山寺 | D22: http://www.kaijyusenji.jp/ | E22: かいじゅうせんじ | F22: 100 | G22: 100 | H22: 無料 | I22: 9:00 | J22: 16:30 | K22: 17_木津川市 | L22: 34.77712612370855, 135.8620629573073 | M22: 34.77712612 | N22: 135.862063 | Q22: 8 | R22: 20 | S22: 7 | T22: 海住山寺は天平七年(735)に聖武天皇の勅願を受けた良弁が創建した藤尾山 観音寺が起源と伝わる。保延三年(1137)に焼失したが、承元二年(1208)に笠置寺の貞慶上人によって再興された。 | U22: 海住山寺：かいじゅうせんじ | V22: 木津川市加茂町例幣海住山20 | Y22: 1 | Z22: 21
A23: 1022 | B23: 01寺 | C23: 海宝寺 | D23: https://kyototravel.info/kaihouji | E23: かいほうじ | F23: 0 | G23: 0 | H23: 無料 | I23: 11:00 | J23: 15:00 | K23: 11_伏見区 | L23: 34.943440309531944, 135.7719168221224 | M23: 34.94344031 | N23: 135.7719168 | Q23: 8 | R23: 20 | S23: 7 | T23: 海宝寺のある場所は以前仙台藩の藩祖・伊達政宗の伏見城上屋敷があった場所で、政宗手植と言われている樹齢約400年の木斛（もっこく）の木が残っている。 | U23: 海宝寺：かいほうじ | V23: 京都市伏見区桃山町正宗20 | Y23: 1 | Z23: 22
A24: 1023 | B24: 01寺 | C24: 覚勝院 | D24: https://www.kakushouin.jp/ | E24: かくしょういん | F24: 1500 | G24: 1500 | H24: - | I24: 10:00 | J24: 16:00 | K24: 01_右京区 | L24: 35.0269726905283, 135.67857100990508 | M24: 35.02697269 | N24: 135.678571 | Q24: 8 | R24: 20 | S24: 7 | T24: 大覚寺総門前に位置し、明冶天皇ご一代のお守り本尊として信仰されている。本堂は正徳元年（1711年）徳川家宣の寄進によるもの。本尊は、十一面観世音菩薩。歓喜天、聖天様も祀られている。大根供養の時のみ一般客も拝観できる。 | U24: 覚勝院：かくしょういん | V24: 京都市右京区嵯峨大覚寺門前登り町2 | W24: 拝観料：大人１人 1,500円（お抹茶、法話、護摩木） | Y24: 1 | Z24: 23
A25: 1024 | B25: 01寺 | C25: 蟹満寺 | D25: https://www.minamiyamashiro-koji.jp/jp/kanimanji/ | E25: かにまんじ | F25: 500 | G25: 200 | H25: 無料 | I25: 8:00 | J25: 16:00 | K25: 17_木津川市 | L25: 34.78638251488971, 135.81587362756798 | M25: 34.78638251 | N25: 135.8158736 | O25: 07748 - 6 - 2577 | P25: (0774) 86 - 5194 | Q25: 8 | R25: 20 | S25: 7 | T25: 「蟹の恩返し」と白鳳時代国宝釈迦如来坐像が有名。足腰痛封じ祈祷の寺。 | U25: 蟹満寺：かにまんじ | V25: 木津川市山城町綺田浜36 | Y25: 1 | Z25: 24
A26: 1025 | B26: 01寺 | C26: 川崎大師笠原寺 | D26: https://ryugennji.com/ | E26: かわさきだいしりゅうげんじ | F26: 8000 | G26: 8000 | H26: 無料 | I26: 10:00 | J26: 16:00 | K26: 10_山科区 | L26: 34.97017178453547, 135.828149581987 | M26: 34.97017178 | N26: 135.8281496 | Q26: 8 | R26: 80 | S26: 7 | T26: 笠原寺では一日尼僧修行を実施。悩める女性達に強く生きる力を持って頂きたいと、笠原寺を開いた尼僧・笠原政江尼が1980年（昭和55年）より始めた。尼僧姿になり静かなお堂で過ごす一日。多忙な日々の生活で見失ってしまったものに気づき、清々しく晴れやかな気持ちで山を下りられることでしょう。 | U26: 川崎大師笠原寺：かわさきだいしりゅうげんじ | V26: 京都市山科区大宅岩屋殿2 | W26: 冥加料 8,000円 女性限定。足袋、腰紐、肌襦袢をお持ち下さい。 | Y26: 1 | Z26: 25
A27: 1026 | B27: 01寺 | C27: 元慶寺 | D27: http://fishaqua.gozaru.jp/kyoto/yamashina/gankeiji/text.htm | E27: がんけいじ | F27: 0 | G27: 0 | H27: 無料 | I27: 8:00 | J27: 17:00 | K27: 10_山科区 | L27: 34.98855374511504, 135.80111591345496 | M27: 34.98855375 | N27: 135.8011159 | Q27: 8 | R27: 20 | S27: 7 | T27: 天台宗。山号は華頂山。西国三十三所観音霊場番外札所。本尊は薬師瑠璃光如来。８６８年、桓武天皇の孫である僧正遍昭が創建。花山天皇はここで出家し法皇となる。 | U27: 元慶寺：がんけいじ | V27: 京都市山科区北花山河原町13 | Y27: 1 | Z27: 26
A28: 1027 | B28: 01寺 | C28: 勧修寺 | D28: https://ja.wikipedia.org/wiki/%E5%8B%A7%E4%BF%AE%E5%AF%BA | E28: かんしゅうじ | F28: 400 | G28: 200 | H28: 無料 | I28: 9:00 | J28: 16:00 | K28: 10_山科区 | L28: 34.961298304498044, 135.80762089846613 | M28: 34.9612983 | N28: 135.8076209 | O28: 075 - 571 - 0048 | P28: (075) 571 - 0272 | Q28: 8 | R28: 20 | S28: 7 | T28: 醍醐天皇創建の真言宗の寺院。庭園は平安時代の面影を伝え、京都市指定の名勝。 | U28: 勧修寺：かんしゅうじ | V28: 京都市山科区勧修寺仁王堂町27-6 | Y28: 1 | Z28: 27
A29: 1028 | B29: 01寺 | C29: 岩船寺 | D29: https://gansenji.or.jp/ | E29: がんせんじ | F29: 500 | G29: 400 | H29: 300 | I29: 8:30 | J29: 17:00 | K29: 17_木津川市 | L29: 34.720142500181105, 135.88587277562777 | M29: 34.7201425 | N29: 135.8858728 | Q29: 8 | R29: 20 | S29: 7 | T29: 岩船寺は、天平元年（729）に聖武天皇の勅命を受けた行基が大和国（奈良市）にある善根寺の境内に建立した阿弥陀堂にはじまるという。また、大同元年（806）に弘法大師 空海とその甥とされる智泉によって建てられた報恩院が直接の起源とする説もある。 | U29: 岩船寺：がんせんじ | V29: 木津川市加茂町岩船上ノ門43 | Y29: 1 | Z29: 28
A30: 1029 | B30: 01寺 | C30: 観智院 | D30: https://toji.or.jp/guide/kanchiin/ | E30: かんちいん | F30: 500 | G30: 300 | H30: 600 | I30: 8:00 | J30: 17:00 | K30: 06_南区 | L30: 34.98279770207093, 135.74788516634746 | M30: 34.9827977 | N30: 135.7478852 | O30: 075 - 691 - 1131 | P30: (075) 662 - 0250 | Q30: 8 | R30: 20 | S30: 7 | T30: 東寺の塔頭。宮本武蔵の襖絵。 | U30: 観智院：かんちいん | V30: 京都市南区九条町403 | Y30: 1 | Z30: 29
A31: 1030 | B31: 01寺 | C31: 祇王寺 | D31: https://www.giouji.or.jp/ | E31: ぎおうじ | F31: 300 | G31: 100 | H31: 無料 | I31: 9:00 | J31: 16:30 | K31: 01_右京区 | L31: 35.02355269385414, 135.66684961246227 | M31: 35.02355269 | N31: 135.6668496 | O31: 075 - 861 - 3574 | P31: (075) 861 - 3574 | Q31: 8 | R31: 15 | S31: 7 | T31: 平家物語の史跡として知られ紅葉の名所。本堂には祇王・祇女をはじめ、清盛の像もある。 | U31: 祇王寺：ぎおうじ | V31: 京都市右京区嵯蛾鳥居本小坂町32 | Y31: 1 | Z31: 30
A32: 1031 | B32: 01寺 | C32: 京都御所 | D32: https://sankan.kunaicho.go.jp/multilingual/kyoto/index.html | E32: きょうとごしょ | F32: 0 | G32: 0 | H32: - | I32: 9:00 | J32: 17:00 | K32: 07_上京区 | L32: 35.02531819519506, 135.7620533595752 | M32: 35.0253182 | N32: 135.7620534 | O32: 075 - 211 - 1211 | P32: 0 | Q32: 8 | R32: 40 | S32: 7 | T32: 1855年に再建された。京都御苑の中にある。5本の白線のある築地塀と溝に囲まれている。 | U32: 京都御所：きょうとごしょ | V32: 京都市上京区京都御苑内 | W32: 申し込みはなくなった | Y32: 1 | Z32: 31
A33: 1032 | B33: 01寺 | C33: 京都霊山護国神社 | D33: http://www.gokoku.or.jp/ | E33: きょうとりょうぜんごこくじんじ | F33: 300 | G33: 200 | H33: - | I33: 9:00 | J33: 17:00 | K33: 04_東山区 | L33: 34.99989970606876, 135.78294922748174 | M33: 34.99989971 | N33: 135.7829492 | Q33: 8 | R33: 20 | S33: 7 | T33: 京都霊山護国神社には、坂本龍馬、中岡慎太郎、高杉晋作、木戸孝允といった幕末の志士約1300人、および大東亜戦争までに亡くなった7万人以上の戦没者が祭神として祀られている。龍馬の命日である11月15日は龍馬祭が催される。 | U33: 京都霊山護国神社：きょうとりょうぜんごこくじんじ | V33: 京都市東山区清閑寺霊山町1 | Y33: 1 | Z33: 32
A34: 1033 | B34: 01寺 | C34: 清水寺 | D34: https://www.kiyomizudera.or.jp/ | E34: きよみずでら | F34: 400 | G34: 200 | H34: - | I34: 6:00 | J34: 18:00 | K34: 04_東山区 | L34: 34.99485627821219, 135.78504468597657 | M34: 34.99485628 | N34: 135.7850447 | O34: 075 - 551 -1234 | P34: (075) 551 -1287 | Q34: 8 | R34: 40 | S34: 7 | T34: 139本の丸柱に支えられている。檜皮茸の屋根/「清水の舞台」/音羽の滝/ | U34: 清水寺：きよみずでら | V34: 京都市東山区清水1丁目294 | Y34: 1 | Z34: 33
A35: 1034 | B35: 01寺 | C35: 清水寺朝倉堂 | D35: https://www.kiyomizudera.or.jp/ | E35: きよみずでらあさくらどう | F35: 400 | G35: 200 | H35: - | I35: 6:00 | J35: 18:00 | K35: 04_東山区 | L35: 34.994880091138626, 135.78458866271347 | M35: 34.99488009 | N35: 135.7845887 | Q35: 8 | R35: 5 | S35: 7 | T35: ～足腰に効く仏足石～ 平氏の侍大将平景清の足形ともいわれているもの。撫でると足腰に効くといわれ、何百年もの長い間、撫で続けられてきたため、石に彫刻されていた釈尊の十一種の妙相文様はほとんど消えてしまっている。 | U35: 清水寺朝倉堂：きよみずでらあさくらどう | V35: 京都市東山区清水1丁目294 | Y35: 1 | Z35: 34
A36: 1035 | B36: 01寺 | C36: 清水寺奥の院 | D36: https://www.kiyomizudera.or.jp/ | E36: きよみずでらおくのいん | F36: 400 | G36: 200 | H36: - | I36: 6:00 | J36: 18:00 | K36: 04_東山区 | L36: 34.99459348609169, 135.78559130182904 | M36: 34.99459349 | N36: 135.7855913 | Q36: 8 | R36: 5 | S36: 7 | T36: 本堂と舞台造の建物で、秘仏本尊の三面千手観音のほか、毘沙門天、地蔵菩薩、二十八部衆、風神・雷神の諸仏が安置されている。 | U36: 清水寺奥の院：きよみずでらおくのいん | V36: 京都市東山区清水1丁目294 | Y36: 1 | Z36: 35
A37: 1036 | B37: 01寺 | C37: 清水寺善光寺堂 | D37: https://www.kiyomizudera.or.jp/ | E37: きよみずでらぜんこうじどう | F37: 0 | G37: 0 | H37: - | I37: 0:00 | J37: 0:00 | K37: 04_東山区 | L37: 34.995735922960904, 135.78300777449337 | M37: 34.99573592 | N37: 135.7830078 | Q37: 8 | R37: 5 | S37: 7 | T37: 清水寺の正門て?ある仁王門の左手前に、地蔵菩薩を本尊する「地蔵堂」として、堂前に六地蔵を並へ?て祀っていたようて?あるか?、やか?て如意輸観音像をあわせ祀って「地蔵院」になった。 | U37: 清水寺善光寺堂：きよみずでらぜんこうじどう | V37: 京都市東山区清水1丁目294 | Y37: 1 | Z37: 36
A38: 1037 | B38: 01寺 | C38: 清水寺泰産寺 | D38: https://www.kiyomizudera.or.jp/ | E38: きよみずでらたいさんじ | F38: 300 | G38: 300 | H38: - | I38: 6:00 | J38: 18:00 | K38: 04_東山区 | L38: 34.99274396033523, 135.784715028429 | M38: 34.99274396 | N38: 135.784715 | Q38: 8 | R38: 15 | S38: 7 | T38: 清水寺の塔頭。｢子安の塔｣と呼ばれる三重塔がある（重要文化財）。元は仁王門下の南側にあったが、明治44年（1911）現在地に移築された。 | U38: 清水寺泰産寺：きよみずでらたいさんじ | V38: 京都市東山区清水1丁目294 | Y38: 1 | Z38: 37
A39: 1038 | B39: 01寺 | C39: 清水寺本堂 | D39: https://www.kiyomizudera.or.jp/ | E39: きよみずでらほんどう | F39: 400 | G39: 200 | H39: - | I39: 6:00 | J39: 18:00 | K39: 04_東山区 | L39: 34.99480116937876, 135.78506217262986 | M39: 34.99480117 | N39: 135.7850622 | Q39: 8 | R39: 10 | S39: 7 | T39: 内々陣には、三基の厨子が置かれ、中央の厨子には本尊の千手観音立像、向かって右側の厨子には毘沙門天立像、左側の厨子には地蔵菩薩立像が安置され、いずれも秘仏とされている。 | U39: 清水寺本堂：きよみずでらほんどう | V39: 京都市東山区清水1丁目294 | Y39: 1 | Z39: 38
A40: 1039 | B40: 01寺 | C40: 金閣寺（鹿苑寺） | D40: https://www.shokoku-ji.jp/kinkakuji/ | E40: きんかくじ | F40: 400 | G40: 300 | H40: 300 | I40: 9:00 | J40: 17:00 | K40: 05_北区 | L40: 35.03946733864142, 135.72923374876868 | M40: 35.03946734 | N40: 135.7292337 | O40: 075 - 461 - 0013 | P40: 0 | Q40: 8 | R40: 30 | S40: 7 | T40: 舎利殿(金閣)が有名なため、庭園は池泉回遊式庭園で、特別史跡及び特別名勝。 | U40: 金閣寺（鹿苑寺）：きんかくじ | V40: 京都市北区金閣寺町1 | Y40: 1 | Z40: 39
A41: 1040 | B41: 01寺 | C41: 銀閣寺（慈照寺） | D41: https://www.shokoku-ji.jp/ginkakuji/ | E41: ぎんかくじ | F41: 500 | G41: 300 | H41: - | I41: 9:00 | J41: 16:30 | K41: 02_左京区 | L41: 35.02726725899505, 135.79820580626333 | M41: 35.02726726 | N41: 135.7982058 | O41: 075 - 771 - 5725 | P41: (075) 771 - 5439 | Q41: 8 | R41: 30 | S41: 7 | T41: 足利義政の山荘跡。東山文化時代の建物である銀閣(観音殿)、東求堂(書院造)は国宝。 | U41: 銀閣寺（慈照寺）：ぎんかくじ | V41: 京都市左京区銀閣寺町2 | Y41: 1 | Z41: 40
A42: 1041 | B42: 01寺 | C42: 空也寺 | D42: https://kyototravel.info/kuuyadou | E42: くうやじ | F42: 300 | G42: 300 | H42: 無料 | I42: 9:00 | J42: 16:00 | K42: 08_下京区 | L42: 35.00122018308506, 135.76732121461936 | M42: 35.00122018 | N42: 135.7673212 | Q42: 8 | R42: 15 | S42: 7 | T42: 天禄3年（972）空也上人が錦小路西洞院に開基。天正年間に現在地に移転した。本尊は阿弥陀三尊、本堂には空也上人像が安置されている。 | U42: 空也寺：くうやじ | V42: 京都市下京区寺町通仏光寺下る東側恵美須之町539 | W42: 空也寺は普段非公開ですが予約すれば拝観可能。 | Y42: 1 | Z42: 41
A43: 1042 | B43: 01寺 | C43: 鞍馬寺 | D43: https://www.kuramadera.or.jp/ | E43: くらまでら | F43: 500 | G43: 500 | H43: - | I43: 9:00 | J43: 16:30 | K43: 02_左京区 | L43: 35.118010136075, 135.7708149195773 | M43: 35.11801014 | N43: 135.7708149 | O43: 075 - 741 -2003 | P43: 0 | Q43: 8 | R43: 40 | S43: 7 | T43: 牛若丸修行の地として知られる。鞍馬山南東に位置し、境内は広く、険しい。 | U43: 鞍馬寺：くらまでら | V43: 京都市左京区鞍馬本町1074 | Y43: 1 | Z43: 42
A44: 1043 | B44: 01寺 | C44: 源光庵 | D44: https://genkouan.or.jp/ | E44: げんこうあん | F44: 400 | G44: 400 | H44: - | I44: 9:00 | J44: 17:00 | K44: 05_北区 | L44: 35.05484155404698, 135.73172111249352 | M44: 35.05484155 | N44: 135.7317211 | O44: 075 - 492 - 1858 | P44: (075) 493 - 5646 | Q44: 8 | R44: 20 | S44: 7 | T44: 入母屋造の本堂にある血天井は伏見城の遺構。丸い「悟りの窓」四角い「迷いの窓｣ | U44: 源光庵：げんこうあん | V44: 京都市北区鷹峯北鷹峯町47 | W44: 2022春拝観開始 | Y44: 1 | Z44: 43
A45: 1044 | B45: 01寺 | C45: 建仁寺 | D45: https://www.kenninji.jp/ | E45: けんにんじ | F45: 600 | G45: 300 | H45: - | I45: 10:00 | J45: 16:30 | K45: 04_東山区 | L45: 35.00030492144818, 135.77388755338913 | M45: 35.00030492 | N45: 135.7738876 | O45: 075 - 561 - 0190 | P45: (075) 561 - 5777 | Q45: 8 | R45: 20 | S45: 7 | T45: 京都最初の禅刹。京都五山の一つ。俵屋宗達の風神雷神図は国宝。 | U45: 建仁寺：けんにんじ | V45: 京都市東山区大和大路四条下小松町584 | W45: 2021拝観休止中 | Y45: 1 | Z45: 44
A46: 1045 | B46: 01寺 | C46: 恋塚浄禅寺 | D46: http://www.kyoto-meguri.com/kyoto-meguri/detail_74.html | E46: こいづかじょうぜんじ | F46: 0 | G46: 0 | H46: 無料 | I46: 9:00 | J46: 17:00 | K46: 06_南区 | L46: 34.95833182934672, 135.74357494073575 | M46: 34.95833183 | N46: 135.7435749 | Q46: 8 | R46: 15 | S46: 7 | T46: 恋塚浄禅寺の見どころの六地蔵めぐりは毎年8月22日・23日に行われている。六地蔵を巡り、お札を受け取って玄関に吊るすと疫病退散・家内安全・福徳招来のご利益がある。 | U46: 恋塚浄禅寺：こいづかじょうぜんじ | V46: 京都市南区上鳥羽岩ノ本町93 | Y46: 1 | Z46: 45
A47: 1046 | B47: 01寺 | C47: 光雲寺 | D47: https://rakudo.jp/ | E47: こううんじ | F47: 600 | G47: 600 | H47: 1000 | I47: 9:00 | J47: 16:00 | K47: 04_東山区 | L47: 35.017003599943244, 135.7952781855089 | M47: 35.0170036 | N47: 135.7952782 | Q47: 8 | R47: 20 | S47: 7 | T47: 光雲寺（山号・霊芝山）は臨済宗大本山南禅寺の境外塔頭で、もと摂津国四天王寺付近にあった。開山は南禅寺と同じく、大明国師（無関普門禅師）で、弘安３年（１２８０）の開創。 | U47: 光雲寺：こううんじ | V47: 京都市東山区南禅寺北ノ坊町５９ | Y47: 1 | Z47: 46
A48: 1047 | B48: 01寺 | C48: 光悦寺 | D48: https://ja.wikipedia.org/wiki/%E5%85%89%E6%82%A6%E5%AF%BA | E48: こうえつじ | F48: 400 | G48: 400 | H48: - | I48: 8:00 | J48: 17:00 | K48: 05_北区 | L48: 35.05311548072851, 135.73025540986038 | M48: 35.05311548 | N48: 135.7302554 | O48: 075 - 491 - 1305 | P48: 0 | Q48: 8 | R48: 15 | S48: 7 | T48: 本阿弥光悦が鷹峰に庵を結んだのが始まり。竹を斜めに組んだ光悦垣。紅葉の名所。 | U48: 光悦寺：こうえつじ | V48: 京都市北区鷹峯光悦町29 | W48: 11/10～13休 | Y48: 1 | Z48: 47
A49: 1048 | B49: 01寺 | C49: 高山寺（石水院） | D49: https://kosanji.com/ | E49: こうさんじ（せきすいいん） | F49: 800 | G49: 800 | H49: 無料 | I49: 8:30 | J49: 17:00 | K49: 01_右京区 | L49: 35.06016203261124, 135.67859172963597 | M49: 35.06016203 | N49: 135.6785917 | O49: 075 - 861 - 4204 | P49: (075) 865 - 1848 | Q49: 8 | R49: 30 | S49: 7 | T49: 石水院・金堂・開山堂・鳥獣戯画など多数の文化財を残す紅葉の名所。 | U49: 高山寺（石水院）：こうさんじ（せきすいいん） | V49: 京都市右京区西院高山寺町18 | W49: 11月のみ有料 | Y49: 1 | Z49: 48
A50: 1049 | B50: 01寺 | C50: 興正寺 | D50: https://www.koshoji.or.jp/ | E50: こうしょうじ | F50: 300 | G50: 300 | H50: 無料 | I50: 9:00 | J50: 16:00 | K50: 08_下京区 | L50: 34.989800913491244, 135.75221457994869 | M50: 34.98980091 | N50: 135.7522146 | Q50: 8 | R50: 20 | S50: 7 | T50: 興正寺は、親鸞聖人（1173~1262）を開祖とする真宗興正派の本山。創建は鎌倉時代。承元の法難（建永の法難）により越後へと配流された親鸞聖人が、勅免後、京都へと一時帰洛して、山科の地に一宇を草創したことに始まる。 | U50: 興正寺：こうしょうじ | V50: 京都市下京区堀川通七条上ル花園町70番地 | Y50: 1 | Z50: 49
A51: 1050 | B51: 01寺 | C51: 興聖寺 | D51: https://www.uji-koushouji.jp/index.html | E51: こうしょうじ | F51: 500 | G51: 300 | H51: 500 | I51: 9:00 | J51: 17:00 | K51: 12_宇治市 | L51: 34.89000041813899, 135.81359786507963 | M51: 34.89000042 | N51: 135.8135979 | Q51: 8 | R51: 30 | S51: 7 | T51: 興聖寺は、宋から帰国した日本曹洞宗の開祖 道元が天福元年（1233）に建仁寺から移り住む際に建立した道場にはじまるという。創建時は伏見の深草にあったが、延暦寺との対立で荒廃し長年に渡り衰退していた。 | U51: 興聖寺：こうしょうじ | V51: 宇治市宇治山田27-1 | Y51: 1 | Z51: 50
A52: 1051 | B52: 01寺 | C52: 高台寺 | D52: https://www.kodaiji.com/ | E52: こうだいじ | F52: 600 | G52: 250 | H52: 600 | I52: 9:00 | J52: 17:30 | K52: 04_東山区 | L52: 35.00055333273841, 135.7812215923775 | M52: 35.00055333 | N52: 135.7812216 | O52: 075 - 561 - 9966 | P52: (075) 561 - 7387 | Q52: 8 | R52: 30 | S52: 7 | T52: 豊臣秀吉の妻ねねが、秀吉の冥福を祈るために創建。桃山美術の華麗さが見られる。 | U52: 高台寺：こうだいじ | V52: 京都市東山区下河原町526 | Y52: 1 | Z52: 51
A53: 1052 | B53: 01寺 | C53: 光明院 | D53: https://komyoin.jp/ | E53: こうみょういん | F53: 300 | G53: 300 | H53: - | I53: 7:00 | J53: 日没 | K53: 04_東山区 | L53: 34.973921362288685, 135.77370451889772 | M53: 34.97392136 | N53: 135.7737045 | Q53: 8 | R53: 20 | S53: 7 | T53: 光明院の枯山水庭園は重森三玲が東福寺の方丈庭園と同時期に作庭したもので「波心の庭（はしんのにわ）」と呼ばれる。滋賀県南郷産の石は一見無秩序に配されているように見えるが、仏様に見立てた三箇所の三尊石組を中心に放射状かつ直線上に置かれている。 | U53: 光明院：こうみょういん | V53: 京都市東山区本町15丁目809 | Y53: 1 | Z53: 52
A54: 1053 | B54: 01寺 | C54: 光明寺 | D54: https://komyo-ji.or.jp/ | E54: こうみょうじ | F54: 0 | G54: 0 | H54: - | I54: 9:00 | J54: 16:00 | K54: 16_長岡京市 | L54: 34.93843784704161, 135.67583818837812 | M54: 34.93843785 | N54: 135.6758382 | Q54: 8 | R54: 20 | S54: 7 | T54: 西山浄土宗の総本山光明寺は、長岡京市西山のふもと、粟生広谷にある。宗祖円光大師法然上人が御歳43歳の時、日本で最初に念仏の産声を上げられた立教開宗の地である。 | U54: 光明寺：こうみょうじ | V54: 長岡京市粟生 | Y54: 1 | Z54: 53
A55: 1054 | B55: 01寺 | C55: 広隆寺 | D55: https://ja.wikipedia.org/wiki/%E5%BA%83%E9%9A%86%E5%AF%BA | E55: こうりゅうじ | F55: 800 | G55: 400 | H55: 無料 | I55: 9:00 | J55: 17:00 | K55: 01_右京区 | L55: 35.014702295710904, 135.70712318779636 | M55: 35.0147023 | N55: 135.7071232 | O55: 075 - 861 - 1461 | P55: (075) 861 - 3928 | Q55: 8 | R55: 20 | S55: 7 | T55: 秦河勝が建立した京都最古の寺院。国宝第1号の弥勒菩薩。各時代の文化財が多数。 | U55: 広隆寺：こうりゅうじ | V55: 京都市右京区太秦蜂岡町32 | W55: 12～2月16:30終了 | Y55: 1 | Z55: 54
A56: 1055 | B56: 01寺 | C56: 金戒光明寺 | D56: https://www.kurodani.jp/ | E56: こんかいこうみょうじ | F56: 0 | G56: 0 | H56: 800 | I56: 9:00 | J56: 16:00 | K56: 02_左京区 | L56: 35.01942962857603, 135.7875109695584 | M56: 35.01942963 | N56: 135.787511 | Q56: 8 | R56: 20 | S56: 7 | T56: 「くろ谷さん」で親しまれる浄土宗大本山。法然上人が初めて草庵を結んだ地で、幕末の京都守護職を務めた会津藩主・松平容保（かたもり）が本陣を構えた寺で、新選組誕生の地。 | U56: 金戒光明寺：こんかいこうみょうじ | V56: 京都市左京区黒谷町121 | Y56: 1 | Z56: 55
A57: 1056 | B57: 01寺 | C57: 金蔵寺 | D57: https://kyototravels.com/guidekonzoji/#toc1 | E57: こんぞうじ | F57: 300 | G57: 300 | H57: 無料 | I57: 8:00 | J57: 17:00 | K57: 09_西京区 | L57: 34.954921198823754, 135.64125382912084 | M57: 34.9549212 | N57: 135.6412538 | Q57: 8 | R57: 15 | S57: 7 | T57: 金蔵寺は養老二年(718)に元正天皇の勅願を受けて隆豊禅師が創建したと伝わる天台宗の古刹。平安京遷都に際し桓武天皇が都の周囲に経塚を築くにあたり、当寺周辺が西の岩倉とされたことが山号 西岩倉山の由来である。 | U57: 金蔵寺：こんぞうじ | V57: 京都市西京区大原野石作町1639 | Y57: 1 | Z57: 56
A58: 1057 | B58: 01寺 | C58: 金地院 | D58: https://kyototravels.com/guidekonchiin/#toc1 | E58: こんちいん | F58: 500 | G58: 500 | H58: - | I58: 8:00 | J58: 17:30 | K58: 02_左京区 | L58: 35.01049184046488, 135.79059989695602 | M58: 35.01049184 | N58: 135.7905999 | Q58: 8 | R58: 15 | S58: 7 | T58: 金地院は応永年間（1394 ? 1428）に足利義持の帰依を受けた大業徳基（たいごうとくき）によって洛北の鷹峯（たかがみね）あたりに創建された。江戸時代初期、南禅寺の以心崇伝によって移転、再興。現在は南禅寺の塔頭寺院の一つである。 | U58: 金地院：こんちいん | V58: 京都市左京区南禅寺福地町86-12 | Y58: 1 | Z58: 57
A59: 1058 | B59: 01寺 | C59: 金福寺 | D59: https://ja.wikipedia.org/wiki/%E9%87%91%E7%A6%8F%E5%AF%BA | E59: こんぷくじ | F59: 500 | G59: 300 | H59: 無料 | I59: 9:00 | J59: 17:00 | K59: 02_左京区 | L59: 35.04235517853242, 135.79513600294 | M59: 35.04235518 | N59: 135.795136 | O59: 075 - 791 - 1666 | P59: (075) 791 - 1666 | Q59: 8 | R59: 30 | S59: 7 | T59: 与謝無村の墓がある。無村が再興した芭蕉庵のある俳句の旧蹟。 | U59: 金福寺：こんぷくじ | V59: 京都市左京区一乗寺才形町20 | W59: 1/16～31,8/5～31休 | Y59: 1 | Z59: 58
A60: 1059 | B60: 01寺 | C60: 西運寺 | D60: http://otera.jodo.or.jp/temple/29-286/ | E60: さいうんじ | F60: 0 | G60: 0 | H60: 無料 | I60: 0:00 | J60: 0:00 | K60: 11_伏見区 | L60: 34.92933777850984, 135.7704646906057 | M60: 34.92933778 | N60: 135.7704647 | Q60: 8 | R60: 15 | S60: 7 | T60: 西運寺の見どころは無料公開されている花器・徳利などのコレクション。 | U60: 西運寺：さいうんじ | V60: 京都市伏見区桃山町泰長老108 | Y60: 1 | Z60: 59
A61: 1060 | B61: 01寺 | C61: 西岸寺 | D61: https://ja.kyoto.travel/tourism/single01.php?category_id=7&tourism_id=300 | E61: さいがんじ | F61: 200 | G61: 200 | H61: - | I61: 9:00 | J61: 16:00 | K61: 11_伏見区 | L61: 34.931852031007004, 135.75932091531968 | M61: 34.93185203 | N61: 135.7593209 | Q61: 8 | R61: 15 | S61: 7 | T61: 西岸寺の見どころは油掛地蔵（油懸地蔵）。油掛地蔵は厚い油に覆われ、黒光りしている。 | U61: 西岸寺：さいがんじ | V61: 京都市伏見区下油掛町898 | Y61: 1 | Z61: 60
A62: 1061 | B62: 01寺 | C62: 西芳寺 | D62: http://saihoji-kokedera.com/top.html | E62: さいほうじ | F62: 3000 | G62: 3000 | H62: - | I62: 10:00 | J62: 13:00 | K62: 09_西京区 | L62: 34.992089605114515, 135.68371367347513 | M62: 34.99208961 | N62: 135.6837137 | Q62: 8 | R62: 90 | S62: 7 | T62: 西芳寺には心字池を中心とした池泉回遊式庭園があり、120種類以上の苔が生育することから苔寺の通称で広く知られている。国の特別名勝庭園の一つであり、また南禅院、天竜寺と並び夢窓疎石作の三名勝史跡庭園にも数えられる。 | U62: 西芳寺：さいほうじ | V62: 京都市西京区松尾神ケ谷町56 | W62: 苔寺の参拝は往復はがき（郵便局、コンビニで購入可能）による事前予約制 | X62: 10:00 | Y62: 1 | Z62: 61
A63: 1062 | B63: 01寺 | C63: 西明寺 | D63: https://www.saimyoji.or.jp/ | E63: さいみょうじ | F63: 500 | G63: 400 | H63: - | I63: 9:00 | J63: 17:00 | K63: 01_右京区 | L63: 35.05710630084773, 135.67496879713346 | M63: 35.0571063 | N63: 135.6749688 | O63: 075 - 861 - 1770 | P63: (075) 861 - 2118 | Q63: 8 | R63: 20 | S63: 7 | T63: 清滝川沿いの槙尾山にあり、紅葉の名所。 | U63: 西明寺：さいみょうじ | V63: 京都市右京区梅ケ畑槇尾町2 | Y63: 1 | Z63: 62
A64: 1063 | B64: 01寺 | C64: 三十三間堂 | D64: http://www.sanjusangendo.jp/ | E64: さんじゅうさんげんどう | F64: 600 | G64: 400 | H64: 無料 | I64: 8:30 | J64: 17:00 | K64: 04_東山区 | L64: 34.9887722268553, 135.7722276163016 | M64: 34.98877223 | N64: 135.7722276 | O64: 075 - 561 - 0467 | P64: (075) 561 - 6698 | Q64: 8 | R64: 20 | S64: 7 | T64: 千手観音像・二十八部衆立像・風神雷神像など、多くの国宝・重文が残されている。 | U64: 三十三間堂：さんじゅうさんげんどう | V64: 京都市東山区三十三間堂廻り町657 | Y64: 1 | Z64: 63
A65: 1064 | B65: 01寺 | C65: 三千院 | D65: http://sanzenin.or.jp/ | E65: さんぜんいん | F65: 700 | G65: 400 | H65: - | I65: 9:00 | J65: 17:00 | K65: 02_左京区 | L65: 35.11973991927686, 135.83440854180424 | M65: 35.11973992 | N65: 135.8344085 | O65: 075 - 744 - 2531 | P65: (075) 744 - 2480 | Q65: 8 | R65: 20 | S65: 7 | T65: 門跡寺院としての風格を備えている。往生極楽院な均整がとれている。 | U65: 三千院：さんぜんいん | V65: 京都市左京区大原来迎院町540 | W65: 11月8:30開始 12～2月16:30終了 | Y65: 1 | Z65: 64
A66: 1065 | B66: 01寺 | C66: 三寳寺 | D66: http://www.sanbouji-kyoto.or.jp/ | E66: さんぽうじ | F66: 500 | G66: 300 | H66: - | I66: 9:00 | J66: 16:00 | K66: 01_右京区 | L66: 35.035172406684346, 135.70121515231443 | M66: 35.03517241 | N66: 135.7012152 | Q66: 8 | R66: 20 | S66: 7 | T66: 三寳寺は寛永5年（1628年）中正院日護上人を御開山に迎え建立された中本山。「金映山妙護国院三寳寺」の号は後水尾天皇より賜った。 | U66: 三寳寺：さんぽうじ | V66: 京都市右京区鳴滝松本町32 | Y66: 1 | Z66: 65
A67: 1066 | B67: 01寺 | C67: 直指庵 | D67: http://www5e.biglobe.ne.jp/~jikisian/ | E67: じきしあん | F67: 500 | G67: 400 | H67: - | I67: 10:00 | J67: 16:00 | K67: 01_右京区 | L67: 35.03350459902571, 135.67718842283332 | M67: 35.0335046 | N67: 135.6771884 | O67: 075 - 871 - 1880 | P67: (075) 862 - 0806 | Q67: 8 | R67: 15 | S67: 7 | T67: 隠元禅師の高弟独照性円が庵を結んだのが始まり。悩める女性の駆け込み寺。 | U67: 直指庵：じきしあん | V67: 京都市右京区北嵯峨北ノ段町3-1 | W67: 11/16～12/8 9:00～16:30 2021拝観休止中 | Y67: 1 | Z67: 66
A68: 1067 | B68: 01寺 | C68: 慈照院 | D68: https://kyototravel.info/jishouin | E68: じしょういん | F68: - | G68: - | H68: - | I68: - | J68: - | K68: 07_上京区 | L68: 35.03514625172363, 135.7597887521893 | M68: 35.03514625 | N68: 135.7597888 | Q68: 8 | R68: 10 | S68: 7 | T68: 慈照院の見どころは桂宮の御学問所だった書院・棲碧軒（せいへきけん）と茶室・頤神室。 | U68: 慈照院：じしょういん | V68: 京都市上京区今出川通烏丸東入相国寺門前町703 | W68: 通常非公開 | Y68: 1 | Z68: 67
A69: 1068 | B69: 01寺 | C69: 詩仙堂 | D69: https://kyoto-shisendo.net/ | E69: しせんどう | F69: 500 | G69: 200 | H69: 500 | I69: 9:00 | J69: 17:00 | K69: 02_左京区 | L69: 35.04376434958217, 135.79612021627537 | M69: 35.04376435 | N69: 135.7961202 | O69: 075 - 781 - 2954 | P69: (075) 721 - 9450 | Q69: 8 | R69: 20 | S69: 7 | T69: 石川丈山が造営した山荘跡。詩仙の間に狩野探幽筆の中国三十六歌仙像が掲げてある。 | U69: 詩仙堂：しせんどう | V69: 京都市左京区一乗寺門口町27 | W69: 5/23は休み 2021拝観休止中 | Y69: 1 | Z69: 68
A70: 1069 | B70: 01寺 | C70: 地蔵院（竹の寺） | D70: http://takenotera-jizoin.jp/ | E70: じぞういん(たけのてら) | F70: 500 | G70: 300 | H70: 無料 | I70: 9:00 | J70: 16:30 | K70: 09_西京区 | L70: 34.99041472333981, 135.6860268375757 | M70: 34.99041472 | N70: 135.6860268 | O70: 075 - 381 - 3417 | P70: 0 | Q70: 8 | R70: 20 | S70: 7 | T70: 方丈庭園は平庭式枯山水庭園。竹の参道が美しいことでも知られる。 | U70: 地蔵院（竹の寺）：じぞういん(たけのてら) | V70: 京都市西京区山田北ノ町23 | X70: 竹林 苔 紅葉 青もみじ 地蔵堂 延命安産地蔵菩薩 枯山水庭園 十六羅漢 庭 | Y70: 1 | Z70: 69
A71: 1070 | B71: 01寺 | C71: 地蔵寺 | D71: https://kyototravel.info/jizouji | E71: じぞうじ | F71: 0 | G71: 0 | H71: 無料 | I71: 9:00 | J71: 17:00 | K71: 09_西京区 | L71: 34.9805594302515, 135.70822399197138 | M71: 34.98055943 | N71: 135.708224 | Q71: 8 | R71: 10 | S71: 7 | T71: 地蔵寺の見どころは六地蔵めぐり。六地蔵めぐりは毎年8月22日・23日に行われている。六地蔵を巡り、お札を受け取って玄関に吊るすと疫病退散・家内安全・福徳招来のご利益があると言われている。 | U71: 地蔵寺：じぞうじ | V71: 京都市西京区桂春日町9 | W71: 通常一般拝観はなし(要事前連絡) | Y71: 1 | Z71: 70
A72: 1071 | B72: 01寺 | C72: 実光院 | D72: https://jikkoin.com/ | E72: じっこういん | F72: 500 | G72: 500 | H72: - | I72: 9:00 | J72: 16:00 | K72: 02_左京区 | L72: 35.12060438504234, 135.83393427076996 | M72: 35.12060439 | N72: 135.8339343 | O72: 075 - 744 - 2537 | P72: (075) 744 - 2537 | Q72: 8 | R72: 20 | S72: 7 | T72: 池泉観賞式の庭の契心園、回遊式の庭がある。庭園には茶室理覚庵。 | U72: 実光院：じっこういん | V72: 京都市左京区大原勝林院町187 | Y72: 1 | Z72: 71
A73: 1072 | B73: 01寺 | C73: 実相院 | D73: http://www.jissoin.com/ | E73: じっそういん | F73: 500 | G73: 250 | H73: 無料 | I73: 9:00 | J73: 17:00 | K73: 02_左京区 | L73: 35.07890497949485, 135.78158881352363 | M73: 35.07890498 | N73: 135.7815888 | O73: 075 - 781 - 5464 | P73: (075) 781 - 5464 | Q73: 8 | R73: 20 | S73: 7 | T73: 承秋門院の宮殿を移した本堂・書院等。狩野派の襖絵なども多い。 | U73: 実相院：じっそういん | V73: 京都市左京区岩倉上蔵町121 | Y73: 1 | Z73: 72
A74: 1073 | B74: 01寺 | C74: 寂光院 | D74: http://www.jakkoin.jp/ | E74: じゃっこういん | F74: 600 | G74: 350 | H74: 無料 | I74: 9:00 | J74: 17:00 | K74: 02_左京区 | L74: 35.12403469954441, 135.82105368332168 | M74: 35.1240347 | N74: 135.8210537 | O74: 075 - 744 - 3341 | P74: (075) 744 - 3341 | Q74: 8 | R74: 20 | S74: 7 | T74: 聖徳太子創建を伝えられる天台宗の尼寺。建礼門院が平家一門の菩提を | U74: 寂光院：じゃっこういん | V74: 京都市左京区大原草生町676 | W74: 12月～2月 9:00～16:30 ※1月1日～3日は10:00～16:00 | Y74: 1 | Z74: 73
A75: 1074 | B75: 01寺 | C75: 寂光寺 | D75: https://ja.wikipedia.org/wiki/%E5%AF%82%E5%85%89%E5%AF%BA | E75: じゃっこうじ | F75: 0 | G75: 0 | H75: 無料 | I75: 9:00 | J75: 16:30 | K75: 02_左京区 | L75: 35.01113258103903, 135.77735876350582 | M75: 35.01113258 | N75: 135.7773588 | Q75: 8 | R75: 20 | S75: 7 | T75: 1578年、日淵により創建され、移転、火災などを経て今の寺地で再興。二世の算砂日海は囲碁の名手で、信長、秀吉や家康の指南役も務めたという。囲碁に関する貴重な資料や碁石、碁盤など数多く残している。（要予約） | U75: 寂光寺：じゃっこうじ | V75: 京都市左京区仁王門通東大路西入北門前町469 | Y75: 1 | Z75: 74
A76: 1075 | B76: 01寺 | C76: 十輪寺（なりひらでら） | D76: http://narihiratera.seesaa.net/ | E76: じゅうりんじ(なりひらでら) | F76: 400 | G76: 400 | H76: 無料 | I76: 9:00 | J76: 17:00 | K76: 09_西京区 | L76: 34.94438234062468, 135.65720891691544 | M76: 34.94438234 | N76: 135.6572089 | O76: 075 - 331 - 0154 | P76: (075) 331 - 0154 | Q76: 8 | R76: 30 | S76: 7 | T76: 在原業平隠棲の寺として知られる。境内になりひらの墓、塩がまの跡がある。 | U76: 十輪寺（なりひらでら）：じゅうりんじ(なりひらでら) | V76: 京都市西京区大原野小塩町481 | Y76: 1 | Z76: 75
A77: 1076 | B77: 01寺 | C77: 寿延寺 | D77: https://ja.kyoto.travel/tourism/single01.php?category_id=7&tourism_id=590 | E77: じゅえんじ | F77: 0 | G77: 0 | H77: - | I77: 0:00 | J77: 0:00 | K77: 04_東山区 | L77: 34.99846733767808, 135.7711864006491 | M77: 34.99846734 | N77: 135.7711864 | Q77: 8 | R77: 10 | S77: 7 | T77: 観光寺院ではない。参詣自由。 | U77: 寿延寺：じゅえんじ | V77: 京都市東山区大黒町通松原下る北御門町254 | Y77: 1 | Z77: 76
A78: 1077 | B78: 01寺 | C78: 正運寺 | D78: http://fishaqua.gozaru.jp/kyoto/nakagyo/syounji/text.htm | E78: しょううんじ | F78: 0 | G78: 0 | H78: 無料 | I78: 9:00 | J78: 16:00 | K78: 03_中京区 | L78: 35.006327185152, 135.74821764133128 | M78: 35.00632719 | N78: 135.7482176 | Q78: 8 | R78: 20 | S78: 7 | T78: 正運寺の見どころは十一面観音菩薩像。十一面観音菩薩像は奈良・長谷寺の本尊と同木と言われている。 | U78: 正運寺：しょううんじ | V78: 京都市中京区蛸薬師通大宮西入因幡町112 | Y78: 1 | Z78: 77
A79: 1078 | B79: 01寺 | C79: 正覚寺 | D79: https://kyototravel.info/shoukakuji | E79: しょうかくじ | F79: 0 | G79: 0 | H79: - | I79: 0:00 | J79: 0:00 | K79: 01_右京区 | L79: 35.01786787563582, 135.67188980409634 | M79: 35.01786788 | N79: 135.6718898 | Q79: 8 | R79: 10 | S79: 7 | T79: 見どころは弁天堂にが祀られている白蛇弁財天。白蛇弁財天は弘法大師・空海が一刀三礼して自刻したと言われ、数度の火災にも焼失を免れている。 | U79: 正覚寺：しょうかくじ | V79: 京都市右京区嵯峨野々宮町12 | Y79: 1 | Z79: 78
A80: 1079 | B80: 01寺 | C80: 城興寺 | D80: https://fishaqua.gozaru.jp/kyoto/minami/jyokoji/text.htm | E80: じょうこうじ | F80: 0 | G80: 0 | H80: - | I80: 9:00 | J80: 16:30 | K80: 06_南区 | L80: 34.98009005356659, 135.7590537569144 | M80: 34.98009005 | N80: 135.7590538 | Q80: 8 | R80: 15 | S80: 7 | T80: 城興寺の見どころは慈覚大師（じかくだいし）・円仁（えんにん）作と言われている千手観音を安置する本堂（観音堂）。 | U80: 城興寺：じょうこうじ | V80: 京都市南区東九条烏丸町7-1 | Y80: 1 | Z80: 79
A81: 1080 | B81: 01寺 | C81: 相国寺 | D81: https://www.shokoku-ji.jp/ | E81: しょうこくじ | F81: 800 | G81: 700 | H81: - | I81: 10:00 | J81: 16:00 | K81: 07_上京区 | L81: 35.032113270992475, 135.76197329318333 | M81: 35.03211327 | N81: 135.7619733 | O81: 075 - 231 - 0301 | P81: (072) 212 - 3591 | Q81: 8 | R81: 30 | S81: 7 | T81: 臨済宗相国寺派の大本山で、夢窓国師を開山として、足利義満が建立した。 | U81: 相国寺：しょうこくじ | V81: 京都市上京区今出川通烏丸東入相国寺門前町701 | Y81: 1 | Z81: 80
A82: 1081 | B82: 01寺 | C82: しょうざん庭園 | D82: https://www.shozan.co.jp/sansaku/index.html | E82: しょうざん | F82: 500 | G82: 500 | H82: - | I82: 9:00 | J82: 17:00 | K82: 05_北区 | L82: 35.04846224906857, 135.7344173844706 | M82: 35.04846225 | N82: 135.7344174 | O82: 075 - 491 - 5101 | P82: (075) 495 - 2089 | Q82: 8 | R82: 30 | S82: 7 | T82: 約35000坪、北庭と南庭に分かれ、一般には味わえない秘園。 | U82: しょうざん庭園：しょうざん | V82: 京都市北区衣笠鏡石町47 | Y82: 1 | Z82: 81
A83: 1082 | B83: 01寺 | C83: 勝持寺（花の寺） | D83: http://www.shoujiji.jp/ | E83: しょうじじ(はなのてら) | F83: 400 | G83: 300 | H83: 無料 | I83: 9:30 | J83: 16:30 | K83: 09_西京区 | L83: 34.96072686736171, 135.65170825877567 | M83: 34.96072687 | N83: 135.6517083 | O83: 075 - 331 - 0601 | P83: (075) 331 - 0664 | Q83: 8 | R83: 20 | S83: 7 | T83: 春は全山桜に埋まる。西行法師が出家して庵を結んだと伝える。 | U83: 勝持寺（花の寺）：しょうじじ(はなのてら) | V83: 京都市西京区大原野南春日町1194 | X83: 2月は拝観休止 | Y83: 1 | Z83: 82
A84: 1083 | B84: 01寺 | C84: 常寂光寺 | D84: https://www.jojakko-ji.or.jp/ | E84: じょうじゃっこうじ | F84: 500 | G84: 500 | H84: - | I84: 9:00 | J84: 17:00 | K84: 01_右京区 | L84: 35.01960227387199, 135.66895512820727 | M84: 35.01960227 | N84: 135.6689551 | O84: 075 - 861 - 0435 | P84: (075) 862 - 0109 | Q84: 8 | R84: 20 | S84: 7 | T84: 藤原定家の時雨亭跡は小倉百人一首で有名。多宝塔(重文）の他寺宝がある。 | U84: 常寂光寺：じょうじゃっこうじ | V84: 京都市右京区嵯峨小倉山小倉町3 | Y84: 1 | Z84: 83
A85: 1084 | B85: 01寺 | C85: 常照寺 | D85: https://ja.wikipedia.org/wiki/%E5%B8%B8%E7%85%A7%E5%AF%BA_(%E4%BA%AC%E9%83%BD%E5%B8%82) | E85: じょうしょうじ | F85: 300 | G85: 300 | H85: - | I85: 8:30 | J85: 17:00 | K85: 05_北区 | L85: 35.05548881310936, 135.73264614110843 | M85: 35.05548881 | N85: 135.7326461 | O85: 075 - 492 - 6775 | P85: (075) 492 - 1727 | Q85: 8 | R85: 20 | S85: 7 | T85: 正面の赤門は吉野太夫が寄進したことで有名。 | U85: 常照寺：じょうしょうじ | V85: 京都市北区鷹峰北鷹峰町1 | Y85: 1 | Z85: 84
A86: 1085 | B86: 01寺 | C86: 上善寺 | D86: http://fishaqua.gozaru.jp/kyoto/kita/kuramaguchijizo/text.htm | E86: じょうぜんじ | F86: 0 | G86: 0 | H86: - | I86: 9:00 | J86: 16:00 | K86: 05_北区 | L86: 35.03020373886842, 135.7419721011378 | M86: 35.03020374 | N86: 135.7419721 | Q86: 8 | R86: 15 | S86: 7 | T86: 地蔵堂に安置する地蔵菩薩は、六地蔵の一つと伝えられ、俗に、「深泥池地蔵」、又は、「鞍馬口地蔵」とも呼ばれている。 | U86: 上善寺：じょうぜんじ | V86: 京都市北区鞍馬口通寺町東入ル上善寺門前町338 | Y86: 1 | Z86: 85
A87: 1086 | B87: 01寺 | C87: 正伝寺 | D87: http://shodenji-kyoto.jp/ | E87: しょうでんじ | F87: 400 | G87: 300 | H87: 無料 | I87: 9:00 | J87: 17:00 | K87: 05_北区 | L87: 35.062357497362676, 135.73685401247005 | M87: 35.0623575 | N87: 135.736854 | O87: 075 - 491 - 3259 | P87: 0 | Q87: 8 | R87: 20 | S87: 7 | T87: 白砂にツツジの刈り込みを配した庭は「獅子の児渡し｣と呼ばれる。 | U87: 正伝寺：しょうでんじ | V87: 京都市北区西賀茂北鎮守庵町72 | Y87: 1 | Z87: 86
A88: 1087 | B88: 01寺 | C88: 上徳寺 | D88: https://www.marutake-ebisu.com/temple/jyotoku-ji.html | E88: じょうとくじ | F88: 0 | G88: 0 | H88: - | I88: 9:00 | J88: 16:00 | K88: 08_下京区 | L88: 34.99552345435767, 135.76400937651047 | M88: 34.99552345 | N88: 135.7640094 | Q88: 8 | R88: 15 | S88: 7 | T88: 上徳寺の見どころは世継地蔵。子供が欲しい方は祈願するのもいいかもしれません。 | U88: 上徳寺：じょうとくじ | V88: 京都市下京区富小路通五条下ル本塩竈町556 | Y88: 1 | Z88: 87
A89: 1088 | B89: 01寺 | C89: 称念寺 | D89: http://nekodera.net/ | E89: しょうねんじ | F89: 0 | G89: 0 | H89: 無料 | I89: 9:00 | J89: 16:00 | K89: 07_上京区 | L89: 35.03467046437952, 135.74431461963962 | M89: 35.03467046 | N89: 135.7443146 | Q89: 8 | R89: 10 | S89: 7 | T89: 1606年（慶長11）獄誉上人が浄土宗（総本山知恩院）に属す松平信吉公の帰依をえて創建。猫をかわいがった第3世還誉上人のころの「猫の報恩」の伝説が猫寺の由来。 | U89: 称念寺：しょうねんじ | V89: 京都市上京区寺之内通浄福寺西入上ル西熊町275 | Y89: 1 | Z89: 88
A90: 1089 | B90: 01寺 | C90: 浄福寺 | D90: https://kyototravel.info/jyoufukuji | E90: じょうふくじ | F90: 0 | G90: 0 | H90: - | I90: 0:00 | J90: 0:00 | K90: 07_上京区 | L90: 35.027528083035385, 135.74423352023683 | M90: 35.02752808 | N90: 135.7442335 | Q90: 8 | R90: 10 | S90: 7 | T90: 浄福寺の見どころは京都市指定文化財の本堂・釈迦堂・書院・鐘楼。 | U90: 浄福寺：じょうふくじ | V90: 京都市上京区浄福寺通一条上る笹屋町2丁目 | Y90: 1 | Z90: 89
A91: 1090 | B91: 01寺 | C91: 正法寺 | D91: https://www.kyoto-shoboji.com/ | E91: しょうぼうじ | F91: 300 | G91: 300 | H91: 無料 | I91: 9:00 | J91: 17:00 | K91: 09_西京区 | L91: 34.95697230189879, 135.65559284039725 | M91: 34.9569723 | N91: 135.6555928 | Q91: 8 | R91: 50 | S91: 7 | T91: 正法寺の宝生殿南側にある「宝生苑」は、十六種類の石が動物の形に似ていることから「鳥獣の石庭」の別名でも呼ばれる山水庭園。京都市街の奥に見える東山三十六峰を景色に取り入れた借景庭園になっており、春には紅枝垂れ桜が色を添える。 | U91: 正法寺：しょうぼうじ | V91: 京都市西京区大原野春日町1102 | Y91: 1 | Z91: 90
A92: 1091 | B92: 01寺 | C92: 上品蓮台寺 | D92: https://ja.kyoto.travel/tourism/single02.php?category_id=9&tourism_id=24 | E92: じょうぼんれんだいじ | F92: 0 | G92: 0 | H92: - | I92: 9:00 | J92: 17:00 | K92: 05_北区 | L92: 35.037957859675465, 135.73896627813068 | M92: 35.03795786 | N92: 135.7389663 | Q92: 8 | R92: 15 | S92: 7 | T92: 上品蓮台寺の見どころは重要文化財である山門と大師堂。また上品蓮台寺は桜の名所の為、しだれ桜も見どころ。 | U92: 上品蓮台寺：じょうぼんれんだいじ | V92: 京都市北区紫野十二坊町33-1 | Y92: 1 | Z92: 91
A93: 1092 | B93: 01寺 | C93: 勝林院 | D93: https://www.25reijo.jp/reijo/21.php | E93: しょうりんいん | F93: 500 | G93: 300 | H93: - | I93: 9:00 | J93: 16:30 | K93: 02_左京区 | L93: 35.12120651021965, 135.8345589067534 | M93: 35.12120651 | N93: 135.8345589 | O93: 075 - 744 - 2537 | P93: (075) 744 - 2537 | Q93: 8 | R93: 20 | S93: 7 | T93: 慈覚大師の開創といわれる延暦寺の別院。法然上人らの「大原問答」の地として知られる。 | U93: 勝林院：しょうりんいん | V93: 京都市左京区大原勝林院町187 | Y93: 1 | Z93: 92
A94: 1093 | B94: 01寺 | C94: 常林寺 | D94: https://kyototravel.info/jyourinji | E94: じょうりんじ | F94: 0 | G94: 0 | H94: 無料 | I94: 9:00 | J94: 16:00 | K94: 02_左京区 | L94: 35.02946671345859, 135.77311427792336 | M94: 35.02946671 | N94: 135.7731143 | Q94: 8 | R94: 20 | S94: 7 | T94: 常林寺の境内は砂が多く、萩がよく育ちやすく、初秋には萩の花が咲き乱れることから「萩の寺」と言われています。なお常林寺は若い頃の勝海舟の常宿だったそうです。 | U94: 常林寺：じょうりんじ | V94: 京都市左京区川端通今出川上ル田中下柳町33 | Y94: 1 | Z94: 93
A95: 1094 | B95: 01寺 | C95: 浄瑠璃寺 | D95: https://ja.wikipedia.org/wiki/%E6%B5%84%E7%91%A0%E7%92%83%E5%AF%BA | E95: じょうるりじ | F95: 400 | G95: 400 | H95: 300 | I95: 9:00 | J95: 17:00 | K95: 17_木津川市 | L95: 34.71551333033139, 135.8729681312519 | M95: 34.71551333 | N95: 135.8729681 | O95: 0774 - 76 - 2390 | P95: 0 | Q95: 8 | R95: 20 | S95: 7 | T95: 三重塔など国宝４件、薬師如来像など重要文化財9件を有する。 | U95: 浄瑠璃寺：じょうるりじ | V95: 木津川市加茂町西小 | W95: 12月～2月 10:00～16:00 | Y95: 1 | Z95: 94
A96: 1095 | B96: 01寺 | C96: 青蓮院 | D96: http://www.shorenin.com/ | E96: しょうれんいん | F96: 500 | G96: 400 | H96: 無料 | I96: 9:00 | J96: 17:00 | K96: 04_東山区 | L96: 35.007142395736444, 135.7831829152698 | M96: 35.0071424 | N96: 135.7831829 | O96: 075 - 561 - 2345 | P96: (075) 561 - 0383 | Q96: 8 | R96: 20 | S96: 7 | T96: 栗田御所。優美な池泉回遊式庭園や住吉貝慶作の「浜松図」等。 | U96: 青蓮院：しょうれんいん | V96: 京都市東山区粟田口三条坊町69-1 | Y96: 1 | Z96: 95
A97: 1096 | B97: 01寺 | C97: 神護寺 | D97: http://www.jingoji.or.jp/ | E97: じんごじ | F97: 600 | G97: 600 | H97: 500 | I97: 9:00 | J97: 16:00 | K97: 01_右京区 | L97: 35.055027719137094, 135.67109960292967 | M97: 35.05502772 | N97: 135.6710996 | O97: 075 - 861 - 1769 | P97: (075) 861 - 1769 | Q97: 8 | R97: 40 | S97: 7 | T97: 和気清麻呂が開基。弘法大師が長年住持し真言密教の寺となる。本尊｢薬師如来｣ | U97: 神護寺：じんごじ | V97: 京都市右京区梅ケ畑高雄町５ | Y97: 1 | Z97: 96
A98: 1097 | B98: 01寺 | C98: 真如堂（真正極楽寺） | D98: https://shin-nyo-do.jp/ | E98: しんにょどう（しんしょうごくらくじ） | F98: 500 | G98: 400 | H98: - | I98: 9:00 | J98: 16:00 | K98: 02_左京区 | L98: 35.021454861745674, 135.78924810967624 | M98: 35.02145486 | N98: 135.7892481 | O98: 075 - 771 - 0915 | P98: (075) 771 - 1823 | Q98: 8 | R98: 30 | S98: 7 | T98: 正式には、真正極楽寺という。広い境内には本堂、三重塔、観音堂などが立ち並ぶ。 | U98: 真如堂（真正極楽寺）：しんにょどう（しんしょうごくらくじ） | V98: 京都市左京区浄土寺真如町82 | Y98: 1 | Z98: 97
A99: 1098 | B99: 01寺 | C99: 新長谷寺 | D99: https://kyototravel.info/shinhasedera | E99: しんはせでら | F99: 0 | G99: 0 | H99: 無料 | I99: 9:00 | J99: 16:00 | K99: 02_左京区 | L99: 35.02191761442686, 135.789269304169 | M99: 35.02191761 | N99: 135.7892693 | Q99: 8 | R99: 20 | S99: 7 | T99: 平安時代、九条家の祖と言われる藤原山蔭卿の開基。本尊は十一面観音。 山蔭卿の信仰が厚い長谷寺十一面観音を模刻造像。吉田山は旧来神楽岡と呼ばれ、仏法有縁の霊地。 山蔭卿が邸宅を構え、そこに新長谷寺を建立。明治時代、真如堂境内に移転。 | U99: 新長谷寺：しんはせでら | V99: 京都市左京区浄土寺真如町82 | W99: 要予約 | Y99: 1 | Z99: 98
A100: 1099 | B100: 01寺 | C100: 瑞光寺 | D100: https://zuikouji.jiin.com/ | E100: ずいこうじ | F100: 0 | G100: 0 | H100: 無料 | I100: 9:00 | J100: 16:00 | K100: 11_伏見区 | L100: 34.96135632363072, 135.77490374461144 | M100: 34.96135632 | N100: 135.7749037 | Q100: 8 | R100: 15 | S100: 7 | T100: 瑞光寺の見どころは三十番神社。三十番神社は旧極楽寺薬師堂に番神山としてあったもの。 | U100: 瑞光寺：ずいこうじ | V100: 京都市伏見区深草坊町４ | Y100: 1 | Z100: 99
A101: 1100 | B101: 01寺 | C101: 随心院 | D101: https://www.zuishinin.or.jp/ | E101: ずいしんいん | F101: 500 | G101: 300 | H101: 無料 | I101: 9:00 | J101: 17:00 | K101: 10_山科区 | L101: 34.95933638198363, 135.81599429916358 | M101: 34.95933638 | N101: 135.8159943 | O101: 075 - 571 - 0025 | P101: (075) 572 - 3690 | Q101: 8 | R101: 20 | S101: 7 | T101: 小野小町邸跡ともいわれ、化粧井・化粧橋・文塚など、小町ゆかりの史跡も数多い。 | U101: 随心院：ずいしんいん | V101: 京都市山科区小野御霊町35 | Y101: 1 | Z101: 100
A102: 1101 | B102: 01寺 | C102: 瑞泉寺 | D102: http://zuisenji-temple.net/seeandaccess | E102: ずいせんじ | F102: 0 | G102: 0 | H102: - | I102: 7:00 | J102: 17:00 | K102: 03_中京区 | L102: 35.00850888248332, 135.77095276889398 | M102: 35.00850888 | N102: 135.7709528 | Q102: 8 | R102: 15 | S102: 7 | T102: 瑞泉寺の見どころは豊臣秀次の墓石。安土桃山時代に思いをはせながら手を合わせるのもいいかもしれない。 | U102: 瑞泉寺：ずいせんじ | V102: 京都市中京区木屋町通三条下ル石屋町114 | Y102: 1 | Z102: 101
A103: 1102 | B103: 01寺 | C103: 華厳寺（鈴虫寺） | D103: https://www.suzutera.or.jp/ | E103: すずむしでら(けごんじ) | F103: 500 | G103: 300 | H103: 無料 | I103: 9:00 | J103: 17:00 | K103: 09_西京区 | L103: 34.993629314409596, 135.6850163418336 | M103: 34.99362931 | N103: 135.6850163 | O103: 075 - 381 - 3830 | P103: (075) 381 - 3841 | Q103: 8 | R103: 30 | S103: 7 | T103: 年間を通じて鈴虫の鳴き声が楽しめる。 | U103: 華厳寺（鈴虫寺）：すずむしでら(けごんじ) | V103: 京都市西京区松室地家町31 | Y103: 1 | Z103: 102
A104: 1103 | B104: 01寺 | C104: 誓願寺 | D104: https://www.fukakusa.or.jp/ | E104: せいがんじ | F104: 0 | G104: 0 | H104: 無料 | I104: 9:00 | J104: 17:00 | K104: 03_中京区 | L104: 35.007349189720216, 135.76750071399104 | M104: 35.00734919 | N104: 135.7675007 | Q104: 8 | R104: 15 | S104: 7 | T104: 世阿弥作と伝わる謡曲「誓願寺」の中で、当寺で往生した和泉式部は歌舞の菩薩として描かれている。このことから次第に舞踊家によって信仰され、芸道上達のために扇子が奉納されるようになったという。 | U104: 誓願寺：せいがんじ | V104: 京都市中京区新京極通三条下ル桜之町453 | Y104: 1 | Z104: 103
A105: 1104 | B105: 01寺 | C105: 青龍寺 | D105: https://kyototravel.info/seiryuuji | E105: せいりゅうじ | F105: 0 | G105: 0 | H105: - | I105: 9:00 | J105: 16:00 | K105: 04_東山区 | L105: 34.999112658493424, 135.77940097518888 | M105: 34.99911266 | N105: 135.779401 | Q105: 8 | R105: 15 | S105: 7 | T105: 見どころは本堂前の念仏石。念仏石は隕石と言われている。なお小さい方の石は本堂内に保存されている。 | U105: 青龍寺：せいりゅうじ | V105: 京都市東山区下河原通八坂鳥居前下ル3丁目南町411 | Y105: 1 | Z105: 104
A106: 1105 | B106: 01寺 | C106: 清凉寺（嵯峨釈迦堂） | D106: http://seiryoji.or.jp/ | E106: せいりょうじ | F106: 400 | G106: 300 | H106: 800 | I106: 9:00 | J106: 16:00 | K106: 01_右京区 | L106: 35.023068009453176, 135.6745152898004 | M106: 35.02306801 | N106: 135.6745153 | O106: 075 - 861 - 0343 | P106: (075) 861 - 0310 | Q106: 8 | R106: 20 | S106: 7 | T106: 国宝釈迦如来立像を本尊とする浄土宗の古刹。 | U106: 清凉寺（嵯峨釈迦堂）：せいりょうじ | V106: 京都市右京区嵯峨釈迦堂藤ノ木町46 | Y106: 1 | Z106: 105
A107: 1106 | B107: 01寺 | C107: 清和院 | D107: https://rakuyo33.jp/seiwain/ | E107: せいわいん | F107: 0 | G107: 0 | H107: - | I107: 9:00 | J107: 16:00 | K107: 07_上京区 | L107: 35.02739100730621, 135.73961633215333 | M107: 35.02739101 | N107: 135.7396163 | Q107: 8 | R107: 15 | S107: 7 | T107: 清和院の見どころは木造地蔵菩薩立像。なお弘法大師・空海作と言われている木造聖観音立像（河崎観音）は現在九州国立博物館に所蔵されている。 | U107: 清和院：せいわいん | V107: 京都市上京区七本松通一条上る一観音町428-1 | Y107: 1 | Z107: 106
A108: 1107 | B108: 01寺 | C108: 石峰寺 | D108: https://www.sekihoji.com/ | E108: せきぼうじ | F108: 300 | G108: 200 | H108: 無料 | I108: 9:00 | J108: 16:00 | K108: 11_伏見区 | L108: 34.964658635001, 135.7750512013057 | M108: 34.96465864 | N108: 135.7750512 | O108: 075 - 641 - 0792 | P108: (075) 641 - 0792 | Q108: 8 | R108: 20 | S108: 7 | T108: 竜宮造りの赤門、本堂などがある。本堂裏山には、寛政の頃の五百羅漢の石仏がある。 | U108: 石峰寺：せきぼうじ | V108: 京都市伏見区深草石峰寺山町 | Y108: 1 | Z108: 107
A109: 1108 | B109: 01寺 | C109: 泉涌寺 | D109: https://www.mitera.org/ | E109: せんにゅうじ | F109: 500 | G109: 300 | H109: - | I109: 9:00 | J109: 16:30 | K109: 04_東山区 | L109: 34.97801361810488, 135.78052680271517 | M109: 34.97801362 | N109: 135.7805268 | O109: 075 - 561 - 1551 | P109: (075) 551 - 2788 | Q109: 8 | R109: 20 | S109: 7 | T109: 真言宗泉涌寺派の総本山。皇室の菩提寺。観音堂には、楊貴妃観音菩薩を祭っている。 | U109: 泉涌寺：せんにゅうじ | V109: 京都市東山区泉涌寺山内町27 | Y109: 1 | Z109: 108
A110: 1109 | B110: 01寺 | C110: 善能寺 | D110: https://www.jisyameguri.com/kyoto2/zennouji/ | E110: ぜんのうじ | F110: 0 | G110: 0 | H110: 無料 | I110: 0:00 | J110: 16:30 | K110: 04_東山区 | L110: 34.97866497295894, 135.77988653683445 | M110: 34.97866497 | N110: 135.7798865 | Q110: 8 | R110: 15 | S110: 7 | T110: 善能寺は、もと八条油小路にあって二階観音堂と言ったか?、弘仁十四年(八二三)弘法大師か?稲荷大明神を祀る寺として善能寺と号された。 | U110: 善能寺：ぜんのうじ | V110: 京都市東山区泉涌寺山内町34 | W110: 泉涌寺駐車場を利用（無料） | Y110: 1 | Z110: 109
A111: 1110 | B111: 01寺 | C111: 千本釈迦堂（大報恩寺） | D111: http://www.daihoonji.com/ | E111: せんぼんしゃかどう | F111: 600 | G111: 400 | H111: 無料 | I111: 9:00 | J111: 17:00 | K111: 07_上京区 | L111: 35.031675126579366, 135.7398628556493 | M111: 35.03167513 | N111: 135.7398629 | O111: 075 - 461 - 5973 | P111: (075) 461 - 5974 | Q111: 8 | R111: 20 | S111: 7 | T111: 西陣の家並みの中にある/庶民的信仰行事、おかめ節分会・12月大根炊きが行われる。 | U111: 千本釈迦堂（大報恩寺）：せんぼんしゃかどう | V111: 京都市上京区今出川七本松上ル溝前町1035-1 | Y111: 1 | Z111: 110
A112: 1111 | B112: 01寺 | C112: 宗徳寺 | D112: http://awashimado.jp/ | E112: そうとくじ | F112: 0 | G112: 0 | H112: - | I112: 9:00 | J112: 17:00 | K112: 08_下京区 | L112: 34.98716579129782, 135.75141798824657 | M112: 34.98716579 | N112: 135.751418 | Q112: 8 | R112: 15 | S112: 7 | T112: 宗徳寺の見どころは与謝蕪村の句碑。蕪村は娘の病気平癒を祈願し、一句詠んだと言われている。 | U112: 宗徳寺：そうとくじ | V112: 京都市下京区岩上通塩小路上ル三軒替地町124 | Y112: 1 | Z112: 111
A113: 1112 | B113: 01寺 | C113: 宗蓮寺 | D113: https://kyototravel.info/sourenji | E113: そうれんじ | F113: 0 | G113: 0 | H113: 無料 | I113: 10:00 | J113: 16:00 | K113: 05_北区 | L113: 35.085806618835356, 135.69070699440317 | M113: 35.08580662 | N113: 135.690707 | Q113: 8 | R113: 15 | S113: 7 | T113: 宗蓮寺の見どころは秋明菊です。なお秋明菊は菊と言うが、中国原産のキンポウゲ属アネモネ科の植物で、古い時代に中国から日本に持ち込まれたそうです。 | U113: 宗蓮寺：そうれんじ | V113: 京都市北区中川北山町214 | Y113: 1 | Z113: 112
A114: 1113 | B114: 01寺 | C114: 即成院 | D114: https://www.gensegokuraku.com/ | E114: そくじょういん | F114: 500 | G114: 500 | H114: - | I114: 9:00 | J114: 16:00 | K114: 04_東山区 | L114: 34.98163667879947, 135.77738657075864 | M114: 34.98163668 | N114: 135.7773866 | Q114: 8 | R114: 20 | S114: 7 | T114: 即成院の本尊 阿弥陀如来は寛治八年（1094）に彫刻されたとされ、恵心僧都作とも定朝らによる彫刻とも言われる。周囲には二十五菩薩像が安置され、極楽浄土へ向かう衆生を迎えに来た様子が立体的に表現されている。全二十六体の仏像のうち十五体は江戸時代に新しく造られたものという。 | U114: 即成院：そくじょういん | V114: 京都市東山区泉涌寺山内町28 | Y114: 1 | Z114: 113
A115: 1114 | B115: 01寺 | C115: 大雲院 | D115: https://kyototravel.info/daiunin | E115: だいうんいん | F115: 600 | G115: 600 | H115: - | I115: 10:00 | J115: 16:00 | K115: 04_東山区 | L115: 35.002375732163124, 135.78000318455358 | M115: 35.00237573 | N115: 135.7800032 | Q115: 8 | R115: 15 | S115: 7 | T115: 大雲院の見どころは祇園閣。祇園閣は祇園祭の鉾を模し、屋根が銅板葺きの為、銅閣と言われている。重要文化財・・・絹本著色前田玄以像、紙本墨書正親町天皇宸翰消息 | U115: 大雲院：だいうんいん | V115: 京都市東山区祇園町南側594-1 | Y115: 1 | Z115: 114
A116: 1115 | B116: 01寺 | C116: 大覚寺 | D116: https://www.daikakuji.or.jp/ | E116: だいかくじ | F116: 500 | G116: 300 | H116: 500 | I116: 9:00 | J116: 17:00 | K116: 01_右京区 | L116: 35.02808933321461, 135.6781975695163 | M116: 35.02808933 | N116: 135.6781976 | O116: 075 - 871 - 0071 | P116: (075) 881 - 4911 | Q116: 8 | R116: 20 | S116: 7 | T116: 嵯峨天皇の離宮を寺に改め、代々の法親王が住持した門跡寺院。華道・嵯峨御流の家元。 | U116: 大覚寺：だいかくじ | V116: 京都市右京区嵯峨大沢町4 | Y116: 1 | Z116: 115
A117: 1116 | B117: 01寺 | C117: 醍醐寺 | D117: https://www.daigoji.or.jp/ | E117: だいごじ | F117: 800 | G117: 800 | H117: 1000 | I117: 9:00 | J117: 16:00 | K117: 11_伏見区 | L117: 34.95100719168064, 135.8201803983976 | M117: 34.95100719 | N117: 135.8201804 | Q117: 8 | R117: 30 | S117: 7 | T117: 国宝に指定されている醍醐寺の五重塔は天暦五年（951）に醍醐天皇の菩提を弔うために建立された。塔は応仁の乱でも奇跡的に焼失を免れ、京都に現存する最古の木造建築物となっている。 | U117: 醍醐寺：だいごじ | V117: 京都市伏見区醍醐伽藍町1 | Y117: 1 | Z117: 116
A118: 1117 | B118: 01寺 | C118: 醍醐寺（三宝院） | D118: https://www.daigoji.or.jp/ | E118: だいごじさんほういん | F118: 1000 | G118: 700 | H118: 1000 | I118: 9:00 | J118: 17:00 | K118: 11_伏見区 | L118: 34.95100719168064, 135.8201803983976 | M118: 34.95100719 | N118: 135.8201804 | O118: 075 - 571 - 0002 | P118: (075) 571 - 0101 | Q118: 8 | R118: 30 | S118: 7 | T118: 醍醐山全体が寺域。豊臣秀吉の「醍醐の花見」で有名。 | U118: 醍醐寺（三宝院）：だいごじさんほういん | V118: 京都市伏見区醍醐伽藍町1 | Y118: 1 | Z118: 117
A119: 1118 | B119: 01寺 | C119: 大善寺 | D119: http://fishaqua.gozaru.jp/kyoto/fushimi/rokujizou/text.htm | E119: だいぜんじ | F119: 0 | G119: 0 | H119: 無料 | I119: 9:00 | J119: 16:00 | K119: 11_伏見区 | L119: 34.93448121281506, 135.79095673234303 | M119: 34.93448121 | N119: 135.7909567 | Q119: 8 | R119: 15 | S119: 7 | T119: 大善寺の見どころは六地蔵めぐり。六地蔵めぐりは毎年8月22日・23日に行われる。六地蔵を巡り、お札を受け取って玄関に吊るすと疫病退散・家内安全・福徳招来のご利益があると言われている。 | U119: 大善寺：だいぜんじ | V119: 京都市伏見区桃山町西町24 | Y119: 1 | Z119: 118
A120: 1119 | B120: 01寺 | C120: 大通寺 | D120: https://kyoto-daitsuji.com/ | E120: だいつうじ | F120: 500 | G120: 100 | H120: - | I120: 10:00 | J120: 16:00 | K120: 06_南区 | L120: 34.97818214677914, 135.74934346221315 | M120: 34.97818215 | N120: 135.7493435 | Q120: 8 | R120: 10 | S120: 7 | T120: 大通寺の見どころは源実朝木像。また大通寺が御旅所になる六孫王神社の宝永祭（例祭）も見どころ。 | U120: 大通寺：だいつうじ | V120: 京都市南区大宮通九条下ル西九条比永城町1 | Y120: 1 | Z120: 119
A121: 1120 | B121: 01寺 | C121: 大徳寺 | D121: https://kyototravels.com/guidedaitokuji/ | E121: だいとくじ | F121: 0 | G121: 0 | H121: 500 | I121: 0:00 | J121: 0:00 | K121: 05_北区 | L121: 35.043732971664895, 135.7460315595611 | M121: 35.04373297 | N121: 135.7460316 | Q121: 8 | R121: 20 | S121: 7 | T121: 大徳寺の境内は、勅使門、三門、仏殿、法堂（いずれも重要文化財）が南北に一直線に並んでおり、後ろに庫裏、東側に方丈が配置されている。 | U121: 大徳寺：だいとくじ | V121: 京都市北区紫野大徳寺町53 | Y121: 1 | Z121: 120
A122: 1121 | B122: 01寺 | C122: 大徳寺・高桐院 | D122: https://ja.wikipedia.org/wiki/%E9%AB%98%E6%A1%90%E9%99%A2 | E122: だいとくじ（こうとういん） | F122: 400 | G122: 400 | H122: 500 | I122: 9:00 | J122: 16:00 | K122: 05_北区 | L122: 35.04304545732136, 135.74323656926245 | M122: 35.04304546 | N122: 135.7432366 | O122: 075 - 492 - 0068 | P122: (075) 493 - 8733 | Q122: 8 | R122: 20 | S122: 7 | T122: 紅葉時期の庭園は格別。細川忠興とガヤシャ夫人の墓がある。 | U122: 大徳寺・高桐院：だいとくじ（こうとういん） | V122: 京都市北区紫野大徳寺町73-1 | W122: 臨時休業 | Y122: 1 | Z122: 121
A123: 1122 | B123: 01寺 | C123: 大徳寺・瑞峯院 | D123: https://ja.wikipedia.org/wiki/%E7%91%9E%E5%B3%AF%E9%99%A2 | E123: だいとくじ（ずいほういん） | F123: 400 | G123: 300 | H123: 500 | I123: 9:00 | J123: 17:00 | K123: 05_北区 | L123: 35.041977168731684, 135.74550857814742 | M123: 35.04197717 | N123: 135.7455086 | O123: 075 - 491 - 1454 | P123: (075) 491 - 1858 | Q123: 8 | R123: 20 | S123: 7 | T123: 大友宗麟が菩提寺として創建。枯山水の庭には、十字架形の石組みがある。 | U123: 大徳寺・瑞峯院：だいとくじ（ずいほういん） | V123: 京都市北区紫野大徳寺町81 | Y123: 1 | Z123: 122
A124: 1123 | B124: 01寺 | C124: 大徳寺・大仙院 | D124: https://daisen-in.net/ | E124: だいとくじ（だいせんいん） | F124: 400 | G124: 270 | H124: 500 | I124: 9:00 | J124: 16:30 | K124: 05_北区 | L124: 35.04474212415436, 135.74596587467687 | M124: 35.04474212 | N124: 135.7459659 | O124: 075 - 491 - 8346 | P124: 0 | Q124: 8 | R124: 30 | S124: 7 | T124: 大徳寺塔頭。最古の禅宗方丈建築の一つ。庭園は室町時代を代表する枯山水庭園。 | U124: 大徳寺・大仙院：だいとくじ（だいせんいん） | V124: 京都市北区紫野大徳寺町54-1 | Y124: 1 | Z124: 123
A125: 1124 | B125: 01寺 | C125: 大徳寺・龍源院 | D125: https://ja.wikipedia.org/wiki/%E9%BE%8D%E6%BA%90%E9%99%A2 | E125: だいとくじ（りょうげんいん） | F125: 350 | G125: 250 | H125: 500 | I125: 9:00 | J125: 16:20 | K125: 05_北区 | L125: 35.04203028841838, 135.7461553976641 | M125: 35.04203029 | N125: 135.7461554 | O125: 075 - 491 - 7635 | P125: (075) 491 - 7635 | Q125: 8 | R125: 20 | S125: 7 | T125: 本堂と表門は大徳寺最古の建築物。 | U125: 大徳寺・龍源院：だいとくじ（りょうげんいん） | V125: 京都市北区紫野大徳寺町82-1 | Y125: 1 | Z125: 124
A126: 1125 | B126: 01寺 | C126: 大徳寺・聚光院 | D126: https://kyototravel.info/jyukouin | E126: だいとくじじゅこういん | F126: 600 | G126: 600 | H126: 500 | I126: 10:00 | J126: 16:00 | K126: 05_北区 | L126: 35.044005019511715, 135.7453577718069 | M126: 35.04400502 | N126: 135.7453578 | Q126: 8 | R126: 20 | S126: 7 | T126: 聚光院の見どころは方丈庭園。方丈庭園は千利休の作庭と言われ、石組みの多いことから「百積（ひゃくせき）の庭」と言われている。 | U126: 大徳寺・聚光院：だいとくじじゅこういん | V126: 京都市北区紫野大徳寺町５８ | Y126: 1 | Z126: 125
A127: 1126 | B127: 01寺 | C127: 大徳寺・真珠庵 | D127: https://kyotoshunju.com/ | E127: だいとくじしんじゅあん | F127: 1200 | G127: 1200 | H127: 500 | I127: 9:30 | J127: 16:00 | K127: 05_北区 | L127: 35.04454936283692, 135.7465928097468 | M127: 35.04454936 | N127: 135.7465928 | Q127: 8 | R127: 30 | S127: 7 | T127: 真珠庵の方丈東にある庭園は一休宗純に参禅した侘び茶の祖 村田珠光の作庭とされる。通称である「七五三の庭」は、15個の石を七五三に配した枯山水庭園であることに由来。 | U127: 大徳寺・真珠庵：だいとくじしんじゅあん | V127: 京都市北区紫野大徳寺町５２ | Y127: 1 | Z127: 126
A128: 1127 | B128: 01寺 | C128: 大徳寺・瑞峯院 | D128: https://souda-kyoto.jp/guide/spot/daitokuji-zuihoin.html | E128: だいとくじずいほういん | F128: 400 | G128: 400 | H128: 600 | I128: 9:00 | J128: 17:00 | K128: 05_北区 | L128: 35.0421017340375, 135.74547886052304 | M128: 35.04210173 | N128: 135.7454789 | Q128: 8 | R128: 30 | S128: 7 | T128: 瑞峯院の方丈前後には、重森三玲作の枯山水庭園「独坐庭（どくざてい）」と「閑眠庭（かんみんてい）」がある。方丈前にあるのが独坐庭で、寺名の瑞峯を主題に据えた蓬莱山式庭園となっている。巨石による高低差や白砂による荒波のダイナミックな表現に特徴がある。 | U128: 大徳寺・瑞峯院：だいとくじずいほういん | V128: 京都市北区紫野大徳寺町81 | Y128: 1 | Z128: 127
A129: 1128 | B129: 01寺 | C129: 大龍寺 | D129: https://www.kyotonikanpai.com/spot/03_04_sanbi/dairyuji_ususamado.php | E129: だいりゅうじ | F129: 0 | G129: 0 | H129: 無料 | I129: 9:00 | J129: 16:00 | K129: 01_右京区 | L129: 35.03863541633374, 135.6923398165312 | M129: 35.03863542 | N129: 135.6923398 | Q129: 8 | R129: 15 | S129: 7 | T129: 大龍寺はかつて中京区裏寺町の花街にあり、花街の女性に信仰され、女性の病平癒のご利益があると言われている。また大龍寺はトイレの守り神様でもある。 | U129: 大龍寺：だいりゅうじ | V129: 京都市右京区梅ヶ畑高鼻町37 | Y129: 1 | Z129: 128
A130: 1129 | B130: 01寺 | C130: 大蓮寺 | D130: https://www.anzan-no-tera.jp/ | E130: だいれんじ | F130: 0 | G130: 0 | H130: 無料 | I130: 9:00 | J130: 16:00 | K130: 02_左京区 | L130: 35.01255709947909, 135.77647184116717 | M130: 35.0125571 | N130: 135.7764718 | Q130: 8 | R130: 15 | S130: 7 | T130: 平安時代に慈覚大師が彫刻した真如堂の本尊の阿弥陀如来は女性守護の「うなずきの弥陀」として信仰されていたが、応仁の乱(1467?1477)で荒廃した際に行方不明になってしまう。深誉は伏見の荒れたお堂でこの阿弥陀如来を発見し、お祀りするためのお堂を建立した。これが大蓮寺の起源という。 | U130: 大蓮寺：だいれんじ | V130: 京都市左京区東山二条西入ル一筋目下ル457 | Y130: 1 | Z130: 129
A131: 1130 | B131: 01寺 | C131: 滝口寺 | D131: https://www.kyoto-kankou.or.jp/info_search/?id=298&r=1647780935.9693 | E131: たきぐちでら | F131: 300 | G131: 300 | H131: - | I131: 9:00 | J131: 17:00 | K131: 01_右京区 | L131: 35.02315740588288, 135.6666488863103 | M131: 35.02315741 | N131: 135.6666489 | O131: 075 - 871 - 3929 | P131: (075) 871 - 3929 | Q131: 8 | R131: 20 | S131: 7 | T131: もと往生院の子院があった所。平家物語の悲恋物語横笛、滝口の比翼の木像を安置。 | U131: 滝口寺：たきぐちでら | V131: 京都市右京区嵯峨亀山町10-4 | Y131: 1 | Z131: 130
A132: 1131 | B132: 01寺 | C132: 狸谷山不動院 | D132: http://www.tanukidani.com/ | E132: たぬきだにさんふどういん | F132: 500 | G132: 500 | H132: 無料 | I132: 9:00 | J132: 16:00 | K132: 02_左京区 | L132: 35.04109157022825, 135.8023461834264 | M132: 35.04109157 | N132: 135.8023462 | Q132: 8 | R132: 60 | S132: 7 | T132: 狸谷山不動院は、250段の石段を登った瓜生山の山頂近くに桓武天皇勅願の不動尊を祀ったのが起こりとされている。御本尊咤怒鬼（たぬき）不動明王が他抜きに転じて、商人、芸能人、スポーツ選手の信仰が厚く、難病退散、交通安全祈願で知られている。 | U132: 狸谷山不動院：たぬきだにさんふどういん | V132: 京都市左京区一乗寺松原町6 | Y132: 1 | Z132: 131
A133: 1132 | B133: 01寺 | C133: 達磨寺 | D133: https://kyototravels.com/guidedarumadera/ | E133: だるまでら | F133: 300 | G133: 200 | H133: 無料 | I133: 9:00 | J133: 16;30 | K133: 07_上京区 | L133: 35.01994336293109, 135.73348286412192 | M133: 35.01994336 | N133: 135.7334829 | Q133: 8 | R133: 15 | S133: 7 | T133: 法輪寺の方丈には「無尽庭」という枯山水庭園がある。昭和53年、庭司 植音の奥田龍司が作庭した。仏教画「十牛図」を題材に、大きな鞍馬石や地元の石で大胆な石組み、周囲には苔が、上にはもみじが広がる。 | U133: 達磨寺：だるまでら | V133: 京都市上京区下立売通御前西入西ノ京円町 | Y133: 1 | Z133: 132
A134: 1133 | B134: 01寺 | C134: 檀林寺 | D134: https://ja.kyoto.travel/tourism/single01.php?category_id=7&tourism_id=417 | E134: だんりんじ | F134: 400 | G134: 400 | H134: - | I134: 9:00 | J134: 16:45 | K134: 01_右京区 | L134: 35.02386970357984, 135.6675999486259 | M134: 35.0238697 | N134: 135.6675999 | O134: 075 - 871 - 3924 | P134: (075) 871 - 3924 | Q134: 8 | R134: 20 | S134: 7 | T134: 嵯峨天皇の皇后、橋嘉智子が創立。皇后ゆかりの品をはじめ、多数の仏教美術品。 | U134: 檀林寺：だんりんじ | V134: 京都市右京区嵯峨鳥居本小坂町2-10 | Y134: 1 | Z134: 133
A135: 1134 | B135: 01寺 | C135: 知恩院 | D135: https://www.chion-in.or.jp/ | E135: ちおんいん | F135: 0 | G135: 0 | H135: - | I135: 5:30 | J135: 16:00 | K135: 01_右京区 | L135: 35.00474016230567, 135.78188375579163 | M135: 35.00474016 | N135: 135.7818838 | O135: 075 - 531 - 2111 | P135: (075) 531 - 0099 | Q135: 8 | R135: 20 | S135: 7 | T135: 法然上人が初めて浄土宗を布教したところ。洛東屈指の巨刹。三門は日本最大の桜門。 | U135: 知恩院：ちおんいん | V135: 京都市右京区御室大内33 | W135: 17 世紀に建てられた浄土宗の仏教寺院。庭園があり、行事や法要も行われる。 | Y135: 1 | Z135: 134
A136: 1135 | B136: 01寺 | C136: 知恩院（方丈庭園） | D136: https://www.chion-in.or.jp/ | E136: ちおんいん | F136: 400 | G136: 200 | H136: - | I136: 9:00 | J136: 15:50 | K136: 04_東山区 | L136: 35.00588495407092, 135.78444422334462 | M136: 35.00588495 | N136: 135.7844442 | O136: 075 - 531 - 2111 | P136: (075) 531 - 0099 | Q136: 8 | R136: 20 | S136: 7 | T136: 法然上人が初めて浄土宗を布教したところ。洛東屈指の巨刹。三門は日本最大の桜門。 | U136: 知恩院（方丈庭園）：ちおんいん | V136: 京都市東山区林下町400 | W136: 17 世紀に建てられた浄土宗の仏教寺院。庭園があり、行事や法要も行われる。 | Y136: 1 | Z136: 135
A137: 1136 | B137: 01寺 | C137: 知恩院（友禅苑） | D137: https://www.chion-in.or.jp/ | E137: ちおんいん | F137: 300 | G137: 150 | H137: - | I137: 9:00 | J137: 16:00 | K137: 04_東山区 | L137: 35.00433301440742, 135.78147460348862 | M137: 35.00433301 | N137: 135.7814746 | Q137: 8 | R137: 20 | S137: 7 | T137: 友禅苑は友禅染の始祖宮崎友禅生誕300年を記念して、昭和29年に改修造園された。東山の湧き水を引き入れた庭園と枯山水の庭園とで構成された昭和の名園。 | U137: 知恩院（友禅苑）：ちおんいん | V137: 京都市東山区林下町400 | Y137: 1 | Z137: 136
A138: 1137 | B138: 01寺 | C138: 知恩寺 | D138: http://chionji.jp/ | E138: ちおんじ | F138: 0 | G138: 0 | H138: 無料 | I138: 9:00 | J138: 17:00 | K138: 02_左京区 | L138: 35.02980201644596, 135.7807081564431 | M138: 35.02980202 | N138: 135.7807082 | Q138: 8 | R138: 15 | S138: 7 | T138: 百万遍知恩寺はかつて法然が住んでいた神宮寺にはじまるという。神宮寺は賀茂社と関わりが深く、現在の烏丸今出川のあたりにあった。建暦二年（1212）法然が入寂した後、弟子の源智が専修念仏の道場とし功徳院知恩寺と改称。 | U138: 知恩寺：ちおんじ | V138: 京都市左京区田中門前町103 | Y138: 1 | Z138: 137
A139: 1138 | B139: 01寺 | C139: 竹林寺 | D139: https://kyototravel.info/chikurinji | E139: ちくりんじ | F139: 400 | G139: 150 | H139: 無料 | I139: 8:30 | J139: 16:30 | K139: 07_上京区 | L139: 35.02046137238762, 135.73155916223345 | M139: 35.02046137 | N139: 135.7315592 | Q139: 8 | R139: 15 | S139: 7 | T139: 竹林寺の見どころは勤皇の志士37士の墓です。幕末に思いを馳せながら手を合わせるのもいいかもしれません。 | U139: 竹林寺：ちくりんじ | V139: 京都市上京区下立売通御前西入行衛町455 | W139: 境内自由 | Y139: 1 | Z139: 138
A140: 1139 | B140: 01寺 | C140: 智積院 | D140: https://chisan.or.jp/ | E140: ちしゃくいん | F140: 500 | G140: 300 | H140: 無料 | I140: 9:00 | J140: 16:00 | K140: 04_東山区 | L140: 34.98800487817902, 135.77589169288802 | M140: 34.98800488 | N140: 135.7758917 | O140: 075 - 541 - 5361 | P140: (075) 541 - 5364 | Q140: 8 | R140: 30 | S140: 7 | T140: 学山として始まり、僧侶の研修所となっている。国宝障壁画は安土桃山時代の傑作。 | U140: 智積院：ちしゃくいん | V140: 京都市東山区東大路七条下ル東瓦町964 | Y140: 1 | Z140: 139
A141: 1140 | B141: 01寺 | C141: 仲源寺 | D141: https://rakuyo33.jp/chugenji/ | E141: ちゅうげんじ | F141: 0 | G141: 0 | H141: 無料 | I141: 7:00 | J141: 19:30 | K141: 04_東山区 | L141: 35.003558061149306, 135.77325863699053 | M141: 35.00355806 | N141: 135.7732586 | Q141: 8 | R141: 15 | S141: 7 | T141: 仲源寺の見どころは目疾地蔵。目がよくない方は祈願してもいいかもしれません。 | U141: 仲源寺：ちゅうげんじ | V141: 京都市東山区四条通大和大路東入祇園町南側585 | Y141: 1 | Z141: 140
A142: 1141 | B142: 01寺 | C142: 長円寺 | D142: https://kyototravel.info/chouenji | E142: ちょうえんじ | F142: 0 | G142: 0 | H142: 無料 | I142: 6:00 | J142: 16:00 | K142: 08_下京区 | L142: 34.99853543714597, 135.7463939761796 | M142: 34.99853544 | N142: 135.746394 | Q142: 8 | R142: 15 | S142: 7 | T142: 長円寺の見どころは阿弥陀三尊を祀る本堂と聖観音像を祀る観音堂。 | U142: 長円寺：ちょうえんじ | V142: 京都市下京区松原通大宮西入中堂寺西寺町33 | Y142: 1 | Z142: 141
A143: 1142 | B143: 01寺 | C143: 長建寺 | D143: https://kyoto-goriyaku.com/spot/choken-ji/ | E143: ちょうけんじ | F143: 0 | G143: 0 | H143: 無料 | I143: 9:00 | J143: 16:00 | K143: 11_伏見区 | L143: 34.9283331610092, 135.7608975611549 | M143: 34.92833316 | N143: 135.7608976 | Q143: 8 | R143: 15 | S143: 7 | T143: 長建寺の見どころは糸桜と言われている早咲きのしだれ桜。また毎年元旦から15日間のみ開帳される八臂弁財天（はぴべんざいてん）も見どころ。 | U143: 長建寺：ちょうけんじ | V143: 京都市伏見区東柳町511 | Y143: 1 | Z143: 142
A144: 1143 | B144: 01寺 | C144: 長楽寺 | D144: https://www.chorakuji.or.jp/ | E144: ちょうらくじ | F144: 500 | G144: 500 | H144: - | I144: 9:00 | J144: 17:00 | K144: 04_東山区 | L144: 35.002662546290956, 135.7836567385361 | M144: 35.00266255 | N144: 135.7836567 | O144: 075 - 561 - 0589 | P144: (075) 561 - 8550 | Q144: 8 | R144: 20 | S144: 7 | T144: 805年創建の古刹。相阿弥作の庭園・建礼門院像、京都七福神の一つ「布袋尊像」。 | U144: 長楽寺：ちょうらくじ | V144: 京都市東山区八坂鳥居前東入円山町626 | W144: 木曜休み | Y144: 1 | Z144: 143
A145: 1144 | B145: 01寺 | C145: 天授庵 | D145: https://souda-kyoto.jp/guide/spot/nanzenji-tenjuan.html | E145: てんじゅあん | F145: 500 | G145: 500 | H145: 1000 | I145: 9:00 | J145: 17:00 | K145: 02_左京区 | L145: 35.01063421106294, 135.79227256973817 | M145: 35.01063421 | N145: 135.7922726 | Q145: 8 | R145: 20 | S145: 7 | T145: 天授庵には方丈東の枯山水庭園、書院南の池泉回遊式庭園がある。枯山水は再建された慶長年間の作庭で、幾何学模様の石畳と苔の上にもみじが広がる。池泉回遊式庭園は鎌倉末期、南北朝時代の特徴が色濃くみられることから創建時から存在したという説がある。 | U145: 天授庵：てんじゅあん | V145: 京都市左京区南禅寺福地町86-8 | Y145: 1 | Z145: 144
A146: 1145 | B146: 01寺 | C146: 天得院 | D146: https://tentokuin.jp/ | E146: てんとくいん | F146: 500 | G146: 500 | H146: - | I146: 10:00 | J146: 16:00 | K146: 04_東山区 | L146: 34.976753721826874, 135.7723991837254 | M146: 34.97675372 | N146: 135.7723992 | Q146: 8 | R146: 30 | S146: 7 | T146: 天得院の見どころは桃山時代に作庭されたと言われている枯山水庭園。なお天得院は紅葉の名所の為、秋に訪れてもいいかもしれない。 | U146: 天得院：てんとくいん | V146: 京都市東山区本町１５丁目802 | W146: 駐車は東福寺へ | Y146: 1 | Z146: 145
A147: 1146 | B147: 01寺 | C147: 天龍寺（庭園） | D147: http://www.tenryuji.com/ | E147: てんりゅうじ | F147: 500 | G147: 300 | H147: 1000 | I147: 8:30 | J147: 17:00 | K147: 01_右京区 | L147: 35.01579863070856, 135.67375036113833 | M147: 35.01579863 | N147: 135.6737504 | O147: 075 - 881 - 1235 | P147: (075) 864 - 2424 | Q147: 8 | R147: 20 | S147: 7 | T147: 後醍醐天皇の菩提を弔うために足利尊氏が夢窓国師に創建させた。池泉回遊式庭園。 | U147: 天龍寺（庭園）：てんりゅうじ | V147: 京都市右京区嵯峨天竜寺芒ノ馬場町68 | Y147: 1 | Z147: 146
A148: 1147 | B148: 01寺 | C148: 東寺 | D148: https://toji.or.jp/guide/kanchiin/ | E148: とうじ | F148: 800 | G148: 500 | H148: 600 | I148: 8:30 | J148: 17:30 | K148: 06_南区 | L148: 34.98064129550191, 135.74765584668256 | M148: 34.9806413 | N148: 135.7476558 | O148: 075 - 691 - 3325 | P148: (075) 662 - 0250 | Q148: 8 | R148: 20 | S148: 7 | T148: 五重塔は日本の古塔中最も高い。空海が真言密教の根本道場とした。 | U148: 東寺：とうじ | V148: 京都市南区九条町1 | Y148: 1 | Z148: 147
A149: 1148 | B149: 01寺 | C149: 等持院 | D149: https://toujiin.jp/ | E149: とうじいん | F149: 500 | G149: 300 | H149: 無料 | I149: 9:00 | J149: 16:30 | K149: 05_北区 | L149: 35.031448948247395, 135.72343336190912 | M149: 35.03144895 | N149: 135.7234334 | O149: 075 - 461 - 5786 | P149: (075) 461 - 5838 | Q149: 8 | R149: 20 | S149: 7 | T149: 足利氏の菩提寺。足利氏歴代将軍の木像が霊光殿に安置されている。池泉回遊庭園。 | U149: 等持院：とうじいん | V149: 京都市北区等持院北町63 | Y149: 1 | Z149: 148
A150: 1149 | B150: 01寺 | C150: 東福寺 | D150: https://ja.kyoto.travel/tourism/single01.php?category_id=7&tourism_id=452 | E150: とうふくじ | F150: 500 | G150: 300 | H150: 無料 | I150: 9:00 | J150: 16:00 | K150: 04_東山区 | L150: 34.97606108123014, 135.7737837378118 | M150: 34.97606108 | N150: 135.7737837 | Q150: 8 | R150: 20 | S150: 7 | T150: 昭和9年築の重層入母屋造の大建築。天井には蒼龍図は堂本印象作。春の涅槃会には明兆の大涅槃図が公開される。 | U150: 東福寺：とうふくじ | V150: 京都市東山区本町15丁目778 | Y150: 1 | Z150: 149
A151: 1150 | B151: 01寺 | C151: 東福寺(通天橋) | D151: https://tofukuji.jp/ | E151: とうふくじ（つうてんばし） | F151: 600 | G151: 300 | H151: 無料 | I151: 9:00 | J151: 16:00 | K151: 04_東山区 | L151: 34.97734406970283, 135.77366465919616 | M151: 34.97734407 | N151: 135.7736647 | O151: 075 - 561 - 0087 | P151: (075) 533 - 0621 | Q151: 8 | R151: 20 | S151: 7 | T151: 仏殿から開山堂に至る渓谷に架かけられた橋廊。紅葉の名所として有名。 | U151: 東福寺(通天橋)：とうふくじ（つうてんばし） | V151: 京都市東山区本町15丁目778 | Y151: 1 | Z151: 150
A152: 1151 | B152: 01寺 | C152: 東福寺・芬陀院 | D152: https://ja.kyoto.travel/tourism/single01.php?category_id=7&tourism_id=452 | E152: とうふくじ（ぶんだいん） | F152: 300 | G152: 300 | H152: 無料 | I152: 9:00 | J152: 16:30 | K152: 04_東山区 | L152: 34.976363157986874, 135.77209378813447 | M152: 34.97636316 | N152: 135.7720938 | O152: 075 - 541 - 1761 | P152: (075) 541 - 1764 | Q152: 8 | R152: 20 | S152: 7 | T152: 雪舟作といわれる鶴亀の庭があることから、雪舟寺とも呼ばれる。 | U152: 東福寺・芬陀院：とうふくじ（ぶんだいん） | V152: 京都市東山区本町15丁目778 | Y152: 1 | Z152: 151
A153: 1152 | B153: 01寺 | C153: 東福寺(本坊庭園) | D153: https://tofukuji.jp/guide/honbo/ | E153: とうふくじ（ほうじょうていえん） | F153: 500 | G153: 300 | H153: 無料 | I153: 9:00 | J153: 16:30 | K153: 04_東山区 | L153: 34.976715402818655, 135.77417462122844 | M153: 34.9767154 | N153: 135.7741746 | O153: 075 - 561 - 0087 | P153: (075) 533 - 0621 | Q153: 8 | R153: 20 | S153: 7 | T153: 重森三玲が作庭。釈迦生動を表現した八相の庭は、近代禅宗庭園の代表。 | U153: 東福寺(本坊庭園)：とうふくじ（ほうじょうていえん） | V153: 京都市東山区本町15丁目778 | Y153: 1 | Z153: 152
A154: 1153 | B154: 01寺 | C154: 妙心寺（東林院） | D154: http://www.taizoin.com/ | E154: とうりんいん | F154: 1600 | G154: 1600 | H154: 無料 | I154: 9:30 | J154: 16:00 | K154: 01_右京区 | L154: 35.02294143064518, 135.72238794069332 | M154: 35.02294143 | N154: 135.7223879 | Q154: 8 | R154: 30 | S154: 7 | T154: 東林院には樹齢三百年という沙羅の木があり、毎年6月に「沙羅の花を愛でる会」が催される。料金は抹茶と説法付きで1600円。時期により会が変わり値段もまちまち。 | U154: 妙心寺（東林院）：とうりんいん | V154: 京都市右京区花園妙心寺町59 | W154: 6月沙羅の花を愛でる会・・・抹茶付1,600円、抹茶と精進料理付5,950円 | Y154: 1 | Z154: 153
A155: 1154 | B155: 01寺 | C155: 南禅院 | D155: https://www.nanzenji.or.jp/equipment/nanzenin | E155: なんぜんいん | F155: 300 | G155: 300 | H155: 1000 | I155: 8:40 | J155: 17:00 | K155: 02_左京区 | L155: 35.01029009817287, 135.79382759884575 | M155: 35.0102901 | N155: 135.7938276 | Q155: 8 | R155: 20 | S155: 7 | T155: 庭園は夢窓疎石作と伝わり、天龍寺、西方寺（苔寺）と並んで三名勝史跡庭園に数えられる。龍の形に作られた曹源池、蓬莱島、心字池からなる鎌倉時代を代表する池泉回遊式庭園。かつては吉野の桜などが植えられていたが、応仁の乱で焼失。 | U155: 南禅院：なんぜんいん | V155: 京都市左京区南禅寺福地町86 | Y155: 1 | Z155: 154
A156: 1155 | B156: 01寺 | C156: 南禅寺・山門（三門） | D156: https://nanzenji.or.jp/ | E156: なんぜんじ | F156: 600 | G156: 400 | H156: 1000 | I156: 8:45 | J156: 17:00 | K156: 02_左京区 | L156: 35.01128171829064, 135.79259574434295 | M156: 35.01128172 | N156: 135.7925957 | O156: 075 - 771 - 0365 | P156: (075) 771 - 6989 | Q156: 8 | R156: 20 | S156: 7 | T156: 別名「天下竜門」。五鳳桜がある。日本三大門の一つ。「桜門五三桐」の石川五右衛門で有名。 | U156: 南禅寺・山門（三門）：なんぜんじ | V156: 京都市左京区南禅寺福地町86 | Y156: 1 | Z156: 155
A157: 1156 | B157: 01寺 | C157: 南禅寺 | D157: https://nanzenji.or.jp/ | E157: なんぜんじ | F157: 0 | G157: 0 | H157: 1000 | I157: 8:45 | J157: 17:00 | K157: 02_左京区 | L157: 35.01128171829064, 135.79259574434295 | M157: 35.01128172 | N157: 135.7925957 | O157: 075 - 771 - 0365 | P157: (075) 771 - 6989 | Q157: 8 | R157: 20 | S157: 7 | T157: 境内見学などでは拝観料はいらない。 | U157: 南禅寺：なんぜんじ | V157: 京都市左京区南禅寺福地町86 | Y157: 1 | Z157: 156
A158: 1157 | B158: 01寺 | C158: 南禅寺・南禅院 | D158: https://nanzenji.or.jp/ | E158: なんぜんじ（なんぜんいん） | F158: 400 | G158: 250 | H158: 1000 | I158: 8:45 | J158: 17:00 | K158: 02_左京区 | L158: 35.01030239783671, 135.7938325605486 | M158: 35.0103024 | N158: 135.7938326 | O158: 075 - 771 - 0365 | P158: (075) 771 - 6989 | Q158: 8 | R158: 20 | S158: 7 | T158: 南禅寺発祥の地。鎌倉時代の庭園（池泉回遊式鑑賞庭園） | U158: 南禅寺・南禅院：なんぜんじ（なんぜんいん） | V158: 京都市左京区南禅寺福地町 | Y158: 1 | Z158: 157
A159: 1158 | B159: 01寺 | C159: 南禅寺(方丈庭園) | D159: https://nanzenji.or.jp/ | E159: なんぜんじ（ほうじょうていえん） | F159: 600 | G159: 400 | H159: 1000 | I159: 8:45 | J159: 17:00 | K159: 02_左京区 | L159: 35.01121831874199, 135.79445435647003 | M159: 35.01121832 | N159: 135.7944544 | O159: 075 - 771 - 0365 | P159: (075) 771 - 6989 | Q159: 8 | R159: 20 | S159: 7 | T159: 桃山期の国宝。小堀遠州作の枯山水庭園。大方丈前面の庭園は「虎の子渡しの庭」。 | U159: 南禅寺(方丈庭園)：なんぜんじ（ほうじょうていえん） | V159: 京都市左京区南禅寺福地町86 | Y159: 1 | Z159: 158
A160: 1159 | B160: 01寺 | C160: 西本願寺 | D160: https://www.hongwanji.kyoto/ | E160: にしほんがんじ | F160: 0 | G160: 0 | H160: 無料 | I160: 5:30 | J160: 17:00 | K160: 08_下京区 | L160: 34.991763002378676, 135.75221578552228 | M160: 34.991763 | N160: 135.7522158 | O160: 075 - 371 - 5181 | P160: (075) 351 - 1372 | Q160: 8 | R160: 20 | S160: 7 | T160: 真宗本願寺派本山。秀吉が土地を寄進。唐門・飛雲閣・北能舞台など国宝がずらり。 | U160: 西本願寺：にしほんがんじ | V160: 京都市下京区堀川通花屋町下ル門前町60 | Y160: 1 | Z160: 159
A161: 1160 | B161: 01寺 | C161: 二条城 | D161: https://nijo-jocastle.city.kyoto.lg.jp/ | E161: にじょうじょう | F161: 1030 | G161: 350 | H161: 1050 | I161: 8:45 | J161: 16:00 | K161: 03_中京区 | L161: 35.013298398808985, 135.7501340508436 | M161: 35.0132984 | N161: 135.7501341 | O161: 075 - 841 - 0096 | P161: (075) 802 - 6181 | Q161: 8 | R161: 30 | S161: 7 | T161: 家康が築造、家光が完成させ、大政奉還まで幕府の京における拠点となった。 | U161: 二条城：にじょうじょう | V161: 京都市中京区二条通堀川西入二条城町541 | Y161: 1 | Z161: 160
A162: 1161 | B162: 01寺 | C162: 二尊院 | D162: https://nisonin.jp/ | E162: にそんいん | F162: 500 | G162: 500 | H162: 無料 | I162: 9:00 | J162: 16:30 | K162: 01_右京区 | L162: 35.020877895363114, 135.66797444783384 | M162: 35.0208779 | N162: 135.6679744 | O162: 075 - 861 - 0687 | P162: (075) 861 - 7972 | Q162: 8 | R162: 20 | S162: 7 | T162: 本尊に釈迦・阿弥陀の二如来を祭り、開基は慈覚大師円仁。総門は伏見城の遺構といわれている。 | U162: 二尊院：にそんいん | V162: 京都市右京区嵯峨二尊院門前長神町27 | Y162: 1 | Z162: 161
A163: 1162 | B163: 01寺 | C163: 仁和寺（庭園） | D163: https://ninnaji.jp/ | E163: にんなじ | F163: 800 | G163: 0 | H163: 500 | I163: 9:00 | J163: 17:00 | K163: 01_右京区 | L163: 35.02938970066157, 135.71387335247059 | M163: 35.0293897 | N163: 135.7138734 | O163: 075 - 461 - 1155 | P163: (075) 464 - 4070 | Q163: 8 | R163: 30 | S163: 7 | T163: 宇多天皇が落髪入寺/御室御所/遅咲きの「御室の桜」で知られる。 | U163: 仁和寺（庭園）：にんなじ | V163: 京都市右京区御室大内33 | Y163: 1 | Z163: 162
A164: 1163 | B164: 01寺 | C164: 東本願寺 | D164: https://www.higashihonganji.or.jp/ | E164: ひがしほんがんじ | F164: 0 | G164: 0 | H164: - | I164: 6:20 | J164: 16:30 | K164: 08_下京区 | L164: 34.99072577768067, 135.75850284621168 | M164: 34.99072578 | N164: 135.7585028 | O164: 075 - 371 - 9181 | P164: (075) 371 - 1214 | Q164: 8 | R164: 20 | S164: 7 | T164: 親鸞像を安置する御影堂は927畳ある。本堂とともに世界最大級の木造建築。 | U164: 東本願寺：ひがしほんがんじ | V164: 京都市下京区烏丸通七条上ル常葉町754 | Y164: 1 | Z164: 163
A165: 1164 | B165: 01寺 | C165: 東向観音寺 | D165: http://www.higasimukikannon.sakura.ne.jp/ | E165: ひがしむきかんのんじ | F165: 0 | G165: 0 | H165: - | I165: 9:00 | J165: 16:30 | K165: 07_上京区 | L165: 35.028934505397935, 135.73488961154194 | M165: 35.02893451 | N165: 135.7348896 | Q165: 8 | R165: 15 | S165: 7 | T165: 東向観音寺の見どころは東向の本堂（観音堂）。本堂は豊臣秀頼によって再建された。 | U165: 東向観音寺：ひがしむきかんのんじ | V165: 京都市上京区今小路通御前通西入上る観音寺門前町863 | Y165: 1 | Z165: 164
A166: 1165 | B166: 01寺 | C166: 毘沙門堂 | D166: http://www.bishamon.or.jp/ | E166: びしゃもんどう | F166: 500 | G166: 500 | H166: 無料 | I166: 9:00 | J166: 17:00 | K166: 10_山科区 | L166: 35.0011730649778, 135.81868571930153 | M166: 35.00117306 | N166: 135.8186857 | O166: 075 - 581 - 0328 | P166: (075) 581 - 0328 | Q166: 8 | R166: 20 | S166: 7 | T166: 本堂には毘沙門天（都七福神のひとつ）が祀られている。池泉回遊式の庭園も見事。 | U166: 毘沙門堂：びしゃもんどう | V166: 京都市山科区安朱稲荷山町18-1 | Y166: 1 | Z166: 165
A167: 1166 | B167: 01寺 | C167: 平等院 | D167: https://www.byodoin.or.jp/ | E167: びょうどういん | F167: 600 | G167: 400 | H167: 500 | I167: 8:30 | J167: 17:30 | K167: 12_宇治市 | L167: 34.889235100012414, 135.80770424137683 | M167: 34.8892351 | N167: 135.8077042 | O167: 0774 - 21 - 2861 | P167: (0774) 20 - 6607 | Q167: 8 | R167: 30 | S167: 7 | T167: 国宝「鳳凰」・｢梵鐘｣・「雲中供養菩薩」等を展示。コンピューターによる復元映像も楽しめる。 | U167: 平等院：びょうどういん | V167: 宇治市宇治蓮華116 | Y167: 1 | Z167: 166
A168: 1167 | B168: 01寺 | C168: 平等寺 | D168: https://inabado.jp/ | E168: びょうどうじ | F168: 0 | G168: 0 | H168: 無料 | I168: 6:00 | J168: 17:00 | K168: 08_下京区 | L168: 34.99947829328604, 135.76030154568335 | M168: 34.99947829 | N168: 135.7603015 | Q168: 8 | R168: 15 | S168: 7 | T168: 創建当時から因幡堂に祀られている薬師如来は藤原時代の作とされ、嵐山にある清凉寺の釈迦如来、信州善光寺（長野県）の阿弥陀如来と共に「日本三如来」に数えられる名品である。 | U168: 平等寺：びょうどうじ | V168: 京都市下京区松原通烏丸東入因幡堂町728 | Y168: 1 | Z168: 167
A169: 1168 | B169: 01寺 | C169: 福勝寺 | D169: https://kyototravel.info/fukushouji | E169: ふくしょうじ | F169: 0 | G169: 0 | H169: - | I169: 5:00 | J169: 17:00 | K169: 07_上京区 | L169: 35.021645464059056, 135.74131320414696 | M169: 35.02164546 | N169: 135.7413132 | Q169: 8 | R169: 15 | S169: 7 | T169: 福勝寺の見どころは本堂・聖天堂。また節分に売られている宝珠融通御守を買うのもいいかもしれません。 | U169: 福勝寺：ふくしょうじ | V169: 京都市上京区出水通千本西入七番町323-1 | Y169: 1 | Z169: 168
A170: 1169 | B170: 01寺 | C170: 補陀洛寺 | D170: https://www.kyotonikanpai.com/spot/05_05_kurama_kibune/fudarakuji_komachidera.php | E170: ふだらくじ | F170: 0 | G170: 0 | H170: 無料 | I170: 9:00 | J170: 17:00 | K170: 02_左京区 | L170: 35.08543686780881, 135.76198205287608 | M170: 35.08543687 | N170: 135.7619821 | Q170: 8 | R170: 15 | S170: 7 | T170: 補陀洛寺は平安時代前期の小野小町の終焉の地と言われている。境内には小町老衰像・小野小町塔・亡骸から生えたという「穴目のススキ」・小野楓・小野小町姿見の井戸などがある。 | U170: 補陀洛寺：ふだらくじ | V170: 京都市左京区静市市原町1140 | Y170: 1 | Z170: 169
A171: 1170 | B171: 01寺 | C171: 佛光寺 | D171: https://www.bukkoji.or.jp/ | E171: ぶっこうじ | F171: 0 | G171: 0 | H171: 無料 | I171: 9:00 | J171: 15:30 | K171: 08_下京区 | L171: 35.00070146345115, 135.76225528326 | M171: 35.00070146 | N171: 135.7622553 | Q171: 8 | R171: 15 | S171: 7 | T171: 佛光寺には平安時代に彫刻されたとされる本尊 「阿弥陀如来立像」、鎌倉時代の作で現存する太子像の中でも傑出した名品とされる「聖徳太子像」が安置されている。 | U171: 佛光寺：ぶっこうじ | V171: 京都市下京区新開町397 | Y171: 1 | Z171: 170
A172: 1171 | B172: 01寺 | C172: 法音院 | D172: http://www.houonin.com/ | E172: ほうおんいん | F172: 0 | G172: 0 | H172: - | I172: 9:00 | J172: 16:00 | K172: 04_東山区 | L172: 34.9807504496253, 135.77750638751633 | M172: 34.98075045 | N172: 135.7775064 | Q172: 8 | R172: 20 | S172: 7 | T172: 法音院の本堂にまつられるのは御本尊・不空羂索観音。堂外よりおまいり。でも、お寺で写仏をされたかたは、内陣まで入って参拝できるそう。くわしくは法音院の公式サイトをごらんください。 | U172: 法音院：ほうおんいん | V172: 京都市東山区泉涌寺山内町30 | W172: 駐車は泉涌寺へ | Y172: 1 | Z172: 171
A173: 1172 | B173: 01寺 | C173: 報恩寺・鳴虎 | D173: https://kyototravels.com/guidehoonji/ | E173: ほうおんじ | F173: 0 | G173: 0 | H173: - | I173: 0:00 | J173: 0:00 | K173: 07_上京区 | L173: 35.03300895107535, 135.7529938034328 | M173: 35.03300895 | N173: 135.7529938 | Q173: 8 | R173: 20 | S173: 7 | T173: 報恩寺は文亀元年の再興に際し後柏原天皇から数々の宝物を賜り、その中の一つに宋または明の時代の中国で描かれた「虎図」がある。 | U173: 報恩寺・鳴虎：ほうおんじ | V173: 京都市上京区小川通寺之内下ル射場町579 | Y173: 1 | Z173: 172
A174: 1173 | B174: 01寺 | C174: 法界寺（日野薬師） | D174: https://ja.wikipedia.org/wiki/%E6%B3%95%E7%95%8C%E5%AF%BA | E174: ほうかいじ | F174: 400 | G174: 200 | H174: 無料 | I174: 9:00 | J174: 17:00 | K174: 11_伏見区 | L174: 34.93411980357773, 135.8148364531247 | M174: 34.9341198 | N174: 135.8148365 | O174: 075 - 571 - 0024 | P174: (075) 571 - 0024 | Q174: 8 | R174: 20 | S174: 7 | T174: 薬師堂に秘仏として安置された薬師如来は安産・授乳祈願で有名。 | U174: 法界寺（日野薬師）：ほうかいじ | V174: 京都市伏見区日野西大道町19 | Y174: 1 | Z174: 173
A175: 1174 | B175: 01寺 | C175: 法観寺（八坂塔） | D175: https://www.jalan.net/kankou/spt_guide000000185112/ | E175: ほうかんじ | F175: 500 | G175: 500 | H175: - | I175: 10:00 | J175: 16:00 | K175: 04_東山区 | L175: 34.998522805867886, 135.7792357989303 | M175: 34.99852281 | N175: 135.7792358 | O175: 075 - 551 - 2417 | P175: (075) 551 - 2417 | Q175: 8 | R175: 20 | S175: 7 | T175: 聖徳太子が創建、義政が再建した。高さ46ｍの五重塔は東山のシンボル。 | U175: 法観寺（八坂塔）：ほうかんじ | V175: 京都市東山区清水八坂上町388 | Y175: 1 | Z175: 174
A176: 1175 | B176: 01寺 | C176: 宝筐院 | D176: http://www.houkyouin.jp/ | E176: ほうきょういん | F176: 400 | G176: 200 | H176: - | I176: 9:00 | J176: 16:00 | K176: 01_右京区 | L176: 35.022543460704284, 135.67365839959797 | M176: 35.02254346 | N176: 135.6736584 | Q176: 8 | R176: 20 | S176: 7 | T176: 宝筐院は、平安時代に白河天皇（1053～1129）の勅願寺として建てられた。勅願寺とは、勅願によって鎮護国家・玉体安穏のために建立された寺のことをいい、東大寺・大安寺・薬師寺などがこれに当たる。 | U176: 宝筐院：ほうきょういん | V176: 京都市右京区嵯峨釈迦堂門前南中院町 | Y176: 1 | Z176: 175
A177: 1176 | B177: 01寺 | C177: 宝鏡寺・人形寺 | D177: http://hokyoji.net/ | E177: ほうきょうじちおんじ | F177: 600 | G177: 600 | H177: 無料 | I177: 10:00 | J177: 15:30 | K177: 07_上京区 | L177: 35.034335727329385, 135.7527196943465 | M177: 35.03433573 | N177: 135.7527197 | Q177: 8 | R177: 15 | S177: 7 | T177: 宝鏡寺は御所から歴代の住持を務めた皇女に送られた数多くの京人形を所蔵しており、人形寺の通称でも知られている。 | U177: 宝鏡寺・人形寺：ほうきょうじちおんじ | V177: 京都市上京区寺之内通堀川東入百々町547-1 | Y177: 1 | Z177: 176
A178: 1177 | B178: 01寺 | C178: 方広寺 | D178: http://www.houkouji.or.jp/ | E178: ほうこうじ | F178: 0 | G178: 0 | H178: 無料 | I178: 9:00 | J178: 16:00 | K178: 04_東山区 | L178: 34.9919432994121, 135.77207712276987 | M178: 34.9919433 | N178: 135.7720771 | Q178: 8 | R178: 15 | S178: 7 | T178: 方広寺の鐘楼は「国家安康」の鐘として有名である。鐘楼に刻まれた銘文の「国家安康」、「君臣豊楽」が豊臣家を讃え家康を冒涜するものとみなされ、大阪冬の陣による豊臣家の滅亡を招いたとされる。 | U178: 方広寺：ほうこうじ | V178: 京都市東山区正面通大和大路東入茶屋町527-4 | Y178: 1 | Z178: 177
A179: 1178 | B179: 01寺 | C179: 宝厳院 | D179: https://hogonin.jp/ | E179: ほうごんいん | F179: 500 | G179: 300 | H179: 1000 | I179: 9:00 | J179: 17:00 | K179: 01_右京区 | L179: 35.014035203466186, 135.67408406816313 | M179: 35.0140352 | N179: 135.6740841 | Q179: 8 | R179: 15 | S179: 7 | T179: 「獅子吼の庭」は、室町時代に中国に二度渡った禅僧、策彦周良禅師が作庭。嵐山の景観を匠に取り入れた借景式山水回遊庭園。「獅子吼」とは「仏が説法する」の意味で、庭園内を散策し、鳥の声、風の音を聴く事によって、人生の心理、正道を肌で感じ、心が大変癒する庭である。 | U179: 宝厳院：ほうごんいん | V179: 京都市右京区嵯峨天龍寺芒ノ馬場町３６ | Y179: 1 | Z179: 178
A180: 1179 | B180: 01寺 | C180: 法金剛院 | D180: http://houkongouin.com/ | E180: ほうこんごういん | F180: 500 | G180: 300 | H180: 無料 | I180: 9:00 | J180: 16:00 | K180: 01_右京区 | L180: 35.01949522801439, 135.71627058997373 | M180: 35.01949523 | N180: 135.7162706 | O180: 075 - 461 - 9428 | P180: (075) 463 - 7057 | Q180: 8 | R180: 20 | S180: 7 | T180: 青女の滝を中心とした回遊式浄土庭園（特別名勝）。仏像は本尊阿弥陀如来（重文）他多数ある。 | U180: 法金剛院：ほうこんごういん | V180: 京都市右京区花園扇野町49 | Y180: 1 | Z180: 179
A181: 1180 | B181: 01寺 | C181: 法住寺 | D181: http://hojyuji.jp/ | E181: ほうじゅうじ | F181: 500 | G181: 500 | H181: 無料 | I181: 9:00 | J181: 16:30 | K181: 04_東山区 | L181: 34.98743748003827, 135.77267317449554 | M181: 34.98743748 | N181: 135.7726732 | Q181: 8 | R181: 20 | S181: 7 | T181: 木曽義仲の法住寺殿襲撃の際、当時の天台宗座主 明雲が法皇をかばって亡くなったことから、本尊の不動明王が明雲となり身代わりになったと信じられ、この像は「身代わり不動明王像」と呼ばれている。 | U181: 法住寺：ほうじゅうじ | V181: 京都市東山区法住寺三十三間堂廻り６５５ | Y181: 1 | Z181: 180
A182: 1181 | B182: 01寺 | C182: 法性寺 | D182: https://kyototravel.info/hosshouji | E182: ほうしょうじ | F182: 0 | G182: 0 | H182: 無料 | I182: 9:00 | J182: 16:00 | K182: 04_東山区 | L182: 34.9791187367368, 135.77078185681768 | M182: 34.97911874 | N182: 135.7707819 | Q182: 8 | R182: 15 | S182: 7 | T182: 法性寺の見どころは国宝・木造千手観音立像が安置されている本堂。ちなみに木造千手観音立像は「厄除観世音」と言われている。 | U182: 法性寺：ほうしょうじ | V182: 京都市東山区本町一六丁目307 | Y182: 1 | Z182: 181
A183: 1182 | B183: 01寺 | C183: 宝泉院（抹茶付） | D183: http://www.hosenin.net/ | E183: ほうせんいん | F183: 800 | G183: 700 | H183: - | I183: 9:00 | J183: 17:00 | K183: 02_左京区 | L183: 35.12132618475918, 135.83400305736401 | M183: 35.12132618 | N183: 135.8340031 | O183: 075 - 744 - 2409 | P183: (075) 744 - 2912 | Q183: 8 | R183: 20 | S183: 7 | T183: 額縁庭園として有名。南面庭には、近江富士を型どった樹齢700年の五葉松がそびえる。 | U183: 宝泉院（抹茶付）：ほうせんいん | V183: 京都市左京区大原勝林院町187 | Y183: 1 | Z183: 182
A184: 1183 | B184: 01寺 | C184: 法輪寺 | D184: https://www.kokuzohourinji.com/index.html#access | E184: ほうりんじ | F184: 0 | G184: 0 | H184: 1000 | I184: 9:00 | J184: 17:00 | K184: 09_西京区 | L184: 35.031733052736186, 135.71101083343697 | M184: 35.03173305 | N184: 135.7110108 | O184: 075 - 861 - 0069 | P184: (075) 861 - 1830 | Q184: 8 | R184: 20 | S184: 7 | T184: 日本三虚空蔵の一カ寺で、「十三まいり」の寺として智福を授かる。 | U184: 法輪寺：ほうりんじ | V184: 京都市西京区嵐山虚空蔵山町68 | Y184: 1 | Z184: 183
A185: 1184 | B185: 01寺 | C185: 本覚寺 | D185: https://www.marutake-ebisu.com/temple/honkaku-ji.html | E185: ほんかくじ | F185: 0 | G185: 0 | H185: - | I185: 8:00 | J185: 17:00 | K185: 08_下京区 | L185: 34.99558323310376, 135.76520904890953 | M185: 34.99558323 | N185: 135.765209 | Q185: 8 | R185: 15 | S185: 7 | T185: 本覚寺の見どころは八文字屋自笑の墓。八文字屋自笑は八文字屋本の全盛期を築いた版元。 | U185: 本覚寺：ほんかくじ | V185: 京都市下京区富小路通五条下る本塩竈町５５８ | Y185: 1 | Z185: 184
A186: 1185 | B186: 01寺 | C186: 本能寺 | D186: https://www.kyoto-honnouji.jp/ | E186: ほんのうじ | F186: 0 | G186: 0 | H186: 200 | I186: 6:00 | J186: 17:00 | K186: 03_中京区 | L186: 35.01029816071249, 135.76831549986707 | M186: 35.01029816 | N186: 135.7683155 | O186: 075 - 231 - 5335 | P186: (075) 231 - 2838 | Q186: 8 | R186: 20 | S186: 7 | T186: 法華宗の大本山。織田信長・明智光秀の「本能寺の変」で有名。 | U186: 本能寺：ほんのうじ | V186: 京都市中京区寺町通御池下ル下本能寺前町522-1 | Y186: 1 | Z186: 185
A187: 1186 | B187: 01寺 | C187: 本法寺 | D187: https://eishouzan.honpouji.nichiren-shu.jp/ | E187: ほんぽうじ | F187: 1000 | G187: 600 | H187: 無料 | I187: 6:00 | J187: 16:00 | K187: 07_上京区 | L187: 35.03517893050384, 135.75253015675278 | M187: 35.03517893 | N187: 135.7525302 | Q187: 8 | R187: 60 | S187: 7 | T187: 本法寺の庭園は本阿弥光悦が作庭したという「巴の庭」。室町時代の特徴を残す枯山水で国の名勝にも指定されている。庭園の名前は3つの筑山がそれぞれ巴紋の形を表していることに由来。半円状の石を2つ組み合わせた石は「日」、蓮池は文字通り「蓮」で日蓮宗の開祖 「日蓮」を表現している。 | U187: 本法寺：ほんぽうじ | V187: 京都市上京区小川通寺之内上ル本法寺前町617番地 | Y187: 1 | Z187: 186
A188: 1187 | B188: 01寺 | C188: 本妙寺・赤穂義士の寺 | D188: https://kyototravel.info/honmyouji | E188: ほんみょうじ | F188: 0 | G188: 0 | H188: - | I188: 0:00 | J188: 0:00 | K188: 02_左京区 | L188: 35.01212428639557, 135.77908754132878 | M188: 35.01212429 | N188: 135.7790875 | Q188: 8 | R188: 15 | S188: 7 | T188: 本妙寺・赤穂義士の寺は1315年日蓮の弟子・日像上人が岩倉の代官・渡辺氏の帰依により、渡辺邸を寺に改めたのが起源とも、1574年妙覚寺18世・日典が新烏丸丸太町に創建したのが起源とも言われている。 | U188: 本妙寺・赤穂義士の寺：ほんみょうじ | V188: 京都市左京区仁王門通東大路東入北門前町490 | Y188: 1 | Z188: 187
A189: 1188 | B189: 01寺 | C189: 本隆寺 | D189: http://www.hokkeshu.jp/shinmonryu/honzan.html | E189: ほんりゅうじ | F189: 0 | G189: 0 | H189: 無料 | I189: 9:00 | J189: 16:00 | K189: 07_上京区 | L189: 35.03177224318612, 135.74641362847083 | M189: 35.03177224 | N189: 135.7464136 | Q189: 8 | R189: 15 | S189: 7 | T189: 本隆寺の境内には、葉を枕の下に敷くと夜泣きが止むと伝わる「夜泣き止の松」、京都市指定の保存樹「タカオカエデ」のほか、立派なイチョウの木や桜がある。 | U189: 本隆寺：ほんりゅうじ | V189: 京都市上京区智恵光院通五辻上る紋屋町 | Y189: 1 | Z189: 188
A190: 1189 | B190: 01寺 | C190: 曼殊院 | D190: https://www.manshuinmonzeki.jp/ | E190: まんしゅいん | F190: 600 | G190: 400 | H190: 無料 | I190: 9:00 | J190: 17:00 | K190: 02_左京区 | L190: 35.04888526655269, 135.8030558674624 | M190: 35.04888527 | N190: 135.8030559 | O190: 075 - 781 - 5010 | P190: (075) 711 - 6226 | Q190: 8 | R190: 20 | S190: 7 | T190: 幽霊掛け軸で有名。天台宗の門跡寺院で、本堂・書院・庫裏は重文。襖絵は狩野探幽作。 | U190: 曼殊院：まんしゅいん | V190: 京都市左京区一乗寺竹ノ内町42 | Y190: 1 | Z190: 189
A191: 1190 | B191: 01寺 | C191: 萬福寺 | D191: https://www.obakusan.or.jp/ | E191: まんぷくじ | F191: 500 | G191: 300 | H191: 500 | I191: 9:00 | J191: 17:00 | K191: 12_宇治市 | L191: 34.91429399771238, 135.8065352136814 | M191: 34.914294 | N191: 135.8065352 | O191: 0774 - 32 - 3900 | P191: (0774) 32 - 6088 | Q191: 8 | R191: 30 | S191: 7 | T191: 明の僧隠元が建てた黄檗宗の総本山。中国風の伽藍配置、精進料理、普茶料理でも知られる。 | U191: 萬福寺：まんぷくじ | V191: 宇治市五ヶ庄三番割34 | Y191: 1 | Z191: 190
A192: 1191 | B192: 01寺 | C192: 三井寺（園城寺） | D192: https://miidera1200.jp/ | E192: みついでら | F192: 600 | G192: 300 | H192: 500 | I192: 8:00 | J192: 17:00 | K192: 15_大津市 | L192: 35.01335726421028, 135.85286926465594 | M192: 35.01335726 | N192: 135.8528693 | O192: 0775 - 22 - 4898 | P192: (077) 522 - 2221 | Q192: 8 | R192: 30 | S192: 7 | T192: 天台寺門宗の総本山。三井晩鐘（日本の音風景百選）。弁慶の引摺り鐘（重文） | U192: 三井寺（園城寺）：みついでら | V192: 滋賀県大津市園城寺町246 | Y192: 1 | Z192: 191
A193: 1192 | B193: 01寺 | C193: 壬生寺 | D193: http://www.mibudera.com/ | E193: みふでら | F193: 0 | G193: 0 | H193: - | I193: 9:00 | J193: 17:00 | K193: 03_中京区 | L193: 35.00183978702322, 135.74367151765702 | M193: 35.00183979 | N193: 135.7436715 | O193: 075 - 841 - 3381 | P193: (075) 841 - 4481 | Q193: 8 | R193: 30 | S193: 7 | T193: 厄除けのための民俗芸能である壬生狂言で知られる。境内には新撰組隊士の墓がある。 | U193: 壬生寺：みふでら | V193: 京都市中京区坊城通仏光上ル壬生梛ノ宮町31 | Y193: 1 | Z193: 192
A194: 1193 | B194: 01寺 | C194: 三室戸寺 | D194: https://www.mimurotoji.com/ | E194: みむろとじ | F194: 500 | G194: 300 | H194: 500 | I194: 8:30 | J194: 16:00 | K194: 12_宇治市 | L194: 34.90049460978437, 135.81916624894387 | M194: 34.90049461 | N194: 135.8191662 | O194: 0774 - 21 - 2067 | P194: 0 | Q194: 8 | R194: 30 | S194: 7 | T194: 西国三十三観音霊場の第13番礼所。奈良時代に創建された古寺。ツツジやアジサイの寺。 | U194: 三室戸寺：みむろとじ | V194: 宇治市菟道滋賀谷21 | Y194: 1 | Z194: 193
A195: 1194 | B195: 01寺 | C195: 妙円寺 | D195: https://kyototravel.info/myouenji | E195: みょうえんじ | F195: 0 | G195: 0 | H195: 無料 | I195: 9:00 | J195: 17:00 | K195: 02_左京区 | L195: 35.053937529272645, 135.78554902748454 | M195: 35.05393753 | N195: 135.785549 | Q195: 8 | R195: 15 | S195: 7 | T195: 1616年、日英上人が開基、日蓮宗。五山送り火「妙法」の法の字の真下に位置する。本尊の大黒天像は京都の鬼門守護の神であり、京都七福神巡りの一つとして有名。俗に松ヶ崎大黒天と親しまれている。 | U195: 妙円寺：みょうえんじ | V195: 京都市左京区松ヶ崎東町31 | Y195: 1 | Z195: 194
A196: 1195 | B196: 01寺 | C196: 妙覚寺 | D196: https://www.meguru-kyoto.com/myoukakuji/ | E196: みょうかくじ | F196: 0 | G196: 0 | H196: 無料 | I196: 9:00 | J196: 16:00 | K196: 07_上京区 | L196: 35.03644688387173, 135.7535192290523 | M196: 35.03644688 | N196: 135.7535192 | Q196: 8 | R196: 15 | S196: 7 | T196: 妙覺寺の大門は寛文三年（1663）に聚楽第の裏門を移築したものという説があり、西本願寺の飛雲閣、大徳寺の方丈・唐門（通常非公開）とともに貴重な遺構とされている。 | U196: 妙覚寺：みょうかくじ | V196: 京都市上京区上御霊前通堀川東入る下清蔵口町135 | Y196: 1 | Z196: 195
A197: 1196 | B197: 01寺 | C197: 妙顕寺 | D197: https://shikaishodo-myokenji.org/ | E197: みょうけんじ | F197: 500 | G197: 500 | H197: - | I197: 10:00 | J197: 16:00 | K197: 07_上京区 | L197: 35.03450129078775, 135.75471078392576 | M197: 35.03450129 | N197: 135.7547108 | Q197: 8 | R197: 60 | S197: 7 | T197: 妙顕寺には「四海唱導の庭」、「光琳曲水の庭」、「孟宗竹の坪庭」がある。勅使門の内側にあり位の高い参拝者を迎えるのが「四海唱導の庭」。 | U197: 妙顕寺：みょうけんじ | V197: 京都市上京区寺之内通新町西入妙顯寺前町514 | Y197: 1 | Z197: 196
A198: 1197 | B198: 01寺 | C198: 妙心寺（桂春院） | D198: https://kyotoshunju.com/temple/keishunin/ | E198: みょうしんじ けいしゅんいん | F198: 400 | G198: 400 | H198: 無料 | I198: 9:00 | J198: 17:00 | K198: 01_右京区 | L198: 35.02484592185516, 135.72245109374583 | M198: 35.02484592 | N198: 135.7224511 | O198: 075 - 463 - 6578 | P198: (075) 463 - 6578 | Q198: 8 | R198: 20 | S198: 7 | T198: 清浄の庭、真如の庭、思惟の庭。無名慧性墨蹟（重文）など多くの銘器を保存。 | U198: 妙心寺（桂春院）：みょうしんじ けいしゅんいん | V198: 京都市右京区花園寺ノ中町１１ | Y198: 1 | Z198: 197
A199: 1198 | B199: 01寺 | C199: 妙心寺（退蔵院） | D199: http://www.taizoin.com/ | E199: みょうしんじ たいぞういん | F199: 600 | G199: 300 | H199: 無料 | I199: 9:00 | J199: 17:00 | K199: 01_右京区 | L199: 35.021769854753124, 135.71926834987676 | M199: 35.02176985 | N199: 135.7192683 | O199: 075 - 463 - 2855 | P199: (075) 463 - 2575 | Q199: 8 | R199: 20 | S199: 7 | T199: 春の紅しだれ桜の下での懇談会・秋の中秋の名月鑑賞会・晩秋の観楓会がある。 | U199: 妙心寺（退蔵院）：みょうしんじ たいぞういん | V199: 京都市右京区花園妙心寺町35 | Y199: 1 | Z199: 198
A200: 1199 | B200: 01寺 | C200: 妙心寺（法堂） | D200: https://www.myoshinji.or.jp/worship/keidai/312 | E200: みょうしんじ(はっとう) | F200: 500 | G200: 200 | H200: 無料 | I200: 9:00 | J200: 16:00 | K200: 01_右京区 | L200: 35.02257248228379, 135.71998001738874 | M200: 35.02257248 | N200: 135.71998 | O200: 075 - 461 - 5226 | P200: (075) 464 - 2069 | Q200: 8 | R200: 20 | S200: 7 | T200: 八方にらみ天井竜。明智風呂。国宝・重文の建造物がある。七堂伽藍の完備全国随一。 | U200: 妙心寺（法堂）：みょうしんじ(はっとう) | V200: 京都市右京区花園妙心寺町1 | W200: 12:00～13:00は休み | Y200: 1 | Z200: 199
... 660 more rows

Sheet AddPlace (hidden)
A1: Code | B1: 分類 | C1: 施設名 | D1: URL | E1: ふりがな | F1: 拝観料 | G1: 拝観料中学生 | H1: 駐車料 | I1: 拝観開始 | J1: 拝観終了 | K1: 所 在 地 | L1: Mapから | M1: 緯度 | N1: 経度 | O1: Tel | P1: F A X | Q1: 受付まで | R1: 見学時間 | S1: 駐車場へ | T1: ワンポイントガイド | U1: 検索用名 | V1: 住所 | W1: 備考 | X1: 備考2 | Y1: 列1 | Z1: 160
A2: 11001 | B2: 11追加 | C2: 化野念仏寺２ | D2: http://www.nenbutsuji.jp/ | E2: あだしのねんぶつじ | F2: 500 | G2: 400 | H2: - | I2: 0.375 | J2: 0.6875 | K2: 01_右京区 | L2: 35.026940411485725, 135.66489104350237 | M2: 35.02694041 | N2: 135.664891 | O2: 075 - 861 - 2221 | P2: (075) 881 - 9800 | Q2: 8 | R2: 30 | S2: 7 | T2: 空海が寺を建て、法然が念仏道場にした。無常仏の石塔・石仏。千灯供養が有名。 | U2: 化野念仏寺 | V2: 京都市右京区嵯峨鳥居本化野町17 | W2: 12～2月15:30終了 | Y2: 1 | Z2: 1
A3: 11002 | B3: 01寺 | C3: 阿弥陀寺２ | D3: https://ja.wikipedia.org/wiki/%E9%98%BF%E5%BC%A5%E9%99%80%E5%AF%BA_(%E4%BA%AC%E9%83%BD%E5%B8%82%E4%B8%8A%E4%BA%AC%E5%8C%BA) | E3: あみだじ | F3: 1000 | G3: 1000 | H3: 無料 | I3: 0 | J3: 0 | K3: 07_上京区 | L3: 35.03394801730505, 135.76602167187542 | M3: 35.03394802 | N3: 135.7660217 | O3: 075 - 744 - 2048 | P3: 0 | Q3: 8 | R3: 20 | S3: 7 | T3: 阿弥陀如来像(重文)、ミイラ仏安置の石廟。天然記念物指定のカエデ(800余年）。紅葉。 | U3: 阿弥陀寺 | V3: 京都市上京区寺町今出川上ル鶴山町14 | W3: 織田信長 | Y3: 1 | Z3: 2
A4: 11003 | B4: 01寺 | C4: 安養寺２ | D4: https://kyototravels.com/guideanyoji/#toc2 | E4: あんようじ | F4: 0 | G4: 0 | H4: - | I4: 0.3333333333 | J4: 0.6666666667 | K4: 04_東山区 | L4: 35.003790220967254, 135.78431335756065 | M4: 35.00379022 | N4: 135.7843134 | Q4: 8 | R4: 15 | S4: 7 | T4: 平安時代末期、青蓮院の八世 慈円が仏教界から弾圧を受けた法然、親鸞を庇護し、この地に湧いていた吉水井という名水に由来する吉水草庵を建立。法然、親鸞が浄土念仏の教えを始めた地として著名。慈円による再建時に安養寺という寺名に改称された。 | U4: 安養寺 | V4: 京都市東山区八坂鳥居前東入円山町474 | Y4: 1 | Z4: 3
A5: 11004 | B5: 11追加 | C5: あああ | E5: あああ | K5: 04_東山区

Sheet 追加 (hidden)
A1: No. | B1: Code | C1: 分類 | D1: 施設名 | E1: URL | F1: ふりがな | G1: 拝観料 | H1: 拝観料中学生 | I1: 駐車料 | J1: 拝観開始 | K1: 拝観終了 | L1: 所 在 地 | M1: Mapから | N1: 緯度 | O1: 経度 | P1: Tel | Q1: F A X | R1: 受付まで | S1: 見学時間 | T1: 駐車場へ | U1: ワンポイントガイド | V1: 検索用名 | W1: 住所 | X1: 備考 | Y1: 備考2 | Z1: 列1 | AA1: 160
A2: 1 | B2: 11001 | C2: 11追加 | D2: 京都駅 | E2: https://www.jr-odekake.net/eki/top?id=0610116 | F2: きょうとえき | G2: 0 | H2: 0 | I2: - | J2: 00:00:00 | K2: 00:00:00 | L2: 08_下京区 | M2: 34.98587207942144, 135.75905406122945 | N2: 34.98587208 | O2: 135.7590541 | R2: 8 | S2: 0 | T2: 7 | V2: 京都駅：きょうとえき | W2: 京都市下京区烏丸通塩小路下ル東塩小路町
A3: 2 | B3: 11002 | C3: 11追加 | D3: 清閑寺 | E3: https://ja.kyoto.travel/tourism/single01.php?category_id=7&tourism_id=386 | F3: せいかんじ | G3: 0 | H3: 0 | I3: - | J3: 00:00:00 | K3: 00:00:00 | L3: 04_東山区 | M3: 34.989889979698404, 135.78839964111404 | N3: 34.98988998 | O3: 135.7883996 | P3: 075 - 561 - 7292 | R3: 8 | S3: 0 | T3: 7 | U3: 清閑寺（せいかんじ）は、京都市東山区清閑寺歌ノ中山町にある真言宗智山派の寺院。山号は歌中山。本尊は千手観音。『平家物語』の悲恋で知られる高倉天皇と小督局ゆかりの寺院である。(Wikipedia) | V3: 清閑寺：せいかんじ | W3: 京都市東山区清閑寺歌ノ中山町３
A4: 3 | B4: 11003 | C4: 11追加 | D4: クラウンホテル大阪 | F4: くらうんほてるおおさか | G4: 0 | H4: 0 | I4: - | J4: 00:00:00 | K4: 00:00:00 | L4: 21_大阪府 | M4: 34.69579095303482, 135.49829856896832 | N4: 34.69579095 | O4: 135.4982986 | R4: 8 | S4: 0 | T4: 7 | V4: クラウンホテル大阪：くらうんほてるおおさか
A5: 4 | B5: 11004 | C5: 11追加 | D5: 東大寺大仏殿 | E5: https://www.todaiji.or.jp/information/daibutsuden/ | F5: とうだいじだいぶつでん | G5: 600 | H5: 600 | I5: - | J5: 00:00:00 | K5: 00:00:00 | L5: 20_奈良県 | M5: 34.689136923903796, 135.83981690000803 | N5: 34.68913692 | O5: 135.8398169 | R5: 8 | S5: 30 | T5: 7 | U5: 東大寺の金堂である。奈良時代に創建されてから治承と永禄の二度の兵火に遭い、現在の建物は江戸時代に公慶（こうけい）上人によって再建された。ただ天平・鎌倉の大仏殿は桁行11間（約88m）であったが、財政困難の理由で7間に規模が縮小された。それでも高さや奥行は創建時のままで、世界最大級の木造建造物である。 | V5: 東大寺大仏殿：とうだいじだいぶつでん
A6: 5 | B6: 11005 | C6: 11追加 | D6: 東大寺大仏殿前駐車場 | F6: とうだいじだいぶつでんまえちゅうしゃじょう | G6: 0 | H6: 0 | I6: - | J6: 00:00:00 | K6: 00:00:00 | L6: 20_奈良県 | M6: 34.6856449434911, 135.8394970684422 | N6: 34.68564494 | O6: 135.8394971 | R6: 8 | S6: 0 | T6: 7 | V6: 東大寺大仏殿前駐車場：とうだいじだいぶつでんまえちゅうしゃじょう
A7: 6 | B7: 11006 | C7: 11追加 | D7: 東大寺三月堂 | E7: https://www.todaiji.or.jp/information/hokkedo/ | F7: とうだいじさんがつどう | G7: 600 | H7: 600 | I7: - | J7: 00:00:00 | K7: 00:00:00 | L7: 20_奈良県 | M7: 34.68893051507695, 135.84403510000087 | N7: 34.68893052 | O7: 135.8440351 | R7: 8 | S7: 15 | T7: 7 | U7: 『東大寺要録』によれば、天平5年（733〜747）から天平19年までの創建と考えられている東大寺最古の建物である。不空羂索観音（ふくうけんさくかんのん）を本尊とするところから古くは羂索堂と呼ばれていたが、毎年3月に法華会（ほっけえ）が行なわれたことから、のちに法華堂と呼ばれるようになった。後方（左側・北側）の正堂と前方（右側・南側）の礼堂と二つの部分からなっており、当初は双堂形式の建物であったが、現在の礼堂部分は正治元年（1199）に重源上人によって新造されたものである。東大寺の前身である金鍾山寺の主要伽藍(がらん)のひとつで、このお堂で華厳経が日本で初めて講義されたともいわれている。堂内の仏像群は、天平文化のきらびやかさを想起させる。 | V7: 東大寺三月堂：とうだいじさんがつどう
A8: 7 | B8: 11007 | C8: 11追加 | D8: 東大寺二月堂 | E8: https://www.todaiji.or.jp/information/nigatsudo/ | F8: とうだいじにがつどう | G8: 0 | H8: 0 | I8: - | J8: 00:00:00 | K8: 00:00:00 | L8: 20_奈良県 | M8: 34.68938056150119, 135.8442540288447 | N8: 34.68938056 | O8: 135.844254 | R8: 8 | S8: 15 | T8: 7 | U8: 二月堂の名は、このお堂で修二会（しゅにえ）が旧暦の2月に行なわれることから起こっている。良弁（ろうべん）僧正の高弟実忠（じっちゅう）の草創と伝えるが、寛文7年（1667）の修二会中に堂内から出火、焼失し、現在の建物はその2年後に再建された。創建当初の建物は小規模のものであったらしく、時代を経るにつれ、修二会の行法に合わせて増築されたようである。音響効果といい、内陣・外陣・礼堂などの間取りといい、行法を行なうのにまことにふさわしい建物になっている。 | V8: 東大寺二月堂：とうだいじにがつどう
A9: 8 | B9: 11008 | C9: 11追加 | D9: 戒壇堂 | E9: https://www.todaiji.or.jp/information/kaidando/ | F9: かいだんどう | G9: 600 | H9: 600 | I9: - | J9: 00:00:00 | K9: 00:00:00 | L9: 20_奈良県 | M9: 34.6888219028149, 135.83665228455567 | N9: 34.6888219 | O9: 135.8366523 | R9: 8 | S9: 15 | T9: 7 | U9: 唐僧鑑真和上が天平勝宝6年（754）に来朝して、わが国に初めて正しい戒律を伝えた。その折、聖武太上天皇や孝謙天皇が受戒された大仏殿前の土壇をこの地に遷して戒壇堂を築き、伽藍を造営したのが戒壇院の起こりで、やがてここから多くの僧が巣立っていった。その後、治承4年（1180）の兵火で全焼、重源上人・西迎上人が復興した鎌倉時代の戒壇院も文安3年（1446）に炎上し、現在は江戸時代に再建された千手堂・戒壇堂（県指定重要文化財）・庫裏（くり）を残すのみである。 | V9: 戒壇堂：かいだんどう
A10: 9 | B10: 11009 | C10: 11追加 | D10: 春日大社 | E10: https://www.kasugataisha.or.jp/ | F10: かすがたいしゃ | G10: 0 | H10: 0 | I10: - | J10: 00:00:00 | K10: 00:00:00 | L10: 20_奈良県 | M10: 34.682088718688185, 135.84831246503228 | N10: 34.68208872 | O10: 135.8483125 | R10: 8 | S10: 30 | T10: 7 | U10: 1300年前の奈良時代、称徳天皇の勅命により造営された古社。 春日山原始林に囲まれた境内には平安時代より奉納が始まった約3,000基の灯籠がある。 神様のお使いの鹿が迎えてくれる。 | V10: 春日大社：かすがたいしゃ
A11: 10 | B11: 11010 | C11: 11追加 | D11: 興福寺国宝館 | E11: https://www.kohfukuji.com/construction/c08/ | F11: こうふくじこくほうかん | G11: 700 | H11: 600 | I11: - | J11: 09:00:00 | K11: 17:00:00 | L11: 20_奈良県 | M11: 34.68360091367056, 135.83241905377457 | N11: 34.68360091 | O11: 135.8324191 | R11: 8 | S11: 20 | T11: 7 | U11: 国宝館には興福寺に伝わる数多くの国宝･重要文化財を収蔵しており、天平時代の寺宝としては八部衆立像(国宝)、十大弟子立像(国宝)、鎌倉時代のものとしては天燈鬼立像･竜燈鬼立像･金剛力士像(国宝)があげられます。 | V11: 興福寺国宝館：こうふくじこくほうかん
A12: 11 | B12: 11011 | C12: 11追加 | D12: 奈良国立博物館 | E12: https://www.narahaku.go.jp/ | F12: ならこくりつはくぶつかん | G12: 0 | H12: 0 | I12: - | J12: 00:00:00 | K12: 00:00:00 | L12: 20_奈良県 | M12: 34.683273069103876, 135.83832890584736 | N12: 34.68327307 | O12: 135.8383289 | R12: 8 | S12: 60 | T12: 7 | U12: 奈良公園内にある明治28年(1895年)開館の博物館。東京国立博物館についで作られた、120年以上の歴史を持つ国立博物館で、なら仏像館は重要文化財に指定されている。主に仏教に関する美術工芸品および考古遺品などを平常陳列している。館蔵品約1800件と、寺社などからの寄託品約2000件を収蔵する。 | V12: 奈良国立博物館：ならこくりつはくぶつかん
A13: 12 | B13: 11012 | C13: 11追加 | D13: 正倉院 | E13: https://shosoin.kunaicho.go.jp/ | F13: しょうそういん | G13: 0 | H13: 0 | I13: - | J13: 00:00:00 | K13: 00:00:00 | L13: 20_奈良県 | M13: 34.69201623037501, 135.8385791000065 | N13: 34.69201623 | O13: 135.8385791 | R13: 8 | S13: 15 | T13: 7 | U13: 倉庫内には、聖武天皇の遺愛品をはじめ、東大寺の寺宝や文書などを数多く納めている。宝物は秋の正倉院展で公開される。 | V13: 正倉院：しょうそういん
A14: 13 | B14: 11013 | C14: 11追加 | D14: 法隆寺 | E14: http://www.horyuji.or.jp/ | F14: ほうりゅうじ | G14: 0 | H14: 0 | I14: - | J14: 00:00:00 | K14: 00:00:00 | L14: 20_奈良県 | M14: 34.61442978197504, 135.73410545348773 | N14: 34.61442978 | O14: 135.7341055 | R14: 8 | S14: 60 | T14: 7 | U14: 聖徳太子と推古天皇が創建したと伝わる寺。世界最古の木造建築物の金堂、五重塔など、19棟の国宝と、50以上の重要文化財を持つ。 | V14: 法隆寺：ほうりゅうじ
A15: 14 | B15: 11014 | C15: 11追加 | D15: 中宮寺 | E15: http://www.chuguji.jp/ | F15: ちゅうぐうじ | G15: 0 | H15: 0 | I15: - | J15: 00:00:00 | K15: 00:00:00 | L15: 20_奈良県 | M15: 34.61473895446093, 135.73948668456467 | N15: 34.61473895 | O15: 135.7394867 | R15: 8 | S15: 15 | T15: 7 | U15: 中宮寺は飛鳥時代、現在地より約500m東方に創建されました。旧地の発掘調査で四天王寺式伽藍配置であったと判明。若草伽藍と同笵の瓦も出土し、法隆寺と中宮寺は僧寺・尼寺の関係にあったと考えられます。国宝菩薩半跏像（伝如意輪観音）は金堂の本尊で、天寿国曼荼羅繍帳（てんじゅこくまんだらしゅうちょう）は講堂本尊背面に奉安されていたと伝わります。 | V15: 中宮寺：ちゅうぐうじ
A16: 15 | B16: 11015 | C16: 11追加 | D16: 法隆寺夢殿 | E16: http://www.horyuji.or.jp/garan/yumedono/ | F16: ほうりゅうじゆめどの | G16: 0 | H16: 0 | I16: - | J16: 00:00:00 | K16: 00:00:00 | L16: 20_奈良県 | M16: 34.61454625471054, 135.7387148939149 | N16: 34.61454625 | O16: 135.7387149 | R16: 8 | S16: 15 | T16: 7 | U16: 西院の東大門をくぐると、広い参道の正面に東院伽藍が現われて、甍の上には見事な夢殿の宝珠が輝いています。ここは聖徳太子の斑鳩の宮の跡で、朝廷の信任厚かった高僧行信（ぎょうしん）が宮跡の荒廃ぶりを嘆いて太子供養の伽藍の建立を発願し、天平20年（748）に聖霊会（しょうりょうえ）を始行したとされる太子信仰の聖地であります。 高い基壇の上に立つ八角円堂の夢殿は東院の本堂で、天平創建の建築でありますが、鎌倉期の寛喜2年（1230）に大改造を受け、高さや軒の出、組み物などが大きく改変されているものの、古材から天平の姿に復元することもできるほど古様を残しています。 | V16: 法隆寺夢殿：ほうりゅうじゆめどの
A17: 16 | B17: 11016 | C17: 11追加 | D17: 新薬師寺 | E17: http://www.shinyakushiji.or.jp/ | F17: しんやくしじ | G17: 0 | H17: 0 | I17: - | J17: 00:00:00 | K17: 00:00:00 | L17: 20_奈良県 | M17: 34.676095376742474, 135.84620921345257 | N17: 34.67609538 | O17: 135.8462092 | R17: 8 | S17: 15 | T17: 7 | U17: 新薬師寺は、天平19年（747）に、聖武天皇の病気平癒を祈って光明皇后により創建され、7体の薬師如来像が安置されたと言われています。かつては七堂伽藍が整った壮大な寺院で、創建当初の建造物として本堂（国宝）が今に残ります。東門・南門・鐘楼・地蔵堂はいずれも鎌倉時代に建立され、重要文化財に指定されています。本堂内には円形の土壇が築かれ、壇上には本尊薬師如来坐像（木造・国宝）と、それを囲む日本で最古最大の十二神将立像（塑像・国宝）が安置されています。 | V17: 新薬師寺：しんやくしじ
A18: 17 | B18: 11017 | C18: 11追加 | D18: 薬師寺 | E18: https://yakushiji.or.jp/ | F18: やくしじ | G18: 0 | H18: 0 | I18: - | J18: 00:00:00 | K18: 00:00:00 | L18: 20_奈良県 | M18: 34.67013489804581, 135.7837434283439 | N18: 34.6701349 | O18: 135.7837434 | R18: 8 | S18: 50 | T18: 7 | U18: 天武天皇が680年に発願し持統天皇が造営した奈良を代表する名刹。 檀家やお墓を持たない修行の場として開かれ、火災や地震で失われた伽藍がお写経勧進により再興、 往時の姿を今に伝えている。国宝の東塔、薬師三尊像は天平文化の傑作。 | V18: 薬師寺：やくしじ
A19: 18 | B19: 11018 | C19: 11追加 | D19: 唐招提寺 | E19: https://toshodaiji.jp/ | F19: とうしょうだいじ | G19: 0 | H19: 0 | I19: - | J19: 00:00:00 | K19: 00:00:00 | L19: 20_奈良県 | M19: 34.67577120807173, 135.78483961340032 | N19: 34.67577121 | O19: 135.7848396 | R19: 8 | S19: 40 | T19: 7 | U19: 苦難の末に来日を果たした鑑真大和上が、759年に戒律を学ぶ修行道場として開いたお寺。 国宝の金堂は、市内でも数少ない焼失を免れた建築物で、天平文化の息吹を今に伝える。 | V19: 唐招提寺：とうしょうだいじ
A20: 19 | B20: 11019 | C20: 11追加 | D20: 大阪城 | E20: https://www.osakacastle.net/ | F20: おおさかじょう | G20: 0 | H20: 0 | I20: - | J20: 00:00:00 | K20: 00:00:00 | L20: 21_大阪府 | M20: 34.68539646671682, 135.52567468456584 | N20: 34.68539647 | O20: 135.5256747 | R20: 8 | S20: 60 | T20: 7 | U20: 、安土桃山時代に上町台地の先端、摂津国東成郡生玉荘大坂に築かれ、江戸時代に再築された日本の城。別称は錦城（きんじょう／金城とも表記）。「大阪城跡」として国の特別史跡に指定されている。なお、城址を含む一帯は大阪城公園（おおさかじょうこうえん）として整備されている。天守は博物館「大阪城天守閣」となっている。 | V20: 大阪城：おおさかじょう
A21: 20 | B21: 11020 | C21: 11追加 | D21: あべのハルカス | E21: https://www.abenoharukas-300.jp/index.html | F21: あべのはるかす | G21: 0 | H21: 0 | I21: - | J21: 00:00:00 | K21: 00:00:00 | L21: 01_右京区 | M21: 34.646238301478995, 135.51345564228967 | N21: 34.6462383 | O21: 135.5134556 | R21: 8 | S21: 90 | T21: 7 | U21: 高さ300mを超える日本で一番高い高層複合ビル。ハルカスは、「伊勢物語」の一節「晴るかす」(晴らす、晴れ晴れとさせる)から名づけられた。一日に約73万人が行き交うJRと地下鉄の「天王寺駅」と近鉄「大阪阿部野橋駅」のターミナルに立地する。百貨店初の屋上貸し菜園などを設け、最新のファッションや生活雑貨などを揃えた「あべのハルカス近鉄本店」をはじめ、気候条件が良ければ、京都から六甲山系、明石海峡大橋などの絶景を見渡せる展望台の「ハルカス300」、さまざまなジャンルの展覧会を開催する「あべのハルカス美術館」、360室の客室を有する「大阪マリオット都ホテル」などがある。 | V21: あべのハルカス：あべのはるかす

Sheet 所在地 (hidden)
A1: 所在地
A2: 全て
A3: 01_右京区
A4: 02_左京区
A5: 03_中京区
A6: 04_東山区
A7: 05_北区
A8: 06_南区
A9: 07_上京区
A10: 08_下京区
A11: 09_西京区
A12: 10_山科区
A13: 11_伏見区
A14: 12_宇治市
A15: 13_京田辺市
A16: 14_相楽郡
A17: 15_大津市
A18: 16_長岡京市
A19: 17_木津川市
A20: 18_八幡市
A21: 19_亀岡市
A22: 20_奈良県
A23: 21_大阪府

Sheet 距離式 (hidden)
A1: lat1 | B1: 36 | D1: 北緯36度近辺の方は、 緯度、経度の変化(秒単位)⊿φ、⊿λを求めたときに
A2: lon1 | B2: 138
A3: lat2 | B3: 34 | D3: 南北方向への移動距離x=30.82×⊿φ (m)
A4: lon2 | B4: 136
D5: 東西方向への移動距離y=25.11×⊿λ(m)
O6: b2 | P6: b1
B7: =6371 * ACOS(COS(B1*PI()/180) * COS(B3*PI()/180) * COS(B4*PI()/180-B2*PI()/180) + SIN(B1*PI()/180) * SIN(B3*PI()/180) ) -> 287.4615142 | D7: とすれば、 実際の移動距離Lが | N7: 静岡県富士宮市小泉2033－5 | O7: 138.6416299 | P7: 35.22454048 | Q7: =6371 * ACOS(COS(P7*PI()/180) * COS(P8*PI()/180) * COS(O8*PI()/180-O7*PI()/180) + SIN(P7*PI()/180) * SIN(P8*PI()/180) ) -> 0.04355782106
N8: 静岡県富士宮市小泉2030 | O8: 138.6412336 | P8: 35.22476106
D9: L=(x^2+y^2)^0.5 | O9: dx | P9: dy
N10: dx | O10: =VALUE(O8)*60-VALUE(O7)*60 -> -0.02377640904 | P10: =VALUE(P8)*60-VALUE(P7)*60 -> 0.01323496223
D11: から求められます。 | O11: =O10*25.11 -> -0.597025631 | P11: =P10*30.82 -> 0.4079015359
O13: =O11^2 -> 0.3564396041 | P13: =P11^2 -> 0.166383663
E14: =dist(P7,O7,P8,O8) -> 60.54841379 | O14: =SQRT(O13+P13) -> 0.7230651886
